Local authority department which incurred the expenditure,Service Division,Cost Centre,Summary of the Purpose of Expenditure,Expense Type,Expense Code,Detailed Expense Type,Date of Transaction,Transaction Number,Beneficiary,Merchant Category Number,Merchant Category,Gross Amount,VAT,Net Amount
"Regeneration, Economy and Growth",Culture Sport and Tourism,030708,VCD - Marketing & Information,Supplies and Services,384199,Miscellaneous Expenses,01-Aug-2020,000007265410890,FACEBK YT2S6UJVC2,7311,Other hired and contracted services,219.00,0.00,219.00
Children and Young Peoples Services,Head of Childrens Social Care,085342,16 Hickstead Rise (previously 9 Cedar Ave),Supplies and Services,328041,Clothing uniforms and laundry E328,01-Aug-2020,000007265410904,PRIMARK,5651,Clothing uniforms and laundry,53.30,0.00,53.30
Children and Young Peoples Services,Head of Childrens Social Care,085342,16 Hickstead Rise (previously 9 Cedar Ave),Supplies and Services,348037,Subsistence E348,01-Aug-2020,000007265410908,COSTA COFFEE,5814,Subsistence,6.92,0.00,6.92
Children and Young Peoples Services,Head of Childrens Social Care,085342,16 Hickstead Rise (previously 9 Cedar Ave),Supplies and Services,384999,Miscellaneous Expenses,01-Aug-2020,000007265410910,BODYCARE,5977,Other expenses,6.04,0.00,6.04
Children and Young Peoples Services,Head of Childrens Social Care,085342,16 Hickstead Rise (previously 9 Cedar Ave),Supplies and Services,328041,Clothing uniforms and laundry E328,01-Aug-2020,000007265410914,POUNDLAND LTD 1199,5310,Clothing uniforms and laundry,8.10,0.00,8.10
Children and Young Peoples Services,Head of Childrens Social Care,085342,16 Hickstead Rise (previously 9 Cedar Ave),Supplies and Services,324117,Provisions E324,01-Aug-2020,000007265410916,TESCO STORES 2916,5411,Catering costs - provisions,3.90,0.00,3.90
Children and Young Peoples Services,Head of Childrens Social Care,085342,16 Hickstead Rise (previously 9 Cedar Ave),Supplies and Services,304999,Equipment and Materials,01-Aug-2020,000007265410918,SUPERDRUG STORES PLC,5912,Misc equipment tools and materials,5.00,0.00,5.00
Children and Young Peoples Services,Head of Childrens Social Care,085332,Middlestone Moor CU,Supplies and Services,324117,Provisions E324,01-Aug-2020,000007265411116,GEORGE BOLAM (FOODS) L,5499,Catering costs - provisions,19.47,0.00,19.47
Children and Young Peoples Services,Head of Childrens Social Care,085332,Middlestone Moor CU,Supplies and Services,304259,Equipment and Materials,01-Aug-2020,000007265411122,JD SPORTS INTERNET,5941,Equipment-purchase and rental,-5.99,0.00,-5.99
Children and Young Peoples Services,Head of Early Help Inclusion & Vulnerable Children.,073998,TTF-Co-ordinator Grant,Transfer Payments,525033,Other,01-Aug-2020,000007265411194,Amazon.co.uk JM3599AN5,5969,Grants to individuals,199.92,33.32,166.60
Children and Young Peoples Services,Head of Childrens Social Care,085334,West Rainton Satelite Home,Supplies and Services,304403,Equipment and Materials,01-Aug-2020,000007265411330,CEX,5065,Other consumables,33.50,0.00,33.50
Children and Young Peoples Services,Head of Childrens Social Care,085334,West Rainton Satelite Home,Supplies and Services,304999,Equipment and Materials,01-Aug-2020,000007265411334,WWW.TOOLSTATION.COM,5251,Misc equipment tools and materials,9.99,0.00,9.99
Children and Young Peoples Services,Head of Childrens Social Care,085332,Middlestone Moor CU,Supplies and Services,348037,Subsistence E348,01-Aug-2020,000007265411358,GREGGS THINFORD,5812,Subsistence,3.55,0.00,3.55
Children and Young Peoples Services,Head of Early Help Inclusion & Vulnerable Children.,085954,Walworth,Supplies and Services,304403,Equipment and Materials,01-Aug-2020,000007265411504,AMZNMktplace,5999,Other consumables,7.99,0.00,7.99
Neighbourhoods and Climate Change,Environmental Services,026591,C&G - Hardwick Park,Supplies and Services,332047,Printing Stationery and Gen Off Exps,01-Aug-2020,000007265411550,AMZNMKTPLACE AMAZON.CO,5999,Stationery,5.82,0.00,5.82
Children and Young Peoples Services,Head of Childrens Social Care,085352,Tow Law CU,Supplies and Services,324117,Provisions E324,01-Aug-2020,000007265411710,TESCO STORES 5596,5411,Catering costs - provisions,3.30,0.00,3.30
Children and Young Peoples Services,Head of Early Help Inclusion & Vulnerable Children.,071569,Woodhouse Close Childrens Centre,Supplies and Services,304259,Equipment and Materials,01-Aug-2020,000007265411750,AMZNMktplace,5999,Equipment-purchase and rental,12.79,0.00,12.79
Adult and Health Services,Head of Adults,055643,Hawthorn House LD Respite Unit,Supplies and Services,324117,Provisions E324,01-Aug-2020,000007265411770,CO-OP GROUP 010465,5411,Catering costs - provisions,4.72,0.00,4.72
Children and Young Peoples Services,Head of Childrens Social Care,085333,Coxhoe Satelite Home,Supplies and Services,348037,Subsistence E348,01-Aug-2020,000007265411818,Pizza Hut,5812,Subsistence,14.44,0.00,14.44
Children and Young Peoples Services,Head of Childrens Social Care,085333,Coxhoe Satelite Home,Supplies and Services,348037,Subsistence E348,01-Aug-2020,000007265411822,STARBUCKS,5814,Subsistence,5.76,0.00,5.76
Children and Young Peoples Services,Head of Early Help Inclusion & Vulnerable Children.,085965,Barnard,Supplies and Services,304649,Equipment and Materials,01-Aug-2020,000007265412044,AMZNMktplace,5999,Toys,7.99,0.00,7.99
Children and Young Peoples Services,Head of Early Help Inclusion & Vulnerable Children.,085956,Lumley,Supplies and Services,384999,Miscellaneous Expenses,01-Aug-2020,000007265412046,AMZNMktplace,5999,Other expenses,3.98,0.00,3.98
Children and Young Peoples Services,Head of Education and Skills,071802,Louisa Cent Nursery,Supplies and Services,324117,Provisions E324,01-Aug-2020,000007265412148,ALDI 11 774,5411,Catering costs - provisions,2.20,0.00,2.20
Chief Executive's Office,Communications Management,060270,Communications and Marketing,Supplies and Services,372009,Subscriptions E372,01-Aug-2020,000007265412214,LINKEDIN-553 7231163,7311,Subscriptions 372009,4.87,0.00,4.87
Chief Executive's Office,Communications Management,060270,Communications and Marketing,Supplies and Services,372009,Subscriptions E372,01-Aug-2020,000007265412216,STK Shutterstock,7333,Subscriptions 372009,369.00,0.00,369.00
"Regeneration, Economy and Growth",Business Durham CL0850,030689,Inward Investment and Aftercare,Supplies and Services,304403,Equipment and Materials,02-Aug-2020,000007265410742,ADOBE CREATIVE CLOUD,5734,Other consumables,49.94,0.00,49.94
"Regeneration, Economy and Growth",Business Durham CL0850,030689,Inward Investment and Aftercare,Supplies and Services,342222,Computers and Communications,02-Aug-2020,000007265410748,FASTHOSTS INTERNET,4816,Comp hardware purch-network servers,67.20,0.00,67.20
"Regeneration, Economy and Growth",Business Durham CL0850,030689,Inward Investment and Aftercare,Supplies and Services,342222,Computers and Communications,02-Aug-2020,000007265410750,FASTHOSTS INTERNET,4816,Comp hardware purch-network servers,72.66,0.00,72.66
Resources BK0010,Finance & Transactional Services,065120,Income 065120,Supplies and Services,342033,Computers and Communications,02-Aug-2020,000007265410830,AMZNMktplace,5999,Computer hardware,38.95,0.00,38.95
"Regeneration, Economy and Growth",Culture Sport and Tourism,030708,VCD - Marketing & Information,Supplies and Services,384199,Miscellaneous Expenses,02-Aug-2020,000007265410894,MAILCHIMP MONTHLY,5968,Other hired and contracted services,207.40,0.00,207.40
Children and Young Peoples Services,Head of Childrens Social Care,085352,Tow Law CU,Supplies and Services,304259,Equipment and Materials,02-Aug-2020,000007265410972,B&M 681 - DURHAM,5399,Equipment-purchase and rental,12.99,0.00,12.99
Children and Young Peoples Services,Head of Childrens Social Care,085358,Orchard House Sacriston Solo Home,Supplies and Services,304259,Equipment and Materials,02-Aug-2020,000007265410976,B&M 681 - DURHAM,5399,Equipment-purchase and rental,334.22,0.00,334.22
Children and Young Peoples Services,Head of Childrens Social Care,085341,High Etherley Satelite Home,Supplies and Services,348037,Subsistence E348,02-Aug-2020,000007265410978,MCDONALDS,5812,Subsistence,7.57,0.00,7.57
Children and Young Peoples Services,Head of Childrens Social Care,085332,Middlestone Moor CU,Supplies and Services,348037,Subsistence E348,02-Aug-2020,000007265411364,MCDONALDS,5812,Subsistence,3.58,0.00,3.58
Children and Young Peoples Services,Head of Early Help Inclusion & Vulnerable Children.,085962,Aycliffe Secure - Durham,Supplies and Services,324117,Provisions E324,02-Aug-2020,000007265411368,ASDA GROCERIES ONLINE,5411,Catering costs - provisions,22.40,0.00,22.40
Children and Young Peoples Services,Head of Early Help Inclusion & Vulnerable Children.,085954,Walworth,Supplies and Services,304403,Equipment and Materials,02-Aug-2020,000007265411506,AMZNMktplace,5999,Other consumables,45.71,7.63,38.08
Children and Young Peoples Services,Head of Early Help Inclusion & Vulnerable Children.,085954,Walworth,Supplies and Services,324117,Provisions E324,02-Aug-2020,000007265411510,TESCO STORES 6329,5411,Catering costs - provisions,43.21,0.00,43.21
Children and Young Peoples Services,Head of Childrens Social Care,085331,New Lea Childrens Home,Supplies and Services,304999,Equipment and Materials,02-Aug-2020,000007265411626,BOOTS/5002,5912,Misc equipment tools and materials,15.04,0.00,15.04
Children and Young Peoples Services,Head of Childrens Social Care,085331,New Lea Childrens Home,Supplies and Services,348037,Subsistence E348,02-Aug-2020,000007265411636,MCDONALDS,5814,Subsistence,10.59,0.00,10.59
Children and Young Peoples Services,Head of Childrens Social Care,085331,New Lea Childrens Home,Supplies and Services,304259,Equipment and Materials,02-Aug-2020,000007265411642,JD SPORTS 193,5941,Equipment-purchase and rental,45.10,0.00,45.10
Children and Young Peoples Services,Head of Childrens Social Care,085341,High Etherley Satelite Home,Supplies and Services,348037,Subsistence E348,02-Aug-2020,000007265411760,ALA SPICERY LTD,5812,Subsistence,26.90,0.00,26.90
Children and Young Peoples Services,Head of Childrens Social Care,085341,High Etherley Satelite Home,Supplies and Services,324117,Provisions E324,02-Aug-2020,000007265411762,SHAKEAHOLIC,5499,Catering costs - provisions,7.40,0.00,7.40
Children and Young Peoples Services,Head of Childrens Social Care,085341,High Etherley Satelite Home,Supplies and Services,324117,Provisions E324,02-Aug-2020,000007265411764,KRISPY KREME GATESHEAD,5441,Catering costs - provisions,17.90,0.00,17.90
Children and Young Peoples Services,Head of Childrens Social Care,085333,Coxhoe Satelite Home,Supplies and Services,348037,Subsistence E348,02-Aug-2020,000007265412130,Pizza Roma,5812,Subsistence,29.10,0.00,29.10
Children and Young Peoples Services,Head of Childrens Social Care,085333,Coxhoe Satelite Home,Supplies and Services,348037,Subsistence E348,02-Aug-2020,000007265412132,MCDONALDS,5814,Subsistence,9.66,0.00,9.66
Resources BK0010,Business Support,052986,CYPS - Locality and Operational Support,Supplies and Services,384999,Miscellaneous Expenses,02-Aug-2020,000007265412150,Amazon.co.uk US2O05FP5,5969,Other expenses,466.90,0.00,466.90
Children and Young Peoples Services,Head of Education and Skills,070169,Durham SSP,Supplies and Services,384199,Miscellaneous Expenses,02-Aug-2020,000007269607310,ZOOM.GBP,5968,Other hired and contracted services,14.39,2.40,11.99
Children and Young Peoples Services,Head of Childrens Social Care,085341,High Etherley Satelite Home,Supplies and Services,324117,Provisions E324,03-Aug-2020,000007269606900,TESCO STORES 6329,5411,Catering costs - provisions,29.58,0.00,29.58
Resources BK0010,Strategy,060101,Head of Strategy,Employees,040149,Recruitment Instruction and Training,03-Aug-2020,000007269606910,PAYPAL HARISEWELLC,5999,Training-all costs,15.00,0.00,15.00
Adult and Health Services,Head of Adults,056601,Substance Misuse,Supplies and Services,338048,Services,03-Aug-2020,000007269606914,HMCOURTS-SERVICE.G,9222,Court costs 338048,75.00,0.00,75.00
"Regeneration, Economy and Growth",Development and Housing,031599,Prevention Initiatives,Supplies and Services,348037,Subsistence E348,03-Aug-2020,000007269606916,HOTEL 52 STANLEY,5812,Subsistence,230.00,0.00,230.00
"Regeneration, Economy and Growth",Development and Housing,031599,Prevention Initiatives,Supplies and Services,352001,Conference Expenses,03-Aug-2020,000007269606918,AYCLIFFE BIZ,7011,Conferencesseminars fees etc,152.00,0.00,152.00
Children and Young Peoples Services,Head of Education and Skills,075021,Youth Employment Initiative,Supplies and Services,364301,Grants to Voluntary Organisations,03-Aug-2020,000007269606940,CURRYS ONLINE,5732,Hardship,199.00,33.17,165.83
Children and Young Peoples Services,Head of Education and Skills,075021,Youth Employment Initiative,Supplies and Services,364301,Grants to Voluntary Organisations,03-Aug-2020,000007269606944,AO RETAIL LIMITED,5722,Hardship,239.00,39.83,199.17
Children and Young Peoples Services,Head of Education and Skills,075021,Youth Employment Initiative,Supplies and Services,364301,Grants to Voluntary Organisations,03-Aug-2020,000007269606948,AO RETAIL LIMITED,5722,Hardship,239.00,39.83,199.17
Children and Young Peoples Services,Head of Childrens Social Care,085342,16 Hickstead Rise (previously 9 Cedar Ave),Supplies and Services,348037,Subsistence E348,03-Aug-2020,000007269606964,MCDONALDS,5812,Subsistence,9.06,0.00,9.06
Children and Young Peoples Services,Head of Childrens Social Care,085342,16 Hickstead Rise (previously 9 Cedar Ave),Supplies and Services,348037,Subsistence E348,03-Aug-2020,000007269606968,MCDONALDS,5812,Subsistence,2.28,0.00,2.28
"Regeneration, Economy and Growth",Culture Sport and Tourism,054233,Bishop Auckland Town Hall Library,Supplies and Services,324117,Provisions E324,03-Aug-2020,000007269607020,TESCO STORES 2971,5411,Catering costs - provisions,36.94,0.00,36.94
"Regeneration, Economy and Growth",Culture Sport and Tourism,054233,Bishop Auckland Town Hall Library,Supplies and Services,324117,Provisions E324,03-Aug-2020,000007269607022,HERON FOODS LTD,5499,Catering costs - provisions,3.43,0.00,3.43
"Regeneration, Economy and Growth",Development and Housing,031576,B& B - Temp Accom,Supplies and Services,364320,Grants to Voluntary Organisations,03-Aug-2020,000007269607030,THE HONEST LAWYER,7011,Accommodation assistance,147.90,0.00,147.90
"Regeneration, Economy and Growth",Development and Housing,031576,B& B - Temp Accom,Supplies and Services,364320,Grants to Voluntary Organisations,03-Aug-2020,000007269607032,THE HONEST LAWYER,7011,Accommodation assistance,107.90,0.00,107.90
Children and Young Peoples Services,Head of Early Help Inclusion & Vulnerable Children.,088109,Spennymoor & Shildon 0-19 Community Family Hub,Supplies and Services,328041,Clothing uniforms and laundry E328,03-Aug-2020,000007269607042,ARGOS BISHOP AUCKL,5310,Clothing uniforms and laundry,16.00,0.00,16.00
Children and Young Peoples Services,Head of Childrens Social Care,085341,High Etherley Satelite Home,Supplies and Services,348037,Subsistence E348,03-Aug-2020,000007269607062,SUBWAY,5814,Subsistence,13.78,0.00,13.78
Children and Young Peoples Services,Head of Childrens Social Care,085341,High Etherley Satelite Home,Transport,235057,Public Transport,03-Aug-2020,000007269607064,BISHOP AUCKLAND STN TO,4112,Staff travelling,13.30,0.00,13.30
Children and Young Peoples Services,Head of Childrens Social Care,085341,High Etherley Satelite Home,Employees,040149,Recruitment Instruction and Training,03-Aug-2020,000007269607066,YMCA REDCAR,8398,Training-all costs,5.05,0.00,5.05
Children and Young Peoples Services,Head of Early Help Inclusion & Vulnerable Children.,085954,Walworth,Supplies and Services,304403,Equipment and Materials,03-Aug-2020,000007269607072,AMZNMktplace,5999,Other consumables,5.18,0.00,5.18
Neighbourhoods and Climate Change,Environmental Services,010367,C&G - South Grounds Maintenance,Supplies and Services,304221,Equipment and Materials,03-Aug-2020,000007269607082,SCREWFIX DIRECT,5200,Direct materials,43.76,0.00,43.76
Neighbourhoods and Climate Change,Environmental Services,026591,C&G - Hardwick Park,Supplies and Services,332047,Printing Stationery and Gen Off Exps,03-Aug-2020,000007269607086,AMZNMKTPLACE AMAZON.CO,5999,Stationery,7.15,1.19,5.96
Neighbourhoods and Climate Change,Environmental Services,026591,C&G - Hardwick Park,Supplies and Services,332047,Printing Stationery and Gen Off Exps,03-Aug-2020,000007269607090,AMZNMKTPLACE AMAZON.CO,5999,Stationery,11.39,1.90,9.49
Neighbourhoods and Climate Change,Environmental Services,026591,C&G - Hardwick Park,Supplies and Services,332047,Printing Stationery and Gen Off Exps,03-Aug-2020,000007269607092,AMZNMKTPLACE AMAZON.CO,5999,Stationery,10.48,1.75,8.73
Children and Young Peoples Services,Head of Childrens Social Care,085551,Short Break Services-Park Hse Sher,Supplies and Services,304999,Equipment and Materials,03-Aug-2020,000007269607106,HOME BARGAINS,5251,Misc equipment tools and materials,13.96,0.00,13.96
Children and Young Peoples Services,Head of Childrens Social Care,085551,Short Break Services-Park Hse Sher,Supplies and Services,324117,Provisions E324,03-Aug-2020,000007269607114,ALDI 12 774,5411,Catering costs - provisions,25.47,0.00,25.47
Chief Executive's Office,Communications Management,060270,Communications and Marketing,Employees,040149,Recruitment Instruction and Training,03-Aug-2020,000007269607116,EB STRATEGIC COMMUNIC,7399,Training-all costs,10.00,0.00,10.00
Children and Young Peoples Services,Head of Early Help Inclusion & Vulnerable Children.,071569,Woodhouse Close Childrens Centre,Supplies and Services,304403,Equipment and Materials,03-Aug-2020,000007269607122,AMZNMktplace,5999,Other consumables,10.47,1.76,8.71
Children and Young Peoples Services,Head of Early Help Inclusion & Vulnerable Children.,071569,Woodhouse Close Childrens Centre,Supplies and Services,304403,Equipment and Materials,03-Aug-2020,000007269607128,AMZNMKTPLACE AMAZON.CO,5999,Other consumables,17.52,0.00,17.52
Children and Young Peoples Services,Head of Childrens Social Care,085341,High Etherley Satelite Home,Supplies and Services,324117,Provisions E324,03-Aug-2020,000007269607130,PPOINT_ HAPPY SHOPPER,5499,Catering costs - provisions,10.00,0.00,10.00
Children and Young Peoples Services,Head of Childrens Social Care,085341,High Etherley Satelite Home,Supplies and Services,324117,Provisions E324,03-Aug-2020,000007269607132,ASDA SUPERSTORE,5411,Catering costs - provisions,29.70,0.00,29.70
Adult and Health Services,Head of Adults,055643,Hawthorn House LD Respite Unit,Supplies and Services,324117,Provisions E324,03-Aug-2020,000007269607134,CO-OP GROUP 010465,5411,Catering costs - provisions,2.80,0.00,2.80
Children and Young Peoples Services,Head of Childrens Social Care,085352,Tow Law CU,Supplies and Services,324117,Provisions E324,03-Aug-2020,000007269607162,ANGEL SPRINGS LTD,5811,Catering costs - provisions,7.88,0.00,7.88
"Regeneration, Economy and Growth",Corporate Property and Land,030691,Catering - Durham Dales Centre,Supplies and Services,324117,Provisions E324,03-Aug-2020,000007269607166,FREEMAN CATERING BUTCH,5422,Catering costs - provisions,129.28,0.00,129.28
Adult and Health Services,Head of Adults,055643,Hawthorn House LD Respite Unit,Supplies and Services,324117,Provisions E324,03-Aug-2020,000007269607186,FREEMAN CATERING BUTCH,5422,Catering costs - provisions,31.79,0.00,31.79
Adult and Health Services,Head of Adults,055643,Hawthorn House LD Respite Unit,Supplies and Services,324117,Provisions E324,03-Aug-2020,000007269607192,JR HOLLAND FOODSERVICE,5499,Catering costs - provisions,15.98,0.00,15.98
Resources BK0010,Digital and Customer Services,065335,School Services - Implementations,Supplies and Services,304303,Equipment and Materials,03-Aug-2020,000007269607234,AMZNMKTPLACE AMAZON.CO,5999,Network for resale,35.99,0.00,35.99
Children and Young Peoples Services,Head of Early Help Inclusion & Vulnerable Children.,085965,Barnard,Supplies and Services,384999,Miscellaneous Expenses,03-Aug-2020,000007269607256,AMZNMktplace,5999,Other expenses,13.96,2.33,11.63
Children and Young Peoples Services,Head of Early Help Inclusion & Vulnerable Children.,085956,Lumley,Supplies and Services,384999,Miscellaneous Expenses,03-Aug-2020,000007269607258,AMZNMKTPLACE AMAZON.CO,5999,Other expenses,10.98,0.00,10.98
Children and Young Peoples Services,Head of Early Help Inclusion & Vulnerable Children.,085961,Themed Week Activity,Supplies and Services,384999,Miscellaneous Expenses,03-Aug-2020,000007269607260,AMZNMktplace,5999,Other expenses,45.99,0.00,45.99
Children and Young Peoples Services,Head of Early Help Inclusion & Vulnerable Children.,085954,Walworth,Supplies and Services,384999,Miscellaneous Expenses,03-Aug-2020,000007269607264,AMZNMktplace,5999,Other expenses,12.99,2.17,10.82
Children and Young Peoples Services,Head of Early Help Inclusion & Vulnerable Children.,085954,Walworth,Supplies and Services,384999,Miscellaneous Expenses,03-Aug-2020,000007269607266,Amazon.co.uk MT2BD7DH5,5969,Other expenses,4.00,0.67,3.33
"Regeneration, Economy and Growth",Culture Sport and Tourism,054235,Bishop Auckland Town Hall Cafe,Supplies and Services,324117,Provisions E324,03-Aug-2020,000007269607278,JR HOLLAND FOODSERVICE,5499,Catering costs - provisions,138.47,0.00,138.47
"Regeneration, Economy and Growth",Culture Sport and Tourism,054235,Bishop Auckland Town Hall Cafe,Supplies and Services,324117,Provisions E324,03-Aug-2020,000007269607280,JR HOLLAND FOODSERVICE,5499,Catering costs - provisions,30.26,0.00,30.26
Neighbourhoods and Climate Change,Environmental Services,010301,C&G - North Grounds Maintenance,Supplies and Services,304403,Equipment and Materials,03-Aug-2020,000007269607288,TIMPSON LTD,5999,Other consumables,59.00,0.00,59.00
Children and Young Peoples Services,Head of Childrens Social Care,085342,16 Hickstead Rise (previously 9 Cedar Ave),Supplies and Services,324117,Provisions E324,03-Aug-2020,000007269607300,TESCO STORES 2916,5411,Catering costs - provisions,111.47,0.00,111.47
Children and Young Peoples Services,Head of Early Help Inclusion & Vulnerable Children.,088107,Ferryhill & Newton Aycliffe 0-19 Community Family Hub,Supplies and Services,304403,Equipment and Materials,03-Aug-2020,000007269607320,AMZNMktplace,5999,Other consumables,17.88,2.98,14.90
Adult and Health Services,Head of Adults,055310,Positive Journeys (Tudhoe),Supplies and Services,304403,Equipment and Materials,03-Aug-2020,000007269607348,AMZNMktplace,5999,Other consumables,11.00,1.83,9.17
Children and Young Peoples Services,Head of Education and Skills,071801,Selby Cottage Childcare Centre,Supplies and Services,324117,Provisions E324,04-Aug-2020,000007269606904,TESCO STORES 2371,5411,Catering costs - provisions,130.16,0.00,130.16
"Regeneration, Economy and Growth",Business Durham CL0850,030689,Inward Investment and Aftercare,Supplies and Services,342033,Computers and Communications,04-Aug-2020,000007271851944,STK Shutterstock,7333,Computer hardware,19.00,0.00,19.00
"Regeneration, Economy and Growth",Business Durham CL0850,030689,Inward Investment and Aftercare,Supplies and Services,342222,Computers and Communications,04-Aug-2020,000007271851948,FASTHOSTS INTERNET,4816,Comp hardware purch-network servers,6.34,0.00,6.34
Children and Young Peoples Services,Head of Education and Skills,071801,Selby Cottage Childcare Centre,Transport,235057,Public Transport,04-Aug-2020,000007271851954,CESTRIA VETERINARY CEN,742,Staff travelling,44.98,0.00,44.98
Resources BK0010,Strategy,060170,Equalities Diversity and Cohesion,Employees,040149,Recruitment Instruction and Training,04-Aug-2020,000007271851960,PAYPAL HARISEWELLC,5999,Training-all costs,15.00,0.00,15.00
Resources BK0010,Strategy,060170,Equalities Diversity and Cohesion,Employees,040149,Recruitment Instruction and Training,04-Aug-2020,000007271851968,PAYPAL HARISEWELLC,5999,Training-all costs,15.00,0.00,15.00
Children and Young Peoples Services,Head of Education and Skills,075021,Youth Employment Initiative,Supplies and Services,364301,Grants to Voluntary Organisations,04-Aug-2020,000007271852000,AMZNMktplace,5999,Hardship,2.19,0.37,1.82
Children and Young Peoples Services,Head of Childrens Social Care,085332,Middlestone Moor CU,Supplies and Services,324117,Provisions E324,04-Aug-2020,000007271852008,ASDA SUPERSTORE 4987,5411,Catering costs - provisions,53.67,0.00,53.67
Children and Young Peoples Services,Head of Childrens Social Care,085332,Middlestone Moor CU,Supplies and Services,324117,Provisions E324,04-Aug-2020,000007271852012,ALDI 74 774,5411,Catering costs - provisions,9.98,0.00,9.98
"Regeneration, Economy and Growth",Culture Sport and Tourism,054233,Bishop Auckland Town Hall Library,Supplies and Services,324117,Provisions E324,04-Aug-2020,000007271852090,TESCO STORES 2971,5411,Catering costs - provisions,56.86,0.00,56.86
"Regeneration, Economy and Growth",Culture Sport and Tourism,054233,Bishop Auckland Town Hall Library,Supplies and Services,324117,Provisions E324,04-Aug-2020,000007271852098,HERON FOODS LTD,5499,Catering costs - provisions,5.75,0.00,5.75
"Regeneration, Economy and Growth",Culture Sport and Tourism,054233,Bishop Auckland Town Hall Library,Supplies and Services,328041,Clothing uniforms and laundry E328,04-Aug-2020,000007271852116,POUNDLAND LTD 1390,5310,Clothing uniforms and laundry,10.00,0.00,10.00
Children and Young Peoples Services,Head of Early Help Inclusion & Vulnerable Children.,073998,TTF-Co-ordinator Grant,Transfer Payments,525033,Other,04-Aug-2020,000007271852140,J DODDS CARPETS LTD,5713,Grants to individuals,250.00,0.00,250.00
"Regeneration, Economy and Growth",Development and Housing,031576,B& B - Temp Accom,Supplies and Services,364320,Grants to Voluntary Organisations,04-Aug-2020,000007271852146,BUDGET H EXPRESS HOTEL,7011,Accommodation assistance,25.44,4.24,21.20
"Regeneration, Economy and Growth",Development and Housing,031576,B& B - Temp Accom,Supplies and Services,364320,Grants to Voluntary Organisations,04-Aug-2020,000007271852146 - 1,BUDGET H EXPRESS HOTEL,7011,Accommodation assistance,63.56,,63.56
"Regeneration, Economy and Growth",Development and Housing,031576,B& B - Temp Accom,Supplies and Services,364320,Grants to Voluntary Organisations,04-Aug-2020,000007271852150,BUDGET H EXPRESS HOTEL,7011,Accommodation assistance,25.44,4.24,21.20
"Regeneration, Economy and Growth",Development and Housing,031576,B& B - Temp Accom,Supplies and Services,364320,Grants to Voluntary Organisations,04-Aug-2020,000007271852150 - 1,BUDGET H EXPRESS HOTEL,7011,Accommodation assistance,63.56,,63.56
Children and Young Peoples Services,Head of Childrens Social Care,085334,West Rainton Satelite Home,Supplies and Services,304403,Equipment and Materials,04-Aug-2020,000007271852166,AMZNMktplace,5999,Other consumables,15.99,0.00,15.99
Resources BK0010,Business Support,052986,CYPS - Locality and Operational Support,Supplies and Services,304403,Equipment and Materials,04-Aug-2020,000007271852208,AMZNMKTPLACE AMAZON.CO,5999,Other consumables,11.95,0.00,11.95
"Regeneration, Economy and Growth",Development and Housing,031500,Housing Solutions - Core Team,Transport,235057,Public Transport,04-Aug-2020,000007271852238,BLUE LINE TAXIS,4121,Staff travelling,40.00,0.00,40.00
"Regeneration, Economy and Growth",Development and Housing,031500,Housing Solutions - Core Team,Supplies and Services,352001,Conference Expenses,04-Aug-2020,000007271852242,AYCLIFFE BIZ,7011,Conferencesseminars fees etc,152.00,0.00,152.00
Children and Young Peoples Services,Head of Childrens Social Care,085551,Short Break Services-Park Hse Sher,Supplies and Services,304999,Equipment and Materials,04-Aug-2020,000007271852248,HOME BARGAINS,5251,Misc equipment tools and materials,-0.80,0.00,-0.80
Children and Young Peoples Services,Head of Early Help Inclusion & Vulnerable Children.,088106,Ferryhill & N.Aycliffe 0-19 Targeted Family Support,Supplies and Services,364301,Grants to Voluntary Organisations,04-Aug-2020,000007271852256,TESCO ONLINE,5999,Hardship,14.99,0.00,14.99
Children and Young Peoples Services,Head of Early Help Inclusion & Vulnerable Children.,088108,Spennymoor & Shildon 0-19 Targeted Family Support,Supplies and Services,304259,Equipment and Materials,04-Aug-2020,000007271852266,SAINSBURYS 2199,5411,Equipment-purchase and rental,86.00,0.00,86.00
Children and Young Peoples Services,Head of Early Help Inclusion & Vulnerable Children.,088108,Spennymoor & Shildon 0-19 Targeted Family Support,Supplies and Services,304259,Equipment and Materials,04-Aug-2020,000007271852274,ASDA STORES,5411,Equipment-purchase and rental,743.50,0.00,743.50
Children and Young Peoples Services,Head of Early Help Inclusion & Vulnerable Children.,071569,Woodhouse Close Childrens Centre,Supplies and Services,324117,Provisions E324,04-Aug-2020,000007271852276,ASDA STORES,5411,Catering costs - provisions,61.00,0.00,61.00
Children and Young Peoples Services,Head of Early Help Inclusion & Vulnerable Children.,088108,Spennymoor & Shildon 0-19 Targeted Family Support,Supplies and Services,304259,Equipment and Materials,04-Aug-2020,000007271852278,LIDL GB BSHP AUCKLAND,5411,Equipment-purchase and rental,34.06,0.00,34.06
Children and Young Peoples Services,Head of Early Help Inclusion & Vulnerable Children.,088108,Spennymoor & Shildon 0-19 Targeted Family Support,Supplies and Services,304259,Equipment and Materials,04-Aug-2020,000007271852280,ARGOS LTD,5310,Equipment-purchase and rental,15.00,0.00,15.00
Children and Young Peoples Services,Head of Childrens Social Care,085331,New Lea Childrens Home,Supplies and Services,328041,Clothing uniforms and laundry E328,04-Aug-2020,000007271852284,ARGOS LTD,5310,Clothing uniforms and laundry,109.00,0.00,109.00
Neighbourhoods and Climate Change,Environmental Services,010367,C&G - South Grounds Maintenance,Supplies and Services,304999,Equipment and Materials,04-Aug-2020,000007271852302,LLOYD LTD,780,Misc equipment tools and materials,217.37,0.00,217.37
Children and Young Peoples Services,Head of Childrens Social Care,085352,Tow Law CU,Supplies and Services,348037,Subsistence E348,04-Aug-2020,000007271852338,KFC WEST AUCKLAND,5814,Subsistence,36.96,0.00,36.96
Children and Young Peoples Services,Head of Childrens Social Care,085352,Tow Law CU,Supplies and Services,324117,Provisions E324,04-Aug-2020,000007271852340,ASDA SUPERSTORE 4987,5411,Catering costs - provisions,136.20,0.00,136.20
Children and Young Peoples Services,Head of Childrens Social Care,085352,Tow Law CU,Supplies and Services,304221,Equipment and Materials,04-Aug-2020,000007271852344,B & Q 1120,5200,Direct materials,28.00,0.00,28.00
Neighbourhoods and Climate Change,Environmental Services,010301,C&G - North Grounds Maintenance,Supplies and Services,304999,Equipment and Materials,04-Aug-2020,000007271852374,GRALANDS WOODWORK SUPP,5251,Misc equipment tools and materials,68.69,0.00,68.69
Neighbourhoods and Climate Change,Environmental Services,010301,C&G - North Grounds Maintenance,Supplies and Services,304403,Equipment and Materials,04-Aug-2020,000007271852378,BESCOL,5231,Other consumables,113.53,0.00,113.53
Children and Young Peoples Services,Head of Early Help Inclusion & Vulnerable Children.,085956,Lumley,Supplies and Services,328041,Clothing uniforms and laundry E328,04-Aug-2020,000007271852402,BOOHOO.COM,5691,Clothing uniforms and laundry,71.99,0.00,71.99
Children and Young Peoples Services,Head of Early Help Inclusion & Vulnerable Children.,085965,Barnard,Supplies and Services,328041,Clothing uniforms and laundry E328,04-Aug-2020,000007271852408,FOOTASYLUM PLC,5691,Clothing uniforms and laundry,89.99,0.00,89.99
Children and Young Peoples Services,Head of Early Help Inclusion & Vulnerable Children.,085954,Walworth,Supplies and Services,384999,Miscellaneous Expenses,04-Aug-2020,000007271852410,Amazon.co.uk QG03J1MF5,5969,Other expenses,13.00,2.17,10.83
Children and Young Peoples Services,Head of Early Help Inclusion & Vulnerable Children.,085954,Walworth,Supplies and Services,384999,Miscellaneous Expenses,04-Aug-2020,000007271852412,AMZNMktplace,5999,Other expenses,7.98,0.00,7.98
Children and Young Peoples Services,Head of Early Help Inclusion & Vulnerable Children.,085965,Barnard,Supplies and Services,328041,Clothing uniforms and laundry E328,04-Aug-2020,000007271852414,JD SPORTS INTERNET,5941,Clothing uniforms and laundry,186.00,0.00,186.00
Resources BK0010,Business Support,052986,CYPS - Locality and Operational Support,Supplies and Services,328041,Clothing uniforms and laundry E328,04-Aug-2020,000007271852428,www.airydress.com,5621,Clothing uniforms and laundry,35.83,0.00,35.83
Resources BK0010,Business Support,052986,CYPS - Locality and Operational Support,Supplies and Services,308011,Furniture,04-Aug-2020,000007271852438,EDS BEDS,5712,Furniture repair and replacement,144.00,0.00,144.00
Resources BK0010,Business Support,052986,CYPS - Locality and Operational Support,Supplies and Services,304259,Equipment and Materials,04-Aug-2020,000007271852440,SUNDERLAND CC,9399,Equipment-purchase and rental,11.00,0.00,11.00
"Regeneration, Economy and Growth",Culture Sport and Tourism,054235,Bishop Auckland Town Hall Cafe,Supplies and Services,324117,Provisions E324,04-Aug-2020,000007271852446,JR HOLLAND FOODSERVICE,5499,Catering costs - provisions,16.70,0.00,16.70
Children and Young Peoples Services,Head of Childrens Social Care,085333,Coxhoe Satelite Home,Transport,235057,Public Transport,04-Aug-2020,000007271852458,PRINCE BISHOP SHOPPING,7523,Staff travelling,2.10,0.00,2.10
Children and Young Peoples Services,Head of Childrens Social Care,085352,Tow Law CU,Supplies and Services,384999,Miscellaneous Expenses,04-Aug-2020,000007271852464,MAKING FACES,7230,Other expenses,3.98,0.00,3.98
Children and Young Peoples Services,Head of Childrens Social Care,085352,Tow Law CU,Supplies and Services,348037,Subsistence E348,04-Aug-2020,000007271852470,BUFFET KING,5812,Subsistence,41.80,0.00,41.80
Children and Young Peoples Services,Head of Childrens Social Care,085352,Tow Law CU,Supplies and Services,324117,Provisions E324,04-Aug-2020,000007271852472,SAINSBURYS 0776,5411,Catering costs - provisions,126.46,0.00,126.46
Children and Young Peoples Services,Head of Childrens Social Care,085352,Tow Law CU,Supplies and Services,328041,Clothing uniforms and laundry E328,04-Aug-2020,000007271852474,THE WORKS,5310,Clothing uniforms and laundry,1.00,0.00,1.00
Children and Young Peoples Services,Head of Childrens Social Care,085342,16 Hickstead Rise (previously 9 Cedar Ave),Supplies and Services,324117,Provisions E324,04-Aug-2020,000007271852486,TESCO STORES 2916,5411,Catering costs - provisions,31.40,0.00,31.40
Children and Young Peoples Services,Head of Childrens Social Care,085342,16 Hickstead Rise (previously 9 Cedar Ave),Supplies and Services,324117,Provisions E324,04-Aug-2020,000007271852496,TESCO STORES 2916,5411,Catering costs - provisions,11.05,0.00,11.05
Children and Young Peoples Services,Head of Education and Skills,071802,Louisa Cent Nursery,Supplies and Services,324117,Provisions E324,04-Aug-2020,000007271852520,ASDA SUPERSTORE,5411,Catering costs - provisions,24.74,0.00,24.74
Resources BK0010,Business Support,052986,CYPS - Locality and Operational Support,Supplies and Services,328041,Clothing uniforms and laundry E328,04-Aug-2020,000007271852530,ARGOS LTD,5310,Clothing uniforms and laundry,118.95,0.00,118.95
Resources BK0010,Business Support,052986,CYPS - Locality and Operational Support,Supplies and Services,328041,Clothing uniforms and laundry E328,04-Aug-2020,000007271852532,ARGOS LTD,5310,Clothing uniforms and laundry,179.99,0.00,179.99
Children and Young Peoples Services,Head of Early Help Inclusion & Vulnerable Children.,088107,Ferryhill & Newton Aycliffe 0-19 Community Family Hub,Supplies and Services,324117,Provisions E324,04-Aug-2020,000007271852566,ASDA GROCERIES ONLINE,5411,Catering costs - provisions,2.15,0.00,2.15
Children and Young Peoples Services,Head of Early Help Inclusion & Vulnerable Children.,088107,Ferryhill & Newton Aycliffe 0-19 Community Family Hub,Supplies and Services,324117,Provisions E324,04-Aug-2020,000007271852570,ASDA GROCERIES ONLINE,5411,Catering costs - provisions,44.61,0.00,44.61
Children and Young Peoples Services,Head of Childrens Social Care,085352,Tow Law CU,Supplies and Services,324117,Provisions E324,04-Aug-2020,000007271852590,B&M 681 - DURHAM,5399,Catering costs - provisions,6.22,0.00,6.22
Resources BK0010,Digital and Customer Services,065335,School Services - Implementations,Supplies and Services,304639,Equipment and Materials,04-Aug-2020,000007274413586,AMZNMKTPLACE AMAZON.CO,5999,Technicians-supplies,7.99,0.00,7.99
Children and Young Peoples Services,Head of Early Help Inclusion & Vulnerable Children.,085961,Themed Week Activity,Supplies and Services,304403,Equipment and Materials,04-Aug-2020,000007274413596,AMZNMKTPLACE AMAZON.CO,5999,Other consumables,50.94,8.49,42.45
Children and Young Peoples Services,Head of Early Help Inclusion & Vulnerable Children.,085961,Themed Week Activity,Supplies and Services,304403,Equipment and Materials,04-Aug-2020,000007274413596 - 1,AMZNMKTPLACE AMAZON.CO,5999,Other consumables,0.03,,0.03
"Regeneration, Economy and Growth",Culture Sport and Tourism,054235,Bishop Auckland Town Hall Cafe,Supplies and Services,324117,Provisions E324,04-Aug-2020,000007274413606,BATLEYS PERTH,5300,Catering costs - provisions,40.20,6.70,33.50
"Regeneration, Economy and Growth",Culture Sport and Tourism,054235,Bishop Auckland Town Hall Cafe,Supplies and Services,324117,Provisions E324,04-Aug-2020,000007274413606 - 1,BATLEYS PERTH,5300,Catering costs - provisions,56.18,,56.18
Children and Young Peoples Services,Head of Childrens Social Care,085333,Coxhoe Satelite Home,Supplies and Services,348037,Subsistence E348,04-Aug-2020,000007274413634,REFORM PLACE,5813,Subsistence,24.67,0.00,24.67
Resources BK0010,Corporate Finance & Commercial Services,065109,Pensions 065109,Supplies and Services,384999,Miscellaneous Expenses,04-Aug-2020,000007274413682,WWW.NORTHYORKS.GOV.UK,9399,Other expenses,11.00,0.00,11.00
Children and Young Peoples Services,Head of Childrens Social Care,085501,Child Care Cases Legal Expenses,Supplies and Services,304403,Equipment and Materials,04-Aug-2020,000007277127496,DARLINGTON BC INTERNET,9399,Other consumables,11.00,0.00,11.00
Children and Young Peoples Services,Head of Early Help Inclusion & Vulnerable Children.,085956,Lumley,Supplies and Services,328041,Clothing uniforms and laundry E328,04-Aug-2020,000009189505817,BOOHOO.COM,5691,Clothing uniforms and laundry,-9.00,0.00,-9.00
Children and Young Peoples Services,Head of Early Help Inclusion & Vulnerable Children.,085962,Aycliffe Secure - Durham,Supplies and Services,384999,Miscellaneous Expenses,05-Aug-2020,000007271852420,Amazon.co.uk JJ0M42MG5,5969,Other expenses,13.99,2.33,11.66
Children and Young Peoples Services,Head of Childrens Social Care,085341,High Etherley Satelite Home,Supplies and Services,324117,Provisions E324,05-Aug-2020,000007274413342,TESCO STORES 6329,5411,Catering costs - provisions,230.98,0.00,230.98
Children and Young Peoples Services,Head of Education and Skills,071801,Selby Cottage Childcare Centre,Transport,235057,Public Transport,05-Aug-2020,000007274413350,CESTRIA VETERINARY CEN,742,Staff travelling,-12.06,0.00,-12.06
"Regeneration, Economy and Growth",Development and Housing,031599,Prevention Initiatives,Supplies and Services,352001,Conference Expenses,05-Aug-2020,000007274413356,THE HONEST LAWYER,7011,Conferencesseminars fees etc,310.80,0.00,310.80
Children and Young Peoples Services,Head of Education and Skills,075021,Youth Employment Initiative,Supplies and Services,364301,Grants to Voluntary Organisations,05-Aug-2020,000007274413358,CURRYS ONLINE,5732,Hardship,199.00,33.17,165.83
"Regeneration, Economy and Growth",Culture Sport and Tourism,030708,VCD - Marketing & Information,Supplies and Services,384199,Miscellaneous Expenses,05-Aug-2020,000007274413360,FACEBK R77EPTSUC2,7311,Other hired and contracted services,26.67,0.00,26.67
Children and Young Peoples Services,Head of Childrens Social Care,085332,Middlestone Moor CU,Supplies and Services,324117,Provisions E324,05-Aug-2020,000007274413362,TESCO STORES 2371,5411,Catering costs - provisions,129.38,0.00,129.38
Children and Young Peoples Services,Head of Childrens Social Care,085332,Middlestone Moor CU,Supplies and Services,304999,Equipment and Materials,05-Aug-2020,000007274413364,WILKO RETAIL LIMITED,5399,Misc equipment tools and materials,17.10,0.00,17.10
Neighbourhoods and Climate Change,Environmental Services,010367,C&G - South Grounds Maintenance,Supplies and Services,304403,Equipment and Materials,05-Aug-2020,000007274413392,AMZNMktplace,5999,Other consumables,67.20,0.00,67.20
"Regeneration, Economy and Growth",Development and Housing,030544,Rural Employability - Client Engagement,Employees,040149,Recruitment Instruction and Training,05-Aug-2020,000007274413400,SAFETYBUGTRAINING.,8220,Training-all costs,24.00,4.00,20.00
"Regeneration, Economy and Growth",Culture Sport and Tourism,054233,Bishop Auckland Town Hall Library,Supplies and Services,324117,Provisions E324,05-Aug-2020,000007274413406,TESCO STORES 2971,5411,Catering costs - provisions,37.27,0.00,37.27
"Regeneration, Economy and Growth",Culture Sport and Tourism,054233,Bishop Auckland Town Hall Library,Supplies and Services,324117,Provisions E324,05-Aug-2020,000007274413412,HERON FOODS LTD,5499,Catering costs - provisions,6.17,0.00,6.17
Children and Young Peoples Services,Head of Early Help Inclusion & Vulnerable Children.,085962,Aycliffe Secure - Durham,Supplies and Services,324117,Provisions E324,05-Aug-2020,000007274413416,TESCO STORES 6329,5411,Catering costs - provisions,69.02,0.00,69.02
Children and Young Peoples Services,Head of Early Help Inclusion & Vulnerable Children.,085956,Lumley,Supplies and Services,384999,Miscellaneous Expenses,05-Aug-2020,000007274413418,Amazon.co.uk 9I8KM7UK5,5969,Other expenses,19.95,3.33,16.62
Children and Young Peoples Services,Head of Early Help Inclusion & Vulnerable Children.,073998,TTF-Co-ordinator Grant,Transfer Payments,525033,Other,05-Aug-2020,000007274413420,AMZNMKTPLACE AMAZON.CO,5999,Grants to individuals,95.92,15.99,79.93
"Regeneration, Economy and Growth",Development and Housing,031576,B& B - Temp Accom,Supplies and Services,364320,Grants to Voluntary Organisations,05-Aug-2020,000007274413426,THE HONEST LAWYER,7011,Accommodation assistance,90.00,0.00,90.00
"Regeneration, Economy and Growth",Development and Housing,031576,B& B - Temp Accom,Supplies and Services,364320,Grants to Voluntary Organisations,05-Aug-2020,000007274413430,HI NEWCASTLE WASHI,7011,Accommodation assistance,230.00,0.00,230.00
"Regeneration, Economy and Growth",Development and Housing,031576,B& B - Temp Accom,Supplies and Services,364320,Grants to Voluntary Organisations,05-Aug-2020,000007274413432,HI NEWCASTLE WASHI,7011,Accommodation assistance,30.00,0.00,30.00
Resources BK0010,Digital and Customer Services,065481,Technical Services 065481,Supplies and Services,372009,Subscriptions E372,05-Aug-2020,000007274413438,NOMINET UK,7392,Subscriptions 372009,120.00,20.00,100.00
Children and Young Peoples Services,Head of Education and Skills,071732,Dean Bank Childcare,Supplies and Services,324117,Provisions E324,05-Aug-2020,000007274413444,ASDA GROCERIES ONLINE,5411,Catering costs - provisions,42.50,0.00,42.50
Children and Young Peoples Services,Head of Childrens Social Care,085334,West Rainton Satelite Home,Supplies and Services,384999,Miscellaneous Expenses,05-Aug-2020,000007274413454,Amazon.co.uk H25U02O85,5969,Other expenses,35.98,0.00,35.98
Children and Young Peoples Services,Head of Childrens Social Care,085341,High Etherley Satelite Home,Supplies and Services,348037,Subsistence E348,05-Aug-2020,000007274413458,SUBWAY,5814,Subsistence,9.48,0.00,9.48
Resources BK0010,Business Support,052986,CYPS - Locality and Operational Support,Transport,235057,Public Transport,05-Aug-2020,000007274413470,Stena Line Ltd,4111,Staff travelling,663.00,0.00,663.00
Neighbourhoods and Climate Change,Environmental Services,011060,C&G - Hardwick Park Catering,Supplies and Services,304245,Equipment and Materials,05-Aug-2020,000007274413472,AMZNMKTPLACE AMAZON.CO,5999,Materials,13.99,2.33,11.66
Neighbourhoods and Climate Change,Environmental Services,026591,C&G - Hardwick Park,Premises,145023,Cleaning and Domestic Supplies,05-Aug-2020,000007274413474,AMZNMktplace,5999,Cleaning and domestic materials,34.50,5.75,28.75
Neighbourhoods and Climate Change,Environmental Services,026591,C&G - Hardwick Park,Premises,145023,Cleaning and Domestic Supplies,05-Aug-2020,000007274413476,AMZNMktplace,5999,Cleaning and domestic materials,19.99,3.33,16.66
"Regeneration, Economy and Growth",Corporate Property and Land,021234,Catering - Locomotion,Supplies and Services,324117,Provisions E324,05-Aug-2020,000007274413480,JR HOLLAND FOODSERVICE,5499,Catering costs - provisions,44.53,0.00,44.53
"Regeneration, Economy and Growth",Development and Housing,031500,Housing Solutions - Core Team,Transport,235057,Public Transport,05-Aug-2020,000007274413486,Trainline,4112,Staff travelling,46.80,0.00,46.80
"Regeneration, Economy and Growth",Development and Housing,031576,B& B - Temp Accom,Supplies and Services,364320,Grants to Voluntary Organisations,05-Aug-2020,000007274413494,THE HONEST LAWYER,7011,Accommodation assistance,258.70,0.00,258.70
"Regeneration, Economy and Growth",Development and Housing,031576,B& B - Temp Accom,Supplies and Services,364320,Grants to Voluntary Organisations,05-Aug-2020,000007274413496,HI NEWCASTLE WASHI,7011,Accommodation assistance,65.00,0.00,65.00
Children and Young Peoples Services,Head of Early Help Inclusion & Vulnerable Children.,071569,Woodhouse Close Childrens Centre,Supplies and Services,304259,Equipment and Materials,05-Aug-2020,000007274413502,AMZNMktplace,5999,Equipment-purchase and rental,13.99,2.33,11.66
Children and Young Peoples Services,Head of Early Help Inclusion & Vulnerable Children.,088108,Spennymoor & Shildon 0-19 Targeted Family Support,Supplies and Services,304259,Equipment and Materials,05-Aug-2020,000007274413504,TESCO STORES 6329,5411,Equipment-purchase and rental,61.80,0.00,61.80
Children and Young Peoples Services,Head of Early Help Inclusion & Vulnerable Children.,088108,Spennymoor & Shildon 0-19 Targeted Family Support,Supplies and Services,384302,Miscellaneous Expenses,05-Aug-2020,000007274413506,Amazon.co.uk C71MD8A55,5969,Activity expenses,12.29,2.05,10.24
Children and Young Peoples Services,Head of Early Help Inclusion & Vulnerable Children.,088108,Spennymoor & Shildon 0-19 Targeted Family Support,Supplies and Services,384302,Miscellaneous Expenses,05-Aug-2020,000007274413508,Amazon.co.uk MC3BA1ZZ5,5969,Activity expenses,12.29,2.05,10.24
Children and Young Peoples Services,Head of Early Help Inclusion & Vulnerable Children.,088108,Spennymoor & Shildon 0-19 Targeted Family Support,Supplies and Services,384302,Miscellaneous Expenses,05-Aug-2020,000007274413510,Amazon.co.uk YS21F0UW5,5969,Activity expenses,12.29,2.05,10.24
Children and Young Peoples Services,Head of Early Help Inclusion & Vulnerable Children.,088108,Spennymoor & Shildon 0-19 Targeted Family Support,Supplies and Services,384302,Miscellaneous Expenses,05-Aug-2020,000007274413512,Amazon.co.uk Y809N2815,5969,Activity expenses,12.29,2.05,10.24
Children and Young Peoples Services,Head of Early Help Inclusion & Vulnerable Children.,088105,BA/BC/Crook 0-19 Community Family Hub,Supplies and Services,304403,Equipment and Materials,05-Aug-2020,000007274413514,AMZNMktplace,5999,Other consumables,27.96,4.68,23.28
Children and Young Peoples Services,Head of Early Help Inclusion & Vulnerable Children.,088105,BA/BC/Crook 0-19 Community Family Hub,Supplies and Services,364301,Grants to Voluntary Organisations,05-Aug-2020,000007274413518,FRANKS THE FLOORING ST,5713,Hardship,300.00,0.00,300.00
Children and Young Peoples Services,Head of Early Help Inclusion & Vulnerable Children.,088107,Ferryhill & Newton Aycliffe 0-19 Community Family Hub,Supplies and Services,364301,Grants to Voluntary Organisations,05-Aug-2020,000007274413520,FRANKS THE FLOORING ST,5713,Hardship,295.00,0.00,295.00
Children and Young Peoples Services,Head of Early Help Inclusion & Vulnerable Children.,088108,Spennymoor & Shildon 0-19 Targeted Family Support,Supplies and Services,304259,Equipment and Materials,05-Aug-2020,000007274413522,ASDA STORES,5411,Equipment-purchase and rental,62.00,0.00,62.00
Children and Young Peoples Services,Head of Early Help Inclusion & Vulnerable Children.,088105,BA/BC/Crook 0-19 Community Family Hub,Supplies and Services,304259,Equipment and Materials,05-Aug-2020,000007274413524,Amazon.co.uk NU3I29AH5,5969,Equipment-purchase and rental,24.46,4.08,20.38
Children and Young Peoples Services,Head of Early Help Inclusion & Vulnerable Children.,088105,BA/BC/Crook 0-19 Community Family Hub,Supplies and Services,304259,Equipment and Materials,05-Aug-2020,000007274413526,AMZNMktplace,5999,Equipment-purchase and rental,18.87,3.15,15.72
Children and Young Peoples Services,Head of Early Help Inclusion & Vulnerable Children.,088108,Spennymoor & Shildon 0-19 Targeted Family Support,Supplies and Services,304259,Equipment and Materials,05-Aug-2020,000007274413530,POUNDLAND LTD 1554,5310,Equipment-purchase and rental,20.00,0.00,20.00
Neighbourhoods and Climate Change,Environmental Services,010367,C&G - South Grounds Maintenance,Supplies and Services,304221,Equipment and Materials,05-Aug-2020,000007274413534,CARRS BILLINGTON SPENN,5599,Direct materials,213.60,0.00,213.60
Children and Young Peoples Services,Head of Childrens Social Care,085333,Coxhoe Satelite Home,Transport,235057,Public Transport,05-Aug-2020,000007274413538,Arriva Durham County,4111,Staff travelling,9.20,0.00,9.20
"Regeneration, Economy and Growth",Corporate Property and Land,030691,Catering - Durham Dales Centre,Premises,145009,Cleaning and Domestic Supplies,05-Aug-2020,000007274413564,ALLIANCE DISPOSABLES L,2842,Other cleaning and domestic costs,269.16,44.86,224.30
"Regeneration, Economy and Growth",Corporate Property and Land,030691,Catering - Durham Dales Centre,Premises,145009,Cleaning and Domestic Supplies,05-Aug-2020,000007274413564 - 1,ALLIANCE DISPOSABLES L,2842,Other cleaning and domestic costs,27.70,,27.70
Adult and Health Services,Head of Adults,055643,Hawthorn House LD Respite Unit,Supplies and Services,324117,Provisions E324,05-Aug-2020,000007274413566,JR HOLLAND FOODSERVICE,5499,Catering costs - provisions,14.52,0.00,14.52
Adult and Health Services,Head of Adults,055643,Hawthorn House LD Respite Unit,Supplies and Services,324117,Provisions E324,05-Aug-2020,000007274413568,JR HOLLAND FOODSERVICE,5499,Catering costs - provisions,9.74,0.00,9.74
Children and Young Peoples Services,Head of Early Help Inclusion & Vulnerable Children.,085962,Aycliffe Secure - Durham,Supplies and Services,384999,Miscellaneous Expenses,05-Aug-2020,000007274413598,Amazon.co.uk JV21Z5AV5,5969,Other expenses,25.99,4.33,21.66
Children and Young Peoples Services,Head of Early Help Inclusion & Vulnerable Children.,085961,Themed Week Activity,Supplies and Services,384999,Miscellaneous Expenses,05-Aug-2020,000007274413600,Amazon.co.uk 1D4WT5HN5,5969,Other expenses,25.99,4.33,21.66
"Regeneration, Economy and Growth",Culture Sport and Tourism,054235,Bishop Auckland Town Hall Cafe,Supplies and Services,324117,Provisions E324,05-Aug-2020,000007274413610,JR HOLLAND FOODSERVICE,5499,Catering costs - provisions,181.30,0.00,181.30
Children and Young Peoples Services,Head of Childrens Social Care,085333,Coxhoe Satelite Home,Supplies and Services,348037,Subsistence E348,05-Aug-2020,000007274413622,BLUE MARLIN,5814,Subsistence,12.80,0.00,12.80
Children and Young Peoples Services,Head of Childrens Social Care,085333,Coxhoe Satelite Home,Supplies and Services,348037,Subsistence E348,05-Aug-2020,000007274413624,SMITHS SEAVIEW CAFE,5812,Subsistence,5.10,0.00,5.10
Children and Young Peoples Services,Head of Childrens Social Care,085333,Coxhoe Satelite Home,Supplies and Services,324117,Provisions E324,05-Aug-2020,000007274413626,NYA Albert Sheeran,5499,Catering costs - provisions,10.00,0.00,10.00
Children and Young Peoples Services,Head of Childrens Social Care,085333,Coxhoe Satelite Home,Supplies and Services,328041,Clothing uniforms and laundry E328,05-Aug-2020,000007274413628,QUASAR SOUTH SHIELDS,7996,Clothing uniforms and laundry,10.00,0.00,10.00
Children and Young Peoples Services,Head of Childrens Social Care,085333,Coxhoe Satelite Home,Supplies and Services,328041,Clothing uniforms and laundry E328,05-Aug-2020,000007274413630,QUASAR SOUTH SHIELDS,7996,Clothing uniforms and laundry,5.00,0.00,5.00
Adult and Health Services,Head of Adults,055301,Stanley Pathways,Supplies and Services,324117,Provisions E324,05-Aug-2020,000007274413632,SAINSBURYS SACAT 0776,5411,Catering costs - provisions,5.40,0.00,5.40
Children and Young Peoples Services,Head of Childrens Social Care,085333,Coxhoe Satelite Home,Supplies and Services,304259,Equipment and Materials,05-Aug-2020,000007274413636,HALFORDS ON LINE,5940,Equipment-purchase and rental,100.00,0.00,100.00
Children and Young Peoples Services,Head of Childrens Social Care,085342,16 Hickstead Rise (previously 9 Cedar Ave),Supplies and Services,324117,Provisions E324,05-Aug-2020,000007274413638,TESCO STORES 2916,5411,Catering costs - provisions,26.45,0.00,26.45
Children and Young Peoples Services,Head of Childrens Social Care,085342,16 Hickstead Rise (previously 9 Cedar Ave),Supplies and Services,348037,Subsistence E348,05-Aug-2020,000007274413640,MCDONALDS,5812,Subsistence,4.93,0.00,4.93
Children and Young Peoples Services,Head of Childrens Social Care,085342,16 Hickstead Rise (previously 9 Cedar Ave),Supplies and Services,348037,Subsistence E348,05-Aug-2020,000007274413642,MCDONALDS,5812,Subsistence,17.78,0.00,17.78
Children and Young Peoples Services,Head of Childrens Social Care,085352,Tow Law CU,Supplies and Services,348037,Subsistence E348,05-Aug-2020,000007274413680,MCDONALDS,5812,Subsistence,13.85,0.00,13.85
Resources BK0010,Business Support,052986,CYPS - Locality and Operational Support,Employees,040149,Recruitment Instruction and Training,05-Aug-2020,000007277127774,PREMIER INN,3811,Training-all costs,151.46,0.00,151.46
Children and Young Peoples Services,Head of Early Help Inclusion & Vulnerable Children.,088106,Ferryhill & N.Aycliffe 0-19 Targeted Family Support,Supplies and Services,364301,Grants to Voluntary Organisations,05-Aug-2020,000007277127904,Durham County CNCL,9399,Hardship,46.00,0.00,46.00
Children and Young Peoples Services,Head of Early Help Inclusion & Vulnerable Children.,088116,South Area - Teenage Parent Programme,Supplies and Services,384302,Miscellaneous Expenses,05-Aug-2020,000007277127914,AMZNMKTPLACE AMAZON.CO,5999,Activity expenses,13.99,2.33,11.66
"Regeneration, Economy and Growth",Corporate Property and Land,020061,Bldg Serv - R&M Div 61 - Building,Supplies and Services,304221,Equipment and Materials,05-Aug-2020,000007277127936,PAYPAL WANNA LTD,7399,Direct materials,387.95,64.66,323.29
"Regeneration, Economy and Growth",Development and Housing,030773,CLLD North,Supplies and Services,304259,Equipment and Materials,05-Aug-2020,000009146583877,HARTLEPOOL BC,9399,Equipment-purchase and rental,11.00,0.00,11.00
Children and Young Peoples Services,Head of Childrens Social Care,085334,West Rainton Satelite Home,Supplies and Services,304403,Equipment and Materials,06-Aug-2020,000007274413576,AMZNMktplace,5999,Other consumables,72.41,0.00,72.41
Resources BK0010,Business Support,052986,CYPS - Locality and Operational Support,Supplies and Services,384999,Miscellaneous Expenses,06-Aug-2020,000007274413602,Amazon.co.uk 2R9AE8435,5969,Other expenses,167.88,0.00,167.88
"Regeneration, Economy and Growth",Business Durham CL0850,030689,Inward Investment and Aftercare,Supplies and Services,304999,Equipment and Materials,06-Aug-2020,000007277127450,LINKEDIN-579 9989024,5968,Misc equipment tools and materials,8.83,0.00,8.83
Children and Young Peoples Services,Head of Education and Skills,071801,Selby Cottage Childcare Centre,Supplies and Services,324117,Provisions E324,06-Aug-2020,000007277127466,TESCO STORES 2278,5411,Catering costs - provisions,120.62,0.00,120.62
Children and Young Peoples Services,Head of Education and Skills,071801,Selby Cottage Childcare Centre,Supplies and Services,324117,Provisions E324,06-Aug-2020,000007277127468,JR HOLLAND FOODSERVICE,5499,Catering costs - provisions,392.40,0.00,392.40
Children and Young Peoples Services,Head of Education and Skills,071801,Selby Cottage Childcare Centre,Supplies and Services,324117,Provisions E324,06-Aug-2020,000007277127474,ASDA GROCERIES ONLINE,5411,Catering costs - provisions,180.12,0.00,180.12
Children and Young Peoples Services,Head of Education and Skills,071801,Selby Cottage Childcare Centre,Supplies and Services,324117,Provisions E324,06-Aug-2020,000007277127478,ASDA GROCERIES ONLINE,5411,Catering costs - provisions,-4.15,0.00,-4.15
Resources BK0010,Corporate Finance & Commercial Services,066820,Occupational Health Service,Supplies and Services,372009,Subscriptions E372,06-Aug-2020,000007277127492,WWW.FOM.AC.UK,8699,Subscriptions 372009,405.00,0.00,405.00
Children and Young Peoples Services,Head of Childrens Social Care,085501,Child Care Cases Legal Expenses,Supplies and Services,304403,Equipment and Materials,06-Aug-2020,000007277127502,DARLINGTON BC INTERNET,9399,Other consumables,11.00,0.00,11.00
Children and Young Peoples Services,Head of Education and Skills,075021,Youth Employment Initiative,Supplies and Services,364301,Grants to Voluntary Organisations,06-Aug-2020,000007277127508,AMZNMktplace,5999,Hardship,5.99,1.00,4.99
Children and Young Peoples Services,Head of Education and Skills,075021,Youth Employment Initiative,Supplies and Services,364301,Grants to Voluntary Organisations,06-Aug-2020,000007277127514,NEXT DIRECTORY,5965,Hardship,57.99,0.00,57.99
Children and Young Peoples Services,Head of Education and Skills,075021,Youth Employment Initiative,Supplies and Services,364301,Grants to Voluntary Organisations,06-Aug-2020,000007277127518,AMZNMktplace,5999,Hardship,7.82,0.00,7.82
Children and Young Peoples Services,Head of Education and Skills,075021,Youth Employment Initiative,Supplies and Services,364301,Grants to Voluntary Organisations,06-Aug-2020,000007277127522,SCREWFIX DIRECT,5200,Hardship,4.98,0.83,4.15
Children and Young Peoples Services,Head of Education and Skills,075021,Youth Employment Initiative,Supplies and Services,364301,Grants to Voluntary Organisations,06-Aug-2020,000007277127522 - 1,SCREWFIX DIRECT,5200,Hardship,30.01,,30.01
"Regeneration, Economy and Growth",Culture Sport and Tourism,030712,VCD - Project Delivery,Supplies and Services,384199,Miscellaneous Expenses,06-Aug-2020,000007277127526,WWW.NIELSENISBNSTORE.C,5999,Other hired and contracted services,89.00,14.83,74.17
Children and Young Peoples Services,Head of Childrens Social Care,085342,16 Hickstead Rise (previously 9 Cedar Ave),Supplies and Services,324117,Provisions E324,06-Aug-2020,000007277127542,TESCO STORES 2916,5411,Catering costs - provisions,35.18,0.00,35.18
"Regeneration, Economy and Growth",Culture Sport and Tourism,054233,Bishop Auckland Town Hall Library,Supplies and Services,324117,Provisions E324,06-Aug-2020,000007277127618,TESCO STORES 2971,5411,Catering costs - provisions,42.21,0.00,42.21
"Regeneration, Economy and Growth",Culture Sport and Tourism,054233,Bishop Auckland Town Hall Library,Supplies and Services,324117,Provisions E324,06-Aug-2020,000007277127624,HERON FOODS LTD,5499,Catering costs - provisions,6.39,0.00,6.39
"Regeneration, Economy and Growth",Culture Sport and Tourism,054233,Bishop Auckland Town Hall Library,Supplies and Services,328041,Clothing uniforms and laundry E328,06-Aug-2020,000007277127626,W BOYES & CO LTD BISHO,5310,Clothing uniforms and laundry,13.94,0.00,13.94
"Regeneration, Economy and Growth",Culture Sport and Tourism,054233,Bishop Auckland Town Hall Library,Supplies and Services,324117,Provisions E324,06-Aug-2020,000007277127628,WM MORRISONS STORE,5411,Catering costs - provisions,8.50,0.00,8.50
Children and Young Peoples Services,Head of Early Help Inclusion & Vulnerable Children.,073998,TTF-Co-ordinator Grant,Transfer Payments,525033,Other,06-Aug-2020,000007277127640,AMZNMKTPLACE AMAZON.CO,5999,Grants to individuals,239.92,39.99,199.93
Children and Young Peoples Services,Head of Early Help Inclusion & Vulnerable Children.,088109,Spennymoor & Shildon 0-19 Community Family Hub,Supplies and Services,324117,Provisions E324,06-Aug-2020,000007277127654,B&M 035 - SHILDON,5399,Catering costs - provisions,4.38,0.00,4.38
Children and Young Peoples Services,Head of Early Help Inclusion & Vulnerable Children.,088109,Spennymoor & Shildon 0-19 Community Family Hub,Supplies and Services,328041,Clothing uniforms and laundry E328,06-Aug-2020,000007277127658,ARGOS LTD,5310,Clothing uniforms and laundry,45.98,0.00,45.98
Children and Young Peoples Services,Head of Early Help Inclusion & Vulnerable Children.,088113,Seaham  0-19 Community Family Hub,Supplies and Services,324117,Provisions E324,06-Aug-2020,000007277127696,ASDA STORES,5411,Catering costs - provisions,66.36,0.00,66.36
"Regeneration, Economy and Growth",Development and Housing,031500,Housing Solutions - Core Team,Supplies and Services,348037,Subsistence E348,06-Aug-2020,000007277127724,HOTEL 52 STANLEY,5812,Subsistence,400.00,0.00,400.00
"Regeneration, Economy and Growth",Development and Housing,031500,Housing Solutions - Core Team,Supplies and Services,348037,Subsistence E348,06-Aug-2020,000007277127730,HOTEL 52 STANLEY,5812,Subsistence,362.15,0.00,362.15
"Regeneration, Economy and Growth",Development and Housing,031500,Housing Solutions - Core Team,Supplies and Services,352001,Conference Expenses,06-Aug-2020,000007277127734,WWW.ROOMZZZ.COM,7011,Conferencesseminars fees etc,500.00,0.00,500.00
"Regeneration, Economy and Growth",Development and Housing,031500,Housing Solutions - Core Team,Supplies and Services,352001,Conference Expenses,06-Aug-2020,000007277127738,WWW.ROOMZZZ.COM,7011,Conferencesseminars fees etc,130.00,0.00,130.00
"Regeneration, Economy and Growth",Development and Housing,031500,Housing Solutions - Core Team,Supplies and Services,352001,Conference Expenses,06-Aug-2020,000007277127744,HI NEWCASTLE WASHI,7011,Conferencesseminars fees etc,195.00,0.00,195.00
Neighbourhoods and Climate Change,Environmental Services,026591,C&G - Hardwick Park,Supplies and Services,304245,Equipment and Materials,06-Aug-2020,000007277127782,Amazon.co.uk IA94O9FM5,5969,Materials,6.49,1.08,5.41
Neighbourhoods and Climate Change,Environmental Services,011060,C&G - Hardwick Park Catering,Supplies and Services,324117,Provisions E324,06-Aug-2020,000007277127800,JR HOLLAND FOODSERVICE,5499,Catering costs - provisions,54.64,0.00,54.64
"Regeneration, Economy and Growth",Corporate Property and Land,021234,Catering - Locomotion,Supplies and Services,324117,Provisions E324,06-Aug-2020,000007277127834,JR HOLLAND FOODSERVICE,5499,Catering costs - provisions,27.89,0.00,27.89
"Regeneration, Economy and Growth",Development and Housing,031576,B& B - Temp Accom,Supplies and Services,364320,Grants to Voluntary Organisations,06-Aug-2020,000007277127894,AYCLIFFE BIZ,7011,Accommodation assistance,228.00,0.00,228.00
Children and Young Peoples Services,Head of Early Help Inclusion & Vulnerable Children.,088116,South Area - Teenage Parent Programme,Supplies and Services,384302,Miscellaneous Expenses,06-Aug-2020,000007277127910,AMZNMKTPLACE AMAZON.CO,5999,Activity expenses,21.99,3.68,18.31
Children and Young Peoples Services,Head of Early Help Inclusion & Vulnerable Children.,071569,Woodhouse Close Childrens Centre,Supplies and Services,304259,Equipment and Materials,06-Aug-2020,000007277127918,AMZNMKTPLACE AMAZON.CO,5999,Equipment-purchase and rental,5.95,0.99,4.96
"Regeneration, Economy and Growth",Corporate Property and Land,030691,Catering - Durham Dales Centre,Supplies and Services,324117,Provisions E324,06-Aug-2020,000007277128072,JR HOLLAND FOODSERVICE,5499,Catering costs - provisions,77.52,0.00,77.52
Children and Young Peoples Services,Head of Childrens Social Care,085334,West Rainton Satelite Home,Supplies and Services,324117,Provisions E324,06-Aug-2020,000007277128142,ALDI,5411,Catering costs - provisions,8.74,0.00,8.74
Neighbourhoods and Climate Change,Environmental Services,010301,C&G - North Grounds Maintenance,Supplies and Services,304221,Equipment and Materials,06-Aug-2020,000007277128170,SCREWFIX CONSETT,5211,Direct materials,32.99,0.00,32.99
Children and Young Peoples Services,Head of Early Help Inclusion & Vulnerable Children.,074000,TTF-Attachment and Results,Transfer Payments,525033,Other,06-Aug-2020,000007277128182,J DODDS CARPETS LTD,5713,Grants to individuals,150.00,0.00,150.00
"Regeneration, Economy and Growth",Culture Sport and Tourism,054235,Bishop Auckland Town Hall Cafe,Supplies and Services,324117,Provisions E324,06-Aug-2020,000007277128306,JR HOLLAND FOODSERVICE,5499,Catering costs - provisions,72.76,0.00,72.76
Children and Young Peoples Services,Head of Childrens Social Care,085333,Coxhoe Satelite Home,Supplies and Services,324117,Provisions E324,06-Aug-2020,000007277128336,TESCO STORES 2371,5411,Catering costs - provisions,69.34,0.00,69.34
Children and Young Peoples Services,Head of Childrens Social Care,085333,Coxhoe Satelite Home,Supplies and Services,324117,Provisions E324,06-Aug-2020,000007277128340,TESCO STORES 2371,5411,Catering costs - provisions,47.70,0.00,47.70
Children and Young Peoples Services,Head of Childrens Social Care,085333,Coxhoe Satelite Home,Supplies and Services,338099,Services,06-Aug-2020,000007277128344,VALE OF PKRNG CARA,7033,Other services,60.00,0.00,60.00
Children and Young Peoples Services,Head of Childrens Social Care,085333,Coxhoe Satelite Home,Supplies and Services,338099,Services,06-Aug-2020,000007277128348,VALE OF PKRNG CARA,7033,Other services,26.00,0.00,26.00
Children and Young Peoples Services,Head of Childrens Social Care,085333,Coxhoe Satelite Home,Supplies and Services,328041,Clothing uniforms and laundry E328,06-Aug-2020,000007277128354,The Range,5311,Clothing uniforms and laundry,23.42,0.00,23.42
Adult and Health Services,Head of Adults,055301,Stanley Pathways,Supplies and Services,324117,Provisions E324,06-Aug-2020,000007277128362,WILKO RETAIL LIMITED,5399,Catering costs - provisions,4.50,0.00,4.50
Adult and Health Services,Head of Adults,055301,Stanley Pathways,Supplies and Services,328041,Clothing uniforms and laundry E328,06-Aug-2020,000007277128370,THE WORKS,5310,Clothing uniforms and laundry,32.00,0.00,32.00
Children and Young Peoples Services,Head of Education and Skills,071802,Louisa Cent Nursery,Supplies and Services,324117,Provisions E324,06-Aug-2020,000007277128438,ASDA SUPERSTORE,5411,Catering costs - provisions,92.10,0.00,92.10
Resources BK0010,Corporate Finance & Commercial Services,069800,Corporate Procurement 069800,Employees,040149,Recruitment Instruction and Training,06-Aug-2020,000007277128506,WWW.CIPS.ORG,8699,Training-all costs,137.00,0.00,137.00
"Regeneration, Economy and Growth",Development and Housing,031500,Housing Solutions - Core Team,Supplies and Services,304999,Equipment and Materials,06-Aug-2020,000007277128518,DUNCAN BELTON TA K,6513,Misc equipment tools and materials,350.00,0.00,350.00
Children and Young Peoples Services,Head of Childrens Social Care,085341,High Etherley Satelite Home,Supplies and Services,348037,Subsistence E348,06-Aug-2020,000007277128546,THE MERRY MONK,5812,Subsistence,14.47,0.00,14.47
Children and Young Peoples Services,Head of Childrens Social Care,085341,High Etherley Satelite Home,Supplies and Services,348037,Subsistence E348,06-Aug-2020,000007277128552,MCDONALD`S,5812,Subsistence,17.16,0.00,17.16
Children and Young Peoples Services,Head of Childrens Social Care,085341,High Etherley Satelite Home,Supplies and Services,348037,Subsistence E348,06-Aug-2020,000007277128558,MCDONALDS 1555,5814,Subsistence,7.87,0.00,7.87
Adult and Health Services,Head of Adults,055309,Peterlee Pathways,Supplies and Services,304403,Equipment and Materials,06-Aug-2020,000007277128562,AMZNMktplace,5999,Other consumables,11.46,1.92,9.54
Children and Young Peoples Services,Head of Education and Skills,075021,Youth Employment Initiative,Supplies and Services,364301,Grants to Voluntary Organisations,06-Aug-2020,000009146583895,WWW.BURTON.CO.UK,5691,Hardship,92.06,0.00,92.06
Neighbourhoods and Climate Change,Environmental Services,011060,C&G - Hardwick Park Catering,Supplies and Services,324117,Provisions E324,06-Aug-2020,000009146584493,BATLEYS PERTH,5300,Catering costs - provisions,354.96,59.16,295.80
Neighbourhoods and Climate Change,Environmental Services,011060,C&G - Hardwick Park Catering,Supplies and Services,324117,Provisions E324,06-Aug-2020,000009146584493 - 1,BATLEYS PERTH,5300,Catering costs - provisions,249.54,,249.54
Neighbourhoods and Climate Change,Environmental Services,011060,C&G - Hardwick Park Catering,Supplies and Services,324117,Provisions E324,06-Aug-2020,000009146584499,BATLEYS PERTH,5300,Catering costs - provisions,157.62,26.27,131.35
Neighbourhoods and Climate Change,Environmental Services,011060,C&G - Hardwick Park Catering,Supplies and Services,324117,Provisions E324,06-Aug-2020,000009146584499 - 1,BATLEYS PERTH,5300,Catering costs - provisions,0.08,,0.08
"Regeneration, Economy and Growth",Corporate Property and Land,021234,Catering - Locomotion,Supplies and Services,324117,Provisions E324,06-Aug-2020,000009146584601,BATLEYS PERTH,5300,Catering costs - provisions,227.82,37.97,189.85
"Regeneration, Economy and Growth",Corporate Property and Land,021234,Catering - Locomotion,Supplies and Services,324117,Provisions E324,06-Aug-2020,000009146584601 - 1,BATLEYS PERTH,5300,Catering costs - provisions,21.24,,21.24
"Regeneration, Economy and Growth",Corporate Property and Land,021234,Catering - Locomotion,Supplies and Services,324117,Provisions E324,06-Aug-2020,000009146584609,BATLEYS PERTH,5300,Catering costs - provisions,33.66,5.61,28.05
"Regeneration, Economy and Growth",Corporate Property and Land,021234,Catering - Locomotion,Supplies and Services,324117,Provisions E324,06-Aug-2020,000009146584609 - 1,BATLEYS PERTH,5300,Catering costs - provisions,0.03,,0.03
Children and Young Peoples Services,Head of Early Help Inclusion & Vulnerable Children.,071569,Woodhouse Close Childrens Centre,Supplies and Services,304259,Equipment and Materials,06-Aug-2020,000009146584679,AMZNMKTPLACE AMAZON.CO,5999,Equipment-purchase and rental,10.99,1.83,9.16
"Regeneration, Economy and Growth",Corporate Property and Land,030691,Catering - Durham Dales Centre,Supplies and Services,324117,Provisions E324,06-Aug-2020,000009146584805,BATLEYS PERTH,5300,Catering costs - provisions,110.22,18.37,91.85
"Regeneration, Economy and Growth",Corporate Property and Land,030691,Catering - Durham Dales Centre,Supplies and Services,324117,Provisions E324,06-Aug-2020,000009146584805 - 1,BATLEYS PERTH,5300,Catering costs - provisions,80.29,,80.29
Children and Young Peoples Services,Head of Childrens Social Care,085333,Coxhoe Satelite Home,Supplies and Services,304403,Equipment and Materials,06-Aug-2020,000009146585017,AMZNMKTPLACE AMAZON.CO,5999,Other consumables,23.82,3.97,19.85
Resources BK0010,Business Support,052986,CYPS - Locality and Operational Support,Supplies and Services,304259,Equipment and Materials,06-Aug-2020,000009146585055,WWW.DURHAM.GOV.UK,9399,Equipment-purchase and rental,11.00,0.00,11.00
Resources BK0010,Business Support,052986,CYPS - Locality and Operational Support,Supplies and Services,304259,Equipment and Materials,06-Aug-2020,000009146585057,WWW.DURHAM.GOV.UK,9399,Equipment-purchase and rental,11.00,0.00,11.00
"Regeneration, Economy and Growth",Corporate Property and Land,021235,Catering - Wharton Park,Supplies and Services,324117,Provisions E324,06-Aug-2020,000009146585103,BATLEYS PERTH,5300,Catering costs - provisions,48.36,8.06,40.30
"Regeneration, Economy and Growth",Corporate Property and Land,021235,Catering - Wharton Park,Supplies and Services,324117,Provisions E324,06-Aug-2020,000009146585103 - 1,BATLEYS PERTH,5300,Catering costs - provisions,21.48,,21.48
Children and Young Peoples Services,Head of Education and Skills,075021,Youth Employment Initiative,Supplies and Services,364301,Grants to Voluntary Organisations,06-Aug-2020,000009158945415,NEXT DIRECTORY,5965,Hardship,-3.99,0.00,-3.99
Children and Young Peoples Services,Head of Early Help Inclusion & Vulnerable Children.,085962,Aycliffe Secure - Durham,Supplies and Services,328041,Clothing uniforms and laundry E328,07-Aug-2020,000007277128298,Zalando Payments,5651,Clothing uniforms and laundry,67.99,0.00,67.99
"Regeneration, Economy and Growth",Business Durham CL0850,030689,Inward Investment and Aftercare,Supplies and Services,304999,Equipment and Materials,07-Aug-2020,000009146583797,LINKEDIN-485 6728486,5968,Misc equipment tools and materials,15.00,0.00,15.00
Children and Young Peoples Services,Head of Education and Skills,071801,Selby Cottage Childcare Centre,Transport,235057,Public Transport,07-Aug-2020,000009146583823,CESTRIA VETERINARY CEN,742,Staff travelling,6.20,0.00,6.20
Resources BK0010,Digital and Customer Services,070110,School Services - Man Info System (MIS) Support Team,Supplies and Services,342053,Computers and Communications,07-Aug-2020,000009146583857,WPMU DEV INCSUBFEE.COM,7372,Computer software,14.60,0.00,14.60
Children and Young Peoples Services,Head of Childrens Social Care,085501,Child Care Cases Legal Expenses,Supplies and Services,304403,Equipment and Materials,07-Aug-2020,000009146583869,STOCKTON BOROUGH COUNC,9399,Other consumables,90.00,0.00,90.00
"Regeneration, Economy and Growth",Development and Housing,030735,Economic Development - Employability,Supplies and Services,304403,Equipment and Materials,07-Aug-2020,000009146583881,AMZNMKTPLACE AMAZON.CO,5999,Other consumables,29.99,0.00,29.99
Children and Young Peoples Services,Head of Education and Skills,075021,Youth Employment Initiative,Supplies and Services,364301,Grants to Voluntary Organisations,07-Aug-2020,000009146583887,WWW.DAVINESONLINE.COM,7230,Hardship,100.00,0.00,100.00
Children and Young Peoples Services,Head of Education and Skills,075021,Youth Employment Initiative,Supplies and Services,364301,Grants to Voluntary Organisations,07-Aug-2020,000009146583891,WWW.LABEEBY.CO.UK,5691,Hardship,70.59,11.77,58.82
Children and Young Peoples Services,Head of Childrens Social Care,085352,Tow Law CU,Supplies and Services,304403,Equipment and Materials,07-Aug-2020,000009146583933,MCDONALDS,5812,Other consumables,9.55,0.00,9.55
Children and Young Peoples Services,Head of Childrens Social Care,085380,Operations Manager LAC Resources,Supplies and Services,308011,Furniture,07-Aug-2020,000009146584035,WF WAYFAIR 3390295744,5712,Furniture repair and replacement,707.42,0.00,707.42
Children and Young Peoples Services,Head of Childrens Social Care,085380,Operations Manager LAC Resources,Supplies and Services,338048,Services,07-Aug-2020,000009146584039,NEWCASTLE CC,9222,Court costs 338048,170.00,0.00,170.00
Children and Young Peoples Services,Head of Early Help Inclusion & Vulnerable Children.,085962,Aycliffe Secure - Durham,Supplies and Services,304403,Equipment and Materials,07-Aug-2020,000009146584127,CEX LTD,5065,Other consumables,7.95,0.00,7.95
Children and Young Peoples Services,Head of Early Help Inclusion & Vulnerable Children.,085954,Walworth,Supplies and Services,304403,Equipment and Materials,07-Aug-2020,000009146584131,AMZNMKTPLACE AMAZON.CO,5999,Other consumables,20.99,3.50,17.49
Children and Young Peoples Services,Head of Early Help Inclusion & Vulnerable Children.,073998,TTF-Co-ordinator Grant,Transfer Payments,525033,Other,07-Aug-2020,000009146584149,Amazon.co.uk 858YV9WT5,5969,Grants to individuals,177.90,29.65,148.25
Neighbourhoods and Climate Change,Environmental Services,010551,Fleet - Chilton Fleet,Transport,215013,Running Costs of Vehicles,07-Aug-2020,000009146584199,DVLA VEHICLE TAX,9311,Vehicle Excise Duty (VED),267.50,0.00,267.50
Neighbourhoods and Climate Change,Environmental Services,010561,Fleet - Morrison Busty Fleet,Transport,215013,Running Costs of Vehicles,07-Aug-2020,000009146584201,DVLA VEHICLE TAX,9311,Vehicle Excise Duty (VED),267.50,0.00,267.50
Neighbourhoods and Climate Change,Environmental Services,010900,Fleet - Meadowfield Fleet,Transport,215013,Running Costs of Vehicles,07-Aug-2020,000009146584205,DVLA VEHICLE TAX,9311,Vehicle Excise Duty (VED),267.50,0.00,267.50
Neighbourhoods and Climate Change,Environmental Services,010900,Fleet - Meadowfield Fleet,Transport,215013,Running Costs of Vehicles,07-Aug-2020,000009146584217,DVLA VEHICLE TAX,9311,Vehicle Excise Duty (VED),222.50,0.00,222.50
Neighbourhoods and Climate Change,Environmental Services,010864,Fleet - Hackworth Road Fleet,Transport,215013,Running Costs of Vehicles,07-Aug-2020,000009146584225,DVLA VEHICLE TAX,9311,Vehicle Excise Duty (VED),267.50,0.00,267.50
Neighbourhoods and Climate Change,Environmental Services,010900,Fleet - Meadowfield Fleet,Transport,215013,Running Costs of Vehicles,07-Aug-2020,000009146584231,DVLA VEHICLE TAX,9311,Vehicle Excise Duty (VED),152.50,0.00,152.50
Neighbourhoods and Climate Change,Environmental Services,010551,Fleet - Chilton Fleet,Transport,215013,Running Costs of Vehicles,07-Aug-2020,000009146584233,DVLA VEHICLE TAX,9311,Vehicle Excise Duty (VED),167.50,0.00,167.50
Neighbourhoods and Climate Change,Environmental Services,010900,Fleet - Meadowfield Fleet,Transport,215013,Running Costs of Vehicles,07-Aug-2020,000009146584235,DVLA VEHICLE TAX,9311,Vehicle Excise Duty (VED),267.50,0.00,267.50
Neighbourhoods and Climate Change,Environmental Services,010551,Fleet - Chilton Fleet,Transport,215013,Running Costs of Vehicles,07-Aug-2020,000009146584237,DVLA VEHICLE TAX,9311,Vehicle Excise Duty (VED),207.50,0.00,207.50
Neighbourhoods and Climate Change,Environmental Services,010900,Fleet - Meadowfield Fleet,Transport,215013,Running Costs of Vehicles,07-Aug-2020,000009146584245,DVLA VEHICLE TAX,9311,Vehicle Excise Duty (VED),167.50,0.00,167.50
Children and Young Peoples Services,Head of Childrens Social Care,085342,16 Hickstead Rise (previously 9 Cedar Ave),Supplies and Services,344033,Telephones,07-Aug-2020,000009146584285,WWW.VOXI.CO.UK,4814,Telephones general-all costs,10.00,0.00,10.00
"Regeneration, Economy and Growth",Development and Housing,031500,Housing Solutions - Core Team,Supplies and Services,352001,Conference Expenses,07-Aug-2020,000009146584433,WWW.ROOMZZZ.COM,7011,Conferencesseminars fees etc,40.00,0.00,40.00
"Regeneration, Economy and Growth",Development and Housing,031500,Housing Solutions - Core Team,Supplies and Services,352001,Conference Expenses,07-Aug-2020,000009146584437,WWW.ROOMZZZ.COM,7011,Conferencesseminars fees etc,500.00,0.00,500.00
Children and Young Peoples Services,Head of Early Help Inclusion & Vulnerable Children.,085954,Walworth,Supplies and Services,304403,Equipment and Materials,07-Aug-2020,000009146584447,AMZNMKTPLACE AMAZON.CO,5999,Other consumables,8.24,0.00,8.24
Children and Young Peoples Services,Head of Early Help Inclusion & Vulnerable Children.,085965,Barnard,Supplies and Services,324117,Provisions E324,07-Aug-2020,000009146584451,TESCO STORES 6329,5411,Catering costs - provisions,4.65,0.00,4.65
Neighbourhoods and Climate Change,Environmental Services,010919,C&G - Countryside Site Management,Supplies and Services,304259,Equipment and Materials,07-Aug-2020,000009146584459,MIDDLETON FORGE,5039,Equipment-purchase and rental,71.86,0.00,71.86
Neighbourhoods and Climate Change,Environmental Services,026591,C&G - Hardwick Park,Supplies and Services,332047,Printing Stationery and Gen Off Exps,07-Aug-2020,000009146584469,AMZNMKTPLACE AMAZON.CO,5999,Stationery,15.24,2.54,12.70
Neighbourhoods and Climate Change,Environmental Services,026591,C&G - Hardwick Park,Supplies and Services,304245,Equipment and Materials,07-Aug-2020,000009146584469 - 1,AMZNMKTPLACE AMAZON.CO,5999,Materials,0.03,,0.03
Neighbourhoods and Climate Change,Environmental Services,011060,C&G - Hardwick Park Catering,Premises,145009,Cleaning and Domestic Supplies,07-Aug-2020,000009146584503,ALLIANCE DISPOSABLES L,2842,Other cleaning and domestic costs,460.56,76.76,383.80
Neighbourhoods and Climate Change,Environmental Services,011060,C&G - Hardwick Park Catering,Premises,145009,Cleaning and Domestic Supplies,07-Aug-2020,000009146584503 - 1,ALLIANCE DISPOSABLES L,2842,Other cleaning and domestic costs,75.09,,75.09
Neighbourhoods and Climate Change,Environmental Services,011060,C&G - Hardwick Park Catering,Supplies and Services,324117,Provisions E324,07-Aug-2020,000009146584507,JR HOLLAND FOODSERVICE,5499,Catering costs - provisions,82.28,0.00,82.28
"Regeneration, Economy and Growth",Corporate Property and Land,021234,Catering - Locomotion,Premises,145009,Cleaning and Domestic Supplies,07-Aug-2020,000009146584611,ALLIANCE DISPOSABLES L,2842,Other cleaning and domestic costs,161.18,26.86,134.32
"Regeneration, Economy and Growth",Corporate Property and Land,021234,Catering - Locomotion,Supplies and Services,324117,Provisions E324,07-Aug-2020,000009146584615,JR HOLLAND FOODSERVICE,5499,Catering costs - provisions,36.14,0.00,36.14
"Regeneration, Economy and Growth",Development and Housing,031500,Housing Solutions - Core Team,Supplies and Services,352001,Conference Expenses,07-Aug-2020,000009146584617,AYCLIFFE BIZ,7011,Conferencesseminars fees etc,114.00,0.00,114.00
Children and Young Peoples Services,Head of Childrens Social Care,085331,New Lea Childrens Home,Supplies and Services,384999,Miscellaneous Expenses,07-Aug-2020,000009146584623,JADORE HAIR EXTENSIONS,7230,Other expenses,33.00,0.00,33.00
Children and Young Peoples Services,Head of Childrens Social Care,085331,New Lea Childrens Home,Supplies and Services,348037,Subsistence E348,07-Aug-2020,000009146584629,MUFFIN BREAK METRO CEN,5813,Subsistence,8.70,0.00,8.70
Children and Young Peoples Services,Head of Childrens Social Care,085331,New Lea Childrens Home,Supplies and Services,328041,Clothing uniforms and laundry E328,07-Aug-2020,000009146584633,PRIMARK 670 GATESHEAD,5651,Clothing uniforms and laundry,126.50,0.00,126.50
"Regeneration, Economy and Growth",Culture Sport and Tourism,054604,Seven Hills Spennymoor,Supplies and Services,304335,Equipment and Materials,07-Aug-2020,000009146584655,WWW.ERS-ONLINE.CO.UK,5943,ICT supplies etc,147.72,24.62,123.10
Children and Young Peoples Services,Head of Early Help Inclusion & Vulnerable Children.,088106,Ferryhill & N.Aycliffe 0-19 Targeted Family Support,Supplies and Services,304259,Equipment and Materials,07-Aug-2020,000009146584675,AMZNMKTPLACE AMAZON.CO,5999,Equipment-purchase and rental,3.95,0.00,3.95
Adult and Health Services,Head of Adults,055643,Hawthorn House LD Respite Unit,Supplies and Services,324117,Provisions E324,07-Aug-2020,000009146584749,SAINSBURYS SACAT 0776,5411,Catering costs - provisions,16.40,0.00,16.40
Adult and Health Services,Head of Adults,055643,Hawthorn House LD Respite Unit,Supplies and Services,324117,Provisions E324,07-Aug-2020,000009146584753,CO-OP GROUP 010465,5411,Catering costs - provisions,5.45,0.00,5.45
"Regeneration, Economy and Growth",Corporate Property and Land,020061,Bldg Serv - R&M Div 61 - Building,Supplies and Services,304221,Equipment and Materials,07-Aug-2020,000009146584759,WWW.UK.RS-ONLINE.C,5065,Direct materials,"1,792.31",298.72,1493.59
Children and Young Peoples Services,Head of Childrens Social Care,085342,16 Hickstead Rise (previously 9 Cedar Ave),Supplies and Services,338064,Services,07-Aug-2020,000009146584763,DISCLOSURE & BARRING,9399,Disclosure & Barring (DBS) Fees,13.00,0.00,13.00
Children and Young Peoples Services,Head of Childrens Social Care,085352,Tow Law CU,Supplies and Services,324117,Provisions E324,07-Aug-2020,000009146584795,ASDA SUPERSTORE 4987,5411,Catering costs - provisions,147.97,0.00,147.97
"Regeneration, Economy and Growth",Corporate Property and Land,030691,Catering - Durham Dales Centre,Supplies and Services,324117,Provisions E324,07-Aug-2020,000009146584807,JR HOLLAND FOODSERVICE,5499,Catering costs - provisions,-1.92,0.00,-1.92
"Regeneration, Economy and Growth",Development and Housing,031576,B& B - Temp Accom,Supplies and Services,364320,Grants to Voluntary Organisations,07-Aug-2020,000009146584817,THE HONEST LAWYER,7011,Accommodation assistance,201.00,0.00,201.00
Adult and Health Services,Head of Adults,055643,Hawthorn House LD Respite Unit,Supplies and Services,324117,Provisions E324,07-Aug-2020,000009146584821,JR HOLLAND FOODSERVICE,5499,Catering costs - provisions,7.19,0.00,7.19
Adult and Health Services,Head of Adults,055643,Hawthorn House LD Respite Unit,Supplies and Services,324117,Provisions E324,07-Aug-2020,000009146584825,JR HOLLAND FOODSERVICE,5499,Catering costs - provisions,13.07,0.00,13.07
Children and Young Peoples Services,Head of Childrens Social Care,085334,West Rainton Satelite Home,Supplies and Services,324117,Provisions E324,07-Aug-2020,000009146584861,TESCO STORES 2371,5411,Catering costs - provisions,157.92,0.00,157.92
"Regeneration, Economy and Growth",Development and Housing,030771,Durham Advance Flexible Fund,Supplies and Services,304259,Equipment and Materials,07-Aug-2020,000009146584935,GEN REGISTER OFFICE,9399,Equipment-purchase and rental,14.00,0.00,14.00
Resources BK0010,Business Support,052986,CYPS - Locality and Operational Support,Supplies and Services,384237,Miscellaneous Expenses,07-Aug-2020,000009146584951,WWW.COVENTRY.GOV.UK,7999,Recreational exps outings parties,11.00,0.00,11.00
Resources BK0010,Business Support,052986,CYPS - Locality and Operational Support,Supplies and Services,304259,Equipment and Materials,07-Aug-2020,000009146584957,CURRYS ONLINE,5732,Equipment-purchase and rental,169.99,0.00,169.99
Resources BK0010,Business Support,052986,CYPS - Locality and Operational Support,Supplies and Services,304403,Equipment and Materials,07-Aug-2020,000009146584963,AMZNMktplace,5999,Other consumables,15.99,0.00,15.99
Resources BK0010,Business Support,052986,CYPS - Locality and Operational Support,Supplies and Services,352001,Conference Expenses,07-Aug-2020,000009146584967,OFFICIALRECORDCOUK,7392,Conferencesseminars fees etc,19.98,0.00,19.98
"Regeneration, Economy and Growth",Culture Sport and Tourism,054235,Bishop Auckland Town Hall Cafe,Supplies and Services,324117,Provisions E324,07-Aug-2020,000009146584973,JR HOLLAND FOODSERVICE,5499,Catering costs - provisions,8.10,0.00,8.10
"Regeneration, Economy and Growth",Culture Sport and Tourism,054235,Bishop Auckland Town Hall Cafe,Supplies and Services,324117,Provisions E324,07-Aug-2020,000009146584977,JR HOLLAND FOODSERVICE,5499,Catering costs - provisions,71.25,0.00,71.25
Children and Young Peoples Services,Head of Childrens Social Care,085332,Middlestone Moor CU,Supplies and Services,312009,Newspapers books and periodicals E312,07-Aug-2020,000009146584999,MIDDLESTONE MOOR NEWSA,5994,Newspapers books and periodicals,32.40,0.00,32.40
Children and Young Peoples Services,Head of Childrens Social Care,085332,Middlestone Moor CU,Supplies and Services,324117,Provisions E324,07-Aug-2020,000009146585001,ASDA SUPERSTORE 4987,5411,Catering costs - provisions,11.95,0.00,11.95
Children and Young Peoples Services,Head of Childrens Social Care,085332,Middlestone Moor CU,Supplies and Services,324117,Provisions E324,07-Aug-2020,000009146585005,WM MORRISONS STORE,5411,Catering costs - provisions,8.06,0.00,8.06
Children and Young Peoples Services,Head of Childrens Social Care,085333,Coxhoe Satelite Home,Supplies and Services,304403,Equipment and Materials,07-Aug-2020,000009146585013,AMZNMKTPLACE AMAZON.CO,5999,Other consumables,7.99,1.33,6.66
Children and Young Peoples Services,Head of Childrens Social Care,085333,Coxhoe Satelite Home,Supplies and Services,304403,Equipment and Materials,07-Aug-2020,000009146585015,AMZNMKTPLACE AMAZON.CO,5999,Other consumables,9.49,1.58,7.91
"Regeneration, Economy and Growth",Business Durham CL0850,030608,Tanfield Lea Business Centre,Supplies and Services,304259,Equipment and Materials,07-Aug-2020,000009146585021,POUNDSTRETCHER 354,5331,Equipment-purchase and rental,4.83,0.00,4.83
"Regeneration, Economy and Growth",Business Durham CL0850,030608,Tanfield Lea Business Centre,Premises,145023,Cleaning and Domestic Supplies,07-Aug-2020,000009146585025,HOME BARGAINS,5251,Cleaning and domestic materials,9.30,0.00,9.30
Children and Young Peoples Services,Head of Childrens Social Care,085342,16 Hickstead Rise (previously 9 Cedar Ave),Supplies and Services,324117,Provisions E324,07-Aug-2020,000009146585047,TESCO STORES 2916,5411,Catering costs - provisions,128.19,0.00,128.19
"Regeneration, Economy and Growth",Corporate Property and Land,021235,Catering - Wharton Park,Supplies and Services,324117,Provisions E324,07-Aug-2020,000009146585113,JR HOLLAND FOODSERVICE,5499,Catering costs - provisions,7.71,0.00,7.71
"Regeneration, Economy and Growth",Development and Housing,030770,Durham Advance,Transport,235057,Public Transport,07-Aug-2020,000009146585183,GO NORTH EAST LIMITED,4131,Staff travelling,25.00,0.00,25.00
Neighbourhoods and Climate Change,Environmental Services,011060,C&G - Hardwick Park Catering,Supplies and Services,324117,Provisions E324,07-Aug-2020,000009150482005,BATLEYS PERTH,5300,Catering costs - provisions,290.64,48.44,242.20
Neighbourhoods and Climate Change,Environmental Services,011060,C&G - Hardwick Park Catering,Supplies and Services,324117,Provisions E324,07-Aug-2020,000009150482005 - 1,BATLEYS PERTH,5300,Catering costs - provisions,74.91,,74.91
Neighbourhoods and Climate Change,Environmental Services,011060,C&G - Hardwick Park Catering,Supplies and Services,324117,Provisions E324,07-Aug-2020,000009150482009,BATLEYS PERTH,5300,Catering costs - provisions,29.64,0.00,29.64
Adult and Health Services,Head of Adults,055643,Hawthorn House LD Respite Unit,Supplies and Services,324117,Provisions E324,07-Aug-2020,000009150482075,BATLEYS PERTH,5300,Catering costs - provisions,21.48,3.58,17.90
Adult and Health Services,Head of Adults,055643,Hawthorn House LD Respite Unit,Supplies and Services,324117,Provisions E324,07-Aug-2020,000009150482075 - 1,BATLEYS PERTH,5300,Catering costs - provisions,31.15,,31.15
"Regeneration, Economy and Growth",Corporate Property and Land,021235,Catering - Wharton Park,Supplies and Services,324117,Provisions E324,07-Aug-2020,000009150482211,BATLEYS PERTH,5300,Catering costs - provisions,-5.20,0.00,-5.20
Children and Young Peoples Services,Head of Education and Skills,071801,Selby Cottage Childcare Centre,Supplies and Services,304999,Equipment and Materials,08-Aug-2020,000009146583829,Amazon Prime 4F5JZ8X15,5968,Misc equipment tools and materials,7.99,0.00,7.99
Resources BK0010,Digital and Customer Services,065449,Internal Applications Group,Supplies and Services,342053,Computers and Communications,08-Aug-2020,000009146583861,DRI No Limit Software,5734,Computer software,468.66,78.11,390.55
Children and Young Peoples Services,Head of Childrens Social Care,085342,16 Hickstead Rise (previously 9 Cedar Ave),Supplies and Services,324117,Provisions E324,08-Aug-2020,000009146583927,TESCO STORES 2916,5411,Catering costs - provisions,18.32,0.00,18.32
Children and Young Peoples Services,Head of Childrens Social Care,085342,16 Hickstead Rise (previously 9 Cedar Ave),Supplies and Services,324117,Provisions E324,08-Aug-2020,000009146583931,SQ ARCHERS,5499,Catering costs - provisions,10.00,0.00,10.00
Children and Young Peoples Services,Head of Childrens Social Care,085352,Tow Law CU,Supplies and Services,324117,Provisions E324,08-Aug-2020,000009146583937,COOPLANDS BAKERY,5462,Catering costs - provisions,5.00,0.00,5.00
Children and Young Peoples Services,Head of Childrens Social Care,085341,High Etherley Satelite Home,Supplies and Services,304403,Equipment and Materials,08-Aug-2020,000009146583939,CO-OP GROUP 010486,5411,Other consumables,10.45,0.00,10.45
Children and Young Peoples Services,Head of Childrens Social Care,085352,Tow Law CU,Supplies and Services,324117,Provisions E324,08-Aug-2020,000009146583945,CO-OP GROUP 010486,5411,Catering costs - provisions,7.00,0.00,7.00
"Regeneration, Economy and Growth",Culture Sport and Tourism,054233,Bishop Auckland Town Hall Library,Supplies and Services,324117,Provisions E324,08-Aug-2020,000009146584077,TESCO STORES 2971,5411,Catering costs - provisions,45.17,0.00,45.17
Children and Young Peoples Services,Head of Childrens Social Care,085332,Middlestone Moor CU,Supplies and Services,304999,Equipment and Materials,08-Aug-2020,000009146584113,SUPERDRUG STORES PLC,5912,Misc equipment tools and materials,13.30,0.00,13.30
Children and Young Peoples Services,Head of Childrens Social Care,085332,Middlestone Moor CU,Transport,235057,Public Transport,08-Aug-2020,000009146584117,3C_ NSL Durham WAP,7523,Staff travelling,0.80,0.00,0.80
Children and Young Peoples Services,Head of Early Help Inclusion & Vulnerable Children.,085956,Lumley,Supplies and Services,324117,Provisions E324,08-Aug-2020,000009146584137,TESCO STORES 6329,5411,Catering costs - provisions,134.92,0.00,134.92
Neighbourhoods and Climate Change,Environmental Services,031221,North Pennines - Bowlees,Supplies and Services,332047,Printing Stationery and Gen Off Exps,08-Aug-2020,000009146584355,Shopfitting Warehouse,5021,Stationery,113.94,18.99,94.95
Neighbourhoods and Climate Change,Environmental Services,031221,North Pennines - Bowlees,Supplies and Services,324117,Provisions E324,08-Aug-2020,000009146584363,TESCO STORES 4358,5411,Catering costs - provisions,24.00,0.00,24.00
Children and Young Peoples Services,Head of Childrens Social Care,085334,West Rainton Satelite Home,Supplies and Services,304403,Equipment and Materials,08-Aug-2020,000009146584371,AMZNMktplace,5999,Other consumables,14.99,0.00,14.99
Children and Young Peoples Services,Head of Early Help Inclusion & Vulnerable Children.,088116,South Area - Teenage Parent Programme,Supplies and Services,384302,Miscellaneous Expenses,08-Aug-2020,000009146584683,AMZNMKTPLACE AMAZON.CO,5999,Activity expenses,44.85,7.50,37.35
Children and Young Peoples Services,Head of Childrens Social Care,085342,16 Hickstead Rise (previously 9 Cedar Ave),Supplies and Services,324117,Provisions E324,08-Aug-2020,000009146584779,TESCO STORES 2916,5411,Catering costs - provisions,14.20,0.00,14.20
"Regeneration, Economy and Growth",Culture Sport and Tourism,054604,Seven Hills Spennymoor,Supplies and Services,304403,Equipment and Materials,08-Aug-2020,000009146584833,AMZNMKTPLACE AMAZON.CO,5999,Other consumables,122.87,0.00,122.87
Children and Young Peoples Services,Head of Childrens Social Care,085334,West Rainton Satelite Home,Transport,215995,Running Costs of Vehicles,08-Aug-2020,000009146584865,SHELL DURHAM,5541,Vehicle running expenses,9.00,0.00,9.00
Children and Young Peoples Services,Head of Early Help Inclusion & Vulnerable Children.,085801,CDYJS - Support,Supplies and Services,304403,Equipment and Materials,08-Aug-2020,000009146585031,AMZNMktplace,5999,Other consumables,10.43,1.74,8.69
Children and Young Peoples Services,Head of Childrens Social Care,085352,Tow Law CU,Supplies and Services,304259,Equipment and Materials,08-Aug-2020,000009146585043,M and M Direct Ltd,5941,Equipment-purchase and rental,209.87,0.00,209.87
Children and Young Peoples Services,Head of Childrens Social Care,085341,High Etherley Satelite Home,Supplies and Services,304403,Equipment and Materials,08-Aug-2020,000009146585119,AMZNMKTPLACE AMAZON.CO,5999,Other consumables,88.25,0.00,88.25
"Regeneration, Economy and Growth",Business Durham CL0850,030689,Inward Investment and Aftercare,Supplies and Services,304999,Equipment and Materials,09-Aug-2020,000009146583805,MAILCHIMP MONTHLY,5968,Misc equipment tools and materials,78.39,0.00,78.39
Children and Young Peoples Services,Head of Early Help Inclusion & Vulnerable Children.,085954,Walworth,Supplies and Services,324117,Provisions E324,09-Aug-2020,000009146584139,TESCO STORES 6329,5411,Catering costs - provisions,44.37,0.00,44.37
Children and Young Peoples Services,Head of Childrens Social Care,085352,Tow Law CU,Supplies and Services,304999,Equipment and Materials,09-Aug-2020,000009146584169,COSTCO WHOLESALE UK,7278,Misc equipment tools and materials,50.31,0.00,50.31
Children and Young Peoples Services,Head of Childrens Social Care,085352,Tow Law CU,Transport,235057,Public Transport,09-Aug-2020,000009146584179,3C_ The Gate Shopping,7523,Staff travelling,3.50,0.00,3.50
Children and Young Peoples Services,Head of Childrens Social Care,085352,Tow Law CU,Supplies and Services,348037,Subsistence E348,09-Aug-2020,000009146584185,SumUp Ocean of Taste,5814,Subsistence,5.20,0.00,5.20
Children and Young Peoples Services,Head of Childrens Social Care,085352,Tow Law CU,Supplies and Services,328041,Clothing uniforms and laundry E328,09-Aug-2020,000009146584187,QUASAR SOUTH SHIELDS,7996,Clothing uniforms and laundry,20.00,0.00,20.00
Children and Young Peoples Services,Head of Childrens Social Care,085352,Tow Law CU,Supplies and Services,348037,Subsistence E348,09-Aug-2020,000009146584191,Kaspas Newcastle,5814,Subsistence,27.35,0.00,27.35
Children and Young Peoples Services,Head of Childrens Social Care,085352,Tow Law CU,Supplies and Services,304999,Equipment and Materials,09-Aug-2020,000009146584197,CTRL PAD,7994,Misc equipment tools and materials,12.00,0.00,12.00
"Regeneration, Economy and Growth",Development and Housing,030771,Durham Advance Flexible Fund,Supplies and Services,304403,Equipment and Materials,09-Aug-2020,000009146584427,AMZNMktplace,5999,Other consumables,300.90,0.00,300.90
Children and Young Peoples Services,Head of Childrens Social Care,085331,New Lea Childrens Home,Supplies and Services,348037,Subsistence E348,09-Aug-2020,000009146584635,KFC-KILLINGWORTH DT,5814,Subsistence,29.51,0.00,29.51
Children and Young Peoples Services,Head of Childrens Social Care,085331,New Lea Childrens Home,Supplies and Services,304403,Equipment and Materials,09-Aug-2020,000009146584639,MOBILE TYRES BY ANDY,5532,Other consumables,160.00,0.00,160.00
Children and Young Peoples Services,Head of Childrens Social Care,085342,16 Hickstead Rise (previously 9 Cedar Ave),Supplies and Services,348037,Subsistence E348,09-Aug-2020,000009146584781,Kaspas Darlington,5814,Subsistence,13.50,0.00,13.50
Children and Young Peoples Services,Head of Childrens Social Care,085342,16 Hickstead Rise (previously 9 Cedar Ave),Supplies and Services,324117,Provisions E324,09-Aug-2020,000009146584787,TESCO STORES 2916,5411,Catering costs - provisions,25.14,0.00,25.14
Children and Young Peoples Services,Head of Childrens Social Care,085332,Middlestone Moor CU,Supplies and Services,324117,Provisions E324,09-Aug-2020,000009146585007,BROOM HILLFARM,5499,Catering costs - provisions,18.99,0.00,18.99
Children and Young Peoples Services,Head of Childrens Social Care,085333,Coxhoe Satelite Home,Employees,040149,Recruitment Instruction and Training,09-Aug-2020,000009146585157,BRITISH HEART FOUNDATI,8398,Training-all costs,3.99,0.00,3.99
Children and Young Peoples Services,Head of Childrens Social Care,085333,Coxhoe Satelite Home,Supplies and Services,324117,Provisions E324,09-Aug-2020,000009146585161,B&M 681 - DURHAM,5399,Catering costs - provisions,23.99,0.00,23.99
Children and Young Peoples Services,Head of Childrens Social Care,085333,Coxhoe Satelite Home,Supplies and Services,304999,Equipment and Materials,09-Aug-2020,000009146585165,SAVERS HEALTH & BEAUTY,5912,Misc equipment tools and materials,4.99,0.00,4.99
Children and Young Peoples Services,Head of Childrens Social Care,085333,Coxhoe Satelite Home,Supplies and Services,304999,Equipment and Materials,09-Aug-2020,000009146585169,SAVERS HEALTH & BEAUTY,5912,Misc equipment tools and materials,1.98,0.00,1.98
Children and Young Peoples Services,Head of Childrens Social Care,085333,Coxhoe Satelite Home,Supplies and Services,304999,Equipment and Materials,09-Aug-2020,000009146585173,SUPERDRUG STORES PLC,5912,Misc equipment tools and materials,15.48,0.00,15.48
Children and Young Peoples Services,Head of Childrens Social Care,085352,Tow Law CU,Supplies and Services,348037,Subsistence E348,09-Aug-2020,000009150481897,MINCHELLA`S FISH & CHI,5812,Subsistence,15.10,0.00,15.10
"Regeneration, Economy and Growth",Business Durham CL0850,030689,Inward Investment and Aftercare,Supplies and Services,304999,Equipment and Materials,10-Aug-2020,000009146583815,MAILCHIMP MONTHLY,5968,Misc equipment tools and materials,2.16,0.00,2.16
Resources BK0010,Digital and Customer Services,070110,School Services - Man Info System (MIS) Support Team,Supplies and Services,342053,Computers and Communications,10-Aug-2020,000009146583865,WPMU DEV INCSUBFEE.COM,7372,Computer software,0.40,0.00,0.40
Children and Young Peoples Services,Head of Childrens Social Care,085341,High Etherley Satelite Home,Supplies and Services,324117,Provisions E324,10-Aug-2020,000009150481797,TESCO STORES 6329,5411,Catering costs - provisions,66.94,0.00,66.94
"Regeneration, Economy and Growth",Business Durham CL0850,030689,Inward Investment and Aftercare,Third Party Payments,430100,Rendered by Private Contractors,10-Aug-2020,000009150481799,BLS monday.com,7399,Payments to sub-contractors,148.80,0.00,148.80
Children and Young Peoples Services,Head of Childrens Social Care,085357,LAC Bespoke Placements,Supplies and Services,352001,Conference Expenses,10-Aug-2020,000009150481803,Hotel on Booking.com,7011,Conferencesseminars fees etc,"2,001.00",0.00,2001.00
Adult and Health Services,Head of Adults,055302,Durham Pathways,Supplies and Services,304403,Equipment and Materials,10-Aug-2020,000009150481809,AMZNMktplace,5999,Other consumables,11.99,2.00,9.99
Adult and Health Services,Head of Adults,055302,Durham Pathways,Supplies and Services,324117,Provisions E324,10-Aug-2020,000009150481811,LIDL GB DURHAM,5411,Catering costs - provisions,2.36,0.00,2.36
Children and Young Peoples Services,Head of Childrens Social Care,085342,16 Hickstead Rise (previously 9 Cedar Ave),Supplies and Services,324117,Provisions E324,10-Aug-2020,000009150481819,CO-OP GROUP 010670,5411,Catering costs - provisions,6.85,0.00,6.85
"Regeneration, Economy and Growth",Development and Housing,030776,LINKCD Flexible Fund,Supplies and Services,328041,Clothing uniforms and laundry E328,10-Aug-2020,000009150481849,WWW.EMBLEMATIC.CO.UK,5611,Clothing uniforms and laundry,99.44,0.00,99.44
Children and Young Peoples Services,Head of Early Help Inclusion & Vulnerable Children.,085962,Aycliffe Secure - Durham,Supplies and Services,304403,Equipment and Materials,10-Aug-2020,000009150481881,AMZNMKTPLACE AMAZON.CO,5999,Other consumables,42.98,7.17,35.81
Children and Young Peoples Services,Head of Early Help Inclusion & Vulnerable Children.,085956,Lumley,Supplies and Services,304403,Equipment and Materials,10-Aug-2020,000009150481885,AMZ Vidillo,5999,Other consumables,-29.64,-4.94,-24.70
Children and Young Peoples Services,Head of Early Help Inclusion & Vulnerable Children.,085956,Lumley,Supplies and Services,304403,Equipment and Materials,10-Aug-2020,000009150481885 - 1,AMZ Vidillo,5999,Other consumables,0.09,,0.09
Children and Young Peoples Services,Head of Early Help Inclusion & Vulnerable Children.,073998,TTF-Co-ordinator Grant,Transfer Payments,525033,Other,10-Aug-2020,000009150481889,J DODDS CARPETS LTD,5713,Grants to individuals,250.00,0.00,250.00
Children and Young Peoples Services,Head of Early Help Inclusion & Vulnerable Children.,073998,TTF-Co-ordinator Grant,Transfer Payments,525033,Other,10-Aug-2020,000009150481893,ASDA GEORGE COM LEEDS,5411,Grants to individuals,-103.95,0.00,-103.95
Neighbourhoods and Climate Change,Environmental Services,010900,Fleet - Meadowfield Fleet,Transport,215013,Running Costs of Vehicles,10-Aug-2020,000009150481901,DVLA VEHICLE TAX,9311,Vehicle Excise Duty (VED),267.50,0.00,267.50
Neighbourhoods and Climate Change,Environmental Services,010900,Fleet - Meadowfield Fleet,Transport,215013,Running Costs of Vehicles,10-Aug-2020,000009150481905,DVLA VEHICLE TAX,9311,Vehicle Excise Duty (VED),267.50,0.00,267.50
Neighbourhoods and Climate Change,Environmental Services,010900,Fleet - Meadowfield Fleet,Transport,215013,Running Costs of Vehicles,10-Aug-2020,000009150481907,DVLA VEHICLE TAX,9311,Vehicle Excise Duty (VED),267.50,0.00,267.50
Neighbourhoods and Climate Change,Environmental Services,010900,Fleet - Meadowfield Fleet,Transport,215013,Running Costs of Vehicles,10-Aug-2020,000009150481909,DVLA VEHICLE TAX,9311,Vehicle Excise Duty (VED),267.50,0.00,267.50
Neighbourhoods and Climate Change,Environmental Services,010900,Fleet - Meadowfield Fleet,Transport,215013,Running Costs of Vehicles,10-Aug-2020,000009150481911,DVLA VEHICLE TAX,9311,Vehicle Excise Duty (VED),267.50,0.00,267.50
Neighbourhoods and Climate Change,Environmental Services,010551,Fleet - Chilton Fleet,Transport,215013,Running Costs of Vehicles,10-Aug-2020,000009150481913,DVLA VEHICLE TAX,9311,Vehicle Excise Duty (VED),267.50,0.00,267.50
Neighbourhoods and Climate Change,Environmental Services,010900,Fleet - Meadowfield Fleet,Transport,215013,Running Costs of Vehicles,10-Aug-2020,000009150481915,DVLA VEHICLE TAX,9311,Vehicle Excise Duty (VED),267.50,0.00,267.50
Neighbourhoods and Climate Change,Environmental Services,010900,Fleet - Meadowfield Fleet,Transport,215013,Running Costs of Vehicles,10-Aug-2020,000009150481919,DVLA VEHICLE TAX,9311,Vehicle Excise Duty (VED),267.50,0.00,267.50
Neighbourhoods and Climate Change,Environmental Services,010900,Fleet - Meadowfield Fleet,Transport,215013,Running Costs of Vehicles,10-Aug-2020,000009150481921,DVLA VEHICLE TAX,9311,Vehicle Excise Duty (VED),267.50,0.00,267.50
Neighbourhoods and Climate Change,Environmental Services,010900,Fleet - Meadowfield Fleet,Transport,215013,Running Costs of Vehicles,10-Aug-2020,000009150481925,DVLA VEHICLE TAX,9311,Vehicle Excise Duty (VED),267.50,0.00,267.50
Neighbourhoods and Climate Change,Environmental Services,010864,Fleet - Hackworth Road Fleet,Transport,215013,Running Costs of Vehicles,10-Aug-2020,000009150481929,DVLA VEHICLE TAX,9311,Vehicle Excise Duty (VED),302.50,0.00,302.50
Neighbourhoods and Climate Change,Environmental Services,010551,Fleet - Chilton Fleet,Transport,215013,Running Costs of Vehicles,10-Aug-2020,000009150481931,DVLA VEHICLE TAX,9311,Vehicle Excise Duty (VED),302.50,0.00,302.50
Neighbourhoods and Climate Change,Environmental Services,010900,Fleet - Meadowfield Fleet,Transport,215013,Running Costs of Vehicles,10-Aug-2020,000009150481933,DVLA VEHICLE TAX,9311,Vehicle Excise Duty (VED),267.50,0.00,267.50
Neighbourhoods and Climate Change,Environmental Services,010551,Fleet - Chilton Fleet,Transport,215013,Running Costs of Vehicles,10-Aug-2020,000009150481935,DVLA VEHICLE TAX,9311,Vehicle Excise Duty (VED),302.50,0.00,302.50
Neighbourhoods and Climate Change,Environmental Services,010864,Fleet - Hackworth Road Fleet,Transport,215013,Running Costs of Vehicles,10-Aug-2020,000009150481937,DVLA VEHICLE TAX,9311,Vehicle Excise Duty (VED),302.50,0.00,302.50
Neighbourhoods and Climate Change,Environmental Services,010900,Fleet - Meadowfield Fleet,Transport,215013,Running Costs of Vehicles,10-Aug-2020,000009150481939,DVLA VEHICLE TAX,9311,Vehicle Excise Duty (VED),267.50,0.00,267.50
Neighbourhoods and Climate Change,Environmental Services,010561,Fleet - Morrison Busty Fleet,Transport,215013,Running Costs of Vehicles,10-Aug-2020,000009150481941,DVLA VEHICLE TAX,9311,Vehicle Excise Duty (VED),267.50,0.00,267.50
Neighbourhoods and Climate Change,Environmental Services,010900,Fleet - Meadowfield Fleet,Transport,215013,Running Costs of Vehicles,10-Aug-2020,000009150481943,DVLA VEHICLE TAX,9311,Vehicle Excise Duty (VED),267.50,0.00,267.50
Neighbourhoods and Climate Change,Environmental Services,010864,Fleet - Hackworth Road Fleet,Transport,215013,Running Costs of Vehicles,10-Aug-2020,000009150481945,DVLA VEHICLE TAX,9311,Vehicle Excise Duty (VED),267.50,0.00,267.50
Neighbourhoods and Climate Change,Environmental Services,010900,Fleet - Meadowfield Fleet,Transport,215013,Running Costs of Vehicles,10-Aug-2020,000009150481947,DVLA VEHICLE TAX,9311,Vehicle Excise Duty (VED),267.50,0.00,267.50
Resources BK0010,Digital and Customer Services,065487,ICT Telephony Recharges,Supplies and Services,372009,Subscriptions E372,10-Aug-2020,000009150481953,NOMINET UK,7392,Subscriptions 372009,121.68,20.28,101.40
Resources BK0010,Digital and Customer Services,070204,School Services - Systems,Supplies and Services,372009,Subscriptions E372,10-Aug-2020,000009150481957,NOMINET UK,7392,Subscriptions 372009,23.40,3.90,19.50
Children and Young Peoples Services,Head of Childrens Social Care,085332,Middlestone Moor CU,Supplies and Services,304999,Equipment and Materials,10-Aug-2020,000009150481971,HOME BARGAINS SPENNYMO,5251,Misc equipment tools and materials,5.98,0.00,5.98
"Regeneration, Economy and Growth",Development and Housing,031500,Housing Solutions - Core Team,Supplies and Services,352001,Conference Expenses,10-Aug-2020,000009150481977,THE HONEST LAWYER,7011,Conferencesseminars fees etc,68.95,11.49,57.46
"Regeneration, Economy and Growth",Development and Housing,030771,Durham Advance Flexible Fund,Supplies and Services,304221,Equipment and Materials,10-Aug-2020,000009150481981,WWW.DHSSPARES.CO.UK,1711,Direct materials,74.40,0.00,74.40
"Regeneration, Economy and Growth",Development and Housing,030771,Durham Advance Flexible Fund,Supplies and Services,304999,Equipment and Materials,10-Aug-2020,000009150481985,WWW.TOOLSTATION.COM,5251,Misc equipment tools and materials,118.98,19.83,99.15
"Regeneration, Economy and Growth",Development and Housing,031500,Housing Solutions - Core Team,Supplies and Services,352001,Conference Expenses,10-Aug-2020,000009150481989,WWW.ROOMZZZ.COM,7011,Conferencesseminars fees etc,-40.00,0.00,-40.00
"Regeneration, Economy and Growth",Development and Housing,031500,Housing Solutions - Core Team,Supplies and Services,352001,Conference Expenses,10-Aug-2020,000009150481991,WWW.ROOMZZZ.COM,7011,Conferencesseminars fees etc,-500.00,0.00,-500.00
Children and Young Peoples Services,Head of Early Help Inclusion & Vulnerable Children.,071445,Chester le Street One Point Hub,Supplies and Services,304259,Equipment and Materials,10-Aug-2020,000009150481997,GATESHEAD COUNCIL MOTO,9399,Equipment-purchase and rental,22.00,0.00,22.00
Neighbourhoods and Climate Change,Environmental Services,011060,C&G - Hardwick Park Catering,Supplies and Services,332047,Printing Stationery and Gen Off Exps,10-Aug-2020,000009150482001,CS-CATERING-EQ,5085,Stationery,37.22,0.00,37.22
Neighbourhoods and Climate Change,Environmental Services,011060,C&G - Hardwick Park Catering,Supplies and Services,324117,Provisions E324,10-Aug-2020,000009150482011,FREEMAN CATERING BUTCH,5422,Catering costs - provisions,103.69,0.00,103.69
Neighbourhoods and Climate Change,Environmental Services,011060,C&G - Hardwick Park Catering,Supplies and Services,324117,Provisions E324,10-Aug-2020,000009150482013,HOPWELLS LTD,5811,Catering costs - provisions,278.58,46.43,232.15
Neighbourhoods and Climate Change,Environmental Services,011060,C&G - Hardwick Park Catering,Supplies and Services,324117,Provisions E324,10-Aug-2020,000009150482013 - 1,HOPWELLS LTD,5811,Catering costs - provisions,71.80,,71.80
Neighbourhoods and Climate Change,Environmental Services,011060,C&G - Hardwick Park Catering,Supplies and Services,324117,Provisions E324,10-Aug-2020,000009150482017,HOPWELLS LTD,5811,Catering costs - provisions,402.24,67.04,335.20
Neighbourhoods and Climate Change,Environmental Services,011060,C&G - Hardwick Park Catering,Supplies and Services,324117,Provisions E324,10-Aug-2020,000009150482017 - 1,HOPWELLS LTD,5811,Catering costs - provisions,66.78,,66.78
Neighbourhoods and Climate Change,Environmental Services,011060,C&G - Hardwick Park Catering,Supplies and Services,324117,Provisions E324,10-Aug-2020,000009150482021,HOPWELLS LTD,5811,Catering costs - provisions,418.02,69.67,348.35
Neighbourhoods and Climate Change,Environmental Services,011060,C&G - Hardwick Park Catering,Supplies and Services,324117,Provisions E324,10-Aug-2020,000009150482021 - 1,HOPWELLS LTD,5811,Catering costs - provisions,28.72,,28.72
Neighbourhoods and Climate Change,Environmental Services,011060,C&G - Hardwick Park Catering,Supplies and Services,324117,Provisions E324,10-Aug-2020,000009150482025,JR HOLLAND FOODSERVICE,5499,Catering costs - provisions,33.68,0.00,33.68
Neighbourhoods and Climate Change,Environmental Services,011060,C&G - Hardwick Park Catering,Supplies and Services,324117,Provisions E324,10-Aug-2020,000009150482029,HOPWELLS LTD,5811,Catering costs - provisions,-22.51,-3.75,-18.76
"Regeneration, Economy and Growth",Corporate Property and Land,021234,Catering - Locomotion,Supplies and Services,324117,Provisions E324,10-Aug-2020,000009150482037,HOPWELLS LTD,5811,Catering costs - provisions,60.66,10.11,50.55
"Regeneration, Economy and Growth",Corporate Property and Land,021234,Catering - Locomotion,Supplies and Services,324117,Provisions E324,10-Aug-2020,000009150482037 - 1,HOPWELLS LTD,5811,Catering costs - provisions,147.81,,147.81
"Regeneration, Economy and Growth",Corporate Property and Land,021234,Catering - Locomotion,Supplies and Services,324117,Provisions E324,10-Aug-2020,000009150482041,HOPWELLS LTD,5811,Catering costs - provisions,38.04,6.34,31.70
"Regeneration, Economy and Growth",Corporate Property and Land,021234,Catering - Locomotion,Supplies and Services,324117,Provisions E324,10-Aug-2020,000009150482041 - 1,HOPWELLS LTD,5811,Catering costs - provisions,83.52,,83.52
"Regeneration, Economy and Growth",Corporate Property and Land,021234,Catering - Locomotion,Supplies and Services,324117,Provisions E324,10-Aug-2020,000009150482043,JR HOLLAND FOODSERVICE,5499,Catering costs - provisions,65.24,0.00,65.24
"Regeneration, Economy and Growth",Corporate Property and Land,021234,Catering - Locomotion,Supplies and Services,324117,Provisions E324,10-Aug-2020,000009150482047,JR HOLLAND FOODSERVICE,5499,Catering costs - provisions,-18.40,0.00,-18.40
Children and Young Peoples Services,Head of Early Help Inclusion & Vulnerable Children.,088119,Durham 0-19 Community Family Hub,Supplies and Services,304999,Equipment and Materials,10-Aug-2020,000009150482051,HOME BARGAINS SPENNYMO,5251,Misc equipment tools and materials,13.87,0.00,13.87
Neighbourhoods and Climate Change,Environmental Services,010367,C&G - South Grounds Maintenance,Supplies and Services,304999,Equipment and Materials,10-Aug-2020,000009150482059,Snowballs,5251,Misc equipment tools and materials,49.79,0.00,49.79
"Regeneration, Economy and Growth",Corporate Property and Land,030691,Catering - Durham Dales Centre,Supplies and Services,324117,Provisions E324,10-Aug-2020,000009150482067,HOPWELLS LTD,5811,Catering costs - provisions,44.70,7.45,37.25
"Regeneration, Economy and Growth",Corporate Property and Land,030691,Catering - Durham Dales Centre,Supplies and Services,324117,Provisions E324,10-Aug-2020,000009150482067 - 1,HOPWELLS LTD,5811,Catering costs - provisions,231.95,,231.95
Adult and Health Services,Head of Adults,055306,Spennymoor Pathways,Supplies and Services,324117,Provisions E324,10-Aug-2020,000009150482069,ASDA SUPERSTORE 4987,5411,Catering costs - provisions,2.50,0.00,2.50
Adult and Health Services,Head of Adults,055643,Hawthorn House LD Respite Unit,Supplies and Services,324117,Provisions E324,10-Aug-2020,000009150482079,JR HOLLAND FOODSERVICE,5499,Catering costs - provisions,11.73,0.00,11.73
Neighbourhoods and Climate Change,Environmental Services,010301,C&G - North Grounds Maintenance,Supplies and Services,304221,Equipment and Materials,10-Aug-2020,000009150482083,SCREWFIX CONSETT,5211,Direct materials,24.00,0.00,24.00
Children and Young Peoples Services,Head of Childrens Social Care,085334,West Rainton Satelite Home,Supplies and Services,304999,Equipment and Materials,10-Aug-2020,000009150482089,HOME BARGAINS,5251,Misc equipment tools and materials,35.88,0.00,35.88
Children and Young Peoples Services,Head of Childrens Social Care,085334,West Rainton Satelite Home,Supplies and Services,324117,Provisions E324,10-Aug-2020,000009150482093,TESCO STORES 2371,5411,Catering costs - provisions,186.61,0.00,186.61
Resources BK0010,Legal & Democratic Services,067910,Democratic Representation 067910,Supplies and Services,332047,Printing Stationery and Gen Off Exps,10-Aug-2020,000009150482103,WWW.THEWORKS.CO.UK,5310,Stationery,26.99,0.00,26.99
Resources BK0010,Corporate Finance & Commercial Services,065106,Strategic Finance - Commercial Capital & Treasury,Debtors,930177,Debtor - Chapter Homes,10-Aug-2020,000009150482107,COMPANIES HOUSE,9399,Debtor - Chapter Homes,13.00,0.00,13.00
"Regeneration, Economy and Growth",Culture Sport and Tourism,054235,Bishop Auckland Town Hall Cafe,Supplies and Services,324117,Provisions E324,10-Aug-2020,000009150482113,HOPWELLS LTD,5811,Catering costs - provisions,57.36,9.56,47.80
"Regeneration, Economy and Growth",Culture Sport and Tourism,054235,Bishop Auckland Town Hall Cafe,Supplies and Services,324117,Provisions E324,10-Aug-2020,000009150482113 - 1,HOPWELLS LTD,5811,Catering costs - provisions,24.00,,24.00
"Regeneration, Economy and Growth",Culture Sport and Tourism,054235,Bishop Auckland Town Hall Cafe,Supplies and Services,324117,Provisions E324,10-Aug-2020,000009150482117,HOPWELLS LTD,5811,Catering costs - provisions,248.57,0.00,248.57
"Regeneration, Economy and Growth",Culture Sport and Tourism,054235,Bishop Auckland Town Hall Cafe,Supplies and Services,324117,Provisions E324,10-Aug-2020,000009150482121,HOPWELLS LTD,5811,Catering costs - provisions,80.80,0.00,80.80
"Regeneration, Economy and Growth",Culture Sport and Tourism,054235,Bishop Auckland Town Hall Cafe,Supplies and Services,324117,Provisions E324,10-Aug-2020,000009150482125,JR HOLLAND FOODSERVICE,5499,Catering costs - provisions,11.82,0.00,11.82
"Regeneration, Economy and Growth",Culture Sport and Tourism,054235,Bishop Auckland Town Hall Cafe,Supplies and Services,324117,Provisions E324,10-Aug-2020,000009150482129,JR HOLLAND FOODSERVICE,5499,Catering costs - provisions,215.54,0.00,215.54
Adult and Health Services,Head of Adults,055301,Stanley Pathways,Supplies and Services,324117,Provisions E324,10-Aug-2020,000009150482133,LIDL GB DURHAM,5411,Catering costs - provisions,7.55,0.00,7.55
Resources BK0010,Corporate Finance & Commercial Services,069800,Corporate Procurement 069800,Employees,040149,Recruitment Instruction and Training,10-Aug-2020,000009150482163,WWW.CIPS.ORG,8699,Training-all costs,137.00,0.00,137.00
Children and Young Peoples Services,Head of Childrens Social Care,085332,Middlestone Moor CU,Supplies and Services,324117,Provisions E324,10-Aug-2020,000009150482167,MOONPIG,5399,Catering costs - provisions,4.25,0.00,4.25
Children and Young Peoples Services,Head of Childrens Social Care,085332,Middlestone Moor CU,Supplies and Services,352001,Conference Expenses,10-Aug-2020,000009150482169,TRAVELODGE,3615,Conferencesseminars fees etc,65.25,0.00,65.25
Children and Young Peoples Services,Head of Early Help Inclusion & Vulnerable Children.,088107,Ferryhill & Newton Aycliffe 0-19 Community Family Hub,Supplies and Services,304403,Equipment and Materials,10-Aug-2020,000009150482173,AMZNMKTPLACE AMAZON.CO,5999,Other consumables,13.99,2.33,11.66
Children and Young Peoples Services,Head of Early Help Inclusion & Vulnerable Children.,088107,Ferryhill & Newton Aycliffe 0-19 Community Family Hub,Supplies and Services,304403,Equipment and Materials,10-Aug-2020,000009150482179,AMZNMKTPLACE AMAZON.CO,5999,Other consumables,2.80,0.47,2.33
"Regeneration, Economy and Growth",Development and Housing,031500,Housing Solutions - Core Team,Supplies and Services,304999,Equipment and Materials,10-Aug-2020,000009150482181,DUNCAN BELTON TA K,6513,Misc equipment tools and materials,350.00,0.00,350.00
Children and Young Peoples Services,Head of Childrens Social Care,085352,Tow Law CU,Supplies and Services,348037,Subsistence E348,10-Aug-2020,000009150482187,MCDONALD`S,5812,Subsistence,8.96,0.00,8.96
Children and Young Peoples Services,Head of Childrens Social Care,085352,Tow Law CU,Supplies and Services,348037,Subsistence E348,10-Aug-2020,000009150482189,MCDONALD`S,5812,Subsistence,9.29,0.00,9.29
Children and Young Peoples Services,Head of Childrens Social Care,085352,Tow Law CU,Supplies and Services,348037,Subsistence E348,10-Aug-2020,000009150482193,STANLEY JEFFERSON,5812,Subsistence,17.67,0.00,17.67
Adult and Health Services,Head of Adults,053814,Sycamore Lodge Extra Care,Supplies and Services,332047,Printing Stationery and Gen Off Exps,10-Aug-2020,000009150482195,AMZNMktplace,5999,Stationery,121.16,20.19,100.97
Resources BK0010,Strategy,060120,AHS Strategy,Supplies and Services,372009,Subscriptions E372,10-Aug-2020,000009150482199,SurveyMonkey,7372,Subscriptions 372009,384.00,0.00,384.00
Children and Young Peoples Services,Head of Childrens Social Care,085634,Families First Easington,Supplies and Services,332047,Printing Stationery and Gen Off Exps,10-Aug-2020,000009150482201,AMZNMKTPLACE AMAZON.CO,5999,Stationery,394.57,65.80,328.77
"Regeneration, Economy and Growth",Corporate Property and Land,021235,Catering - Wharton Park,Supplies and Services,324117,Provisions E324,10-Aug-2020,000009150482203,HOPWELLS LTD,5811,Catering costs - provisions,69.78,11.63,58.15
"Regeneration, Economy and Growth",Corporate Property and Land,021235,Catering - Wharton Park,Supplies and Services,324117,Provisions E324,10-Aug-2020,000009150482203 - 1,HOPWELLS LTD,5811,Catering costs - provisions,8.97,,8.97
"Regeneration, Economy and Growth",Corporate Property and Land,021235,Catering - Wharton Park,Supplies and Services,324117,Provisions E324,10-Aug-2020,000009150482209,JR HOLLAND FOODSERVICE,5499,Catering costs - provisions,11.40,0.00,11.40
Children and Young Peoples Services,Head of Childrens Social Care,085341,High Etherley Satelite Home,Supplies and Services,304403,Equipment and Materials,10-Aug-2020,000009150482215,CEX (TRINITY SQUARE),5065,Other consumables,3.50,0.00,3.50
Children and Young Peoples Services,Head of Childrens Social Care,085341,High Etherley Satelite Home,Supplies and Services,324117,Provisions E324,10-Aug-2020,000009150482217,WILKO RETAIL LIMITED,5399,Catering costs - provisions,6.70,0.00,6.70
"Regeneration, Economy and Growth",Development and Housing,030771,Durham Advance Flexible Fund,Transport,235057,Public Transport,10-Aug-2020,000009150482219,GO NORTH EAST LIMITED,4131,Staff travelling,7.00,0.00,7.00
Children and Young Peoples Services,Head of Childrens Social Care,085612,Families First Consett,Supplies and Services,338045,Services,10-Aug-2020,000009152733547,WWW.DURHAM.GOV.UK,9399,Legal expenses 338045,33.00,0.00,33.00
Neighbourhoods and Climate Change,Environmental Services,011060,C&G - Hardwick Park Catering,Supplies and Services,324117,Provisions E324,10-Aug-2020,000009152733951,BATLEYS PERTH,5300,Catering costs - provisions,-10.99,0.00,-10.99
Children and Young Peoples Services,Head of Childrens Social Care,085352,Tow Law CU,Supplies and Services,328041,Clothing uniforms and laundry E328,10-Aug-2020,000009152734157,ARGOS LTD,5310,Clothing uniforms and laundry,123.94,0.00,123.94
Children and Young Peoples Services,Head of Early Help Inclusion & Vulnerable Children.,088107,Ferryhill & Newton Aycliffe 0-19 Community Family Hub,Supplies and Services,304403,Equipment and Materials,10-Aug-2020,000009152734317,AMZNMKTPLACE AMAZON.CO,5999,Other consumables,7.78,1.30,6.48
"Regeneration, Economy and Growth",Culture Sport and Tourism,054235,Bishop Auckland Town Hall Cafe,Supplies and Services,324117,Provisions E324,11-Aug-2020,000007281477144,BATLEYS PERTH,5300,Catering costs - provisions,389.04,64.84,324.20
"Regeneration, Economy and Growth",Culture Sport and Tourism,054235,Bishop Auckland Town Hall Cafe,Supplies and Services,324117,Provisions E324,11-Aug-2020,000007281477144 - 1,BATLEYS PERTH,5300,Catering costs - provisions,239.63,,239.63
Resources BK0010,Business Support,052986,CYPS - Locality and Operational Support,Supplies and Services,304403,Equipment and Materials,11-Aug-2020,000009150482161,AMZNMktplace,5999,Other consumables,32.99,0.00,32.99
Children and Young Peoples Services,Head of Education and Skills,071801,Selby Cottage Childcare Centre,Supplies and Services,324117,Provisions E324,11-Aug-2020,000009152733565,TESCO STORES 2371,5411,Catering costs - provisions,109.31,0.00,109.31
Neighbourhoods and Climate Change,Environmental Services,010301,C&G - North Grounds Maintenance,Supplies and Services,304403,Equipment and Materials,11-Aug-2020,000009152733609,BESCOL,5231,Other consumables,4.96,0.00,4.96
"Regeneration, Economy and Growth",Development and Housing,031599,Prevention Initiatives,Supplies and Services,304259,Equipment and Materials,11-Aug-2020,000009152733615,WWW.EASTDURHAMHOMES.CO,9399,Equipment-purchase and rental,83.47,0.00,83.47
"Regeneration, Economy and Growth",Development and Housing,031599,Prevention Initiatives,Supplies and Services,352001,Conference Expenses,11-Aug-2020,000009152733617,AYCLIFFE BIZ,7011,Conferencesseminars fees etc,380.00,0.00,380.00
Children and Young Peoples Services,Head of Childrens Social Care,085357,LAC Bespoke Placements,Transport,235057,Public Transport,11-Aug-2020,000009152733619,HOLIDAY PAYMENT VRUK,4722,Staff travelling,"-1,004.00",0.00,-1004.00
Children and Young Peoples Services,Head of Childrens Social Care,085501,Child Care Cases Legal Expenses,Supplies and Services,304403,Equipment and Materials,11-Aug-2020,000009152733623,STOCKTON BOROUGH COUNC,9399,Other consumables,11.00,0.00,11.00
"Regeneration, Economy and Growth",Development and Housing,030773,CLLD North,Transport,235057,Public Transport,11-Aug-2020,000009152733625,GO NORTH EAST LIMITED,4131,Staff travelling,25.00,0.00,25.00
"Regeneration, Economy and Growth",Development and Housing,031500,Housing Solutions - Core Team,Supplies and Services,364320,Grants to Voluntary Organisations,11-Aug-2020,000009152733629,HOTEL 52 STANLEY,5812,Accommodation assistance,88.00,0.00,88.00
Children and Young Peoples Services,Head of Education and Skills,075021,Youth Employment Initiative,Supplies and Services,364301,Grants to Voluntary Organisations,11-Aug-2020,000009152733631,WWW.THROSTLENESTSADDLE,5942,Hardship,87.95,0.00,87.95
Children and Young Peoples Services,Head of Education and Skills,075021,Youth Employment Initiative,Supplies and Services,364301,Grants to Voluntary Organisations,11-Aug-2020,000009152733633,THE SADDLERY SHOP,5995,Hardship,48.98,0.00,48.98
Children and Young Peoples Services,Head of Education and Skills,075021,Youth Employment Initiative,Supplies and Services,364301,Grants to Voluntary Organisations,11-Aug-2020,000009152733635,PET N PONY,5995,Hardship,110.49,0.00,110.49
"Regeneration, Economy and Growth",Culture Sport and Tourism,030705,Visit County Durham 030705,Employees,040149,Recruitment Instruction and Training,11-Aug-2020,000009152733639,WWW.AAT-ORG.UK,8931,Training-all costs,99.00,0.00,99.00
Children and Young Peoples Services,Head of Childrens Social Care,085332,Middlestone Moor CU,Supplies and Services,324117,Provisions E324,11-Aug-2020,000009152733647,ALDI 59 774,5411,Catering costs - provisions,36.33,0.00,36.33
Neighbourhoods and Climate Change,Environmental Services,010367,C&G - South Grounds Maintenance,Supplies and Services,304221,Equipment and Materials,11-Aug-2020,000009152733685,SCREWFIX DIRECT,5200,Direct materials,13.05,2.18,10.87
Children and Young Peoples Services,Head of Early Help Inclusion & Vulnerable Children.,088104,BA/BC/Crook 0-19 Targeted Family Support,Supplies and Services,304259,Equipment and Materials,11-Aug-2020,000009152733715,COMPLETE CARE SHOP,5047,Equipment-purchase and rental,114.61,0.00,114.61
Children and Young Peoples Services,Head of Early Help Inclusion & Vulnerable Children.,088104,BA/BC/Crook 0-19 Targeted Family Support,Supplies and Services,338045,Services,11-Aug-2020,000009152733721,DARLINGTON BC INTERNET,9399,Legal expenses 338045,11.00,0.00,11.00
"Regeneration, Economy and Growth",Development and Housing,030771,Durham Advance Flexible Fund,Supplies and Services,340001,Postages E340,11-Aug-2020,000009152733729,THE POST OFFICE,9402,Postages,2.06,0.00,2.06
Children and Young Peoples Services,Head of Early Help Inclusion & Vulnerable Children.,073998,TTF-Co-ordinator Grant,Transfer Payments,525033,Other,11-Aug-2020,000009152733769,AMZNMktplace,5999,Grants to individuals,149.95,24.99,124.96
Children and Young Peoples Services,Head of Childrens Social Care,085352,Tow Law CU,Supplies and Services,328041,Clothing uniforms and laundry E328,11-Aug-2020,000009152733781,POUNDLAND LTD 1597,5310,Clothing uniforms and laundry,2.50,0.00,2.50
Children and Young Peoples Services,Head of Childrens Social Care,085352,Tow Law CU,Supplies and Services,324117,Provisions E324,11-Aug-2020,000009152733797,WM MORRISONS STORE,5411,Catering costs - provisions,11.74,0.00,11.74
Children and Young Peoples Services,Head of Education and Skills,071732,Dean Bank Childcare,Supplies and Services,324117,Provisions E324,11-Aug-2020,000009152733817,ASDA GROCERIES ONLINE,5411,Catering costs - provisions,58.36,0.00,58.36
"Regeneration, Economy and Growth",Development and Housing,031500,Housing Solutions - Core Team,Supplies and Services,304259,Equipment and Materials,11-Aug-2020,000009152733831,WWW.EASTDURHAMHOMES.CO,9399,Equipment-purchase and rental,83.47,0.00,83.47
"Regeneration, Economy and Growth",Development and Housing,031500,Housing Solutions - Core Team,Supplies and Services,352001,Conference Expenses,11-Aug-2020,000009152733833,THE HONEST LAWYER,7011,Conferencesseminars fees etc,439.50,0.00,439.50
"Regeneration, Economy and Growth",Development and Housing,031500,Housing Solutions - Core Team,Supplies and Services,352001,Conference Expenses,11-Aug-2020,000009152733863,HI NEWCASTLE WASHI,7011,Conferencesseminars fees etc,325.00,0.00,325.00
"Regeneration, Economy and Growth",Development and Housing,031500,Housing Solutions - Core Team,Supplies and Services,352001,Conference Expenses,11-Aug-2020,000009152733867,HI NEWCASTLE WASHI,7011,Conferencesseminars fees etc,195.00,0.00,195.00
"Regeneration, Economy and Growth",Development and Housing,031500,Housing Solutions - Core Team,Supplies and Services,352001,Conference Expenses,11-Aug-2020,000009152733871,HI NEWCASTLE WASHI,7011,Conferencesseminars fees etc,325.00,0.00,325.00
"Regeneration, Economy and Growth",Development and Housing,031500,Housing Solutions - Core Team,Supplies and Services,352001,Conference Expenses,11-Aug-2020,000009152733875,HI NEWCASTLE WASHI,7011,Conferencesseminars fees etc,195.00,0.00,195.00
Children and Young Peoples Services,Head of Early Help Inclusion & Vulnerable Children.,071445,Chester le Street One Point Hub,Transport,235057,Public Transport,11-Aug-2020,000009152733887,SUNDERLAND CC,7523,Staff travelling,22.00,0.00,22.00
Children and Young Peoples Services,Head of Early Help Inclusion & Vulnerable Children.,085956,Lumley,Supplies and Services,328041,Clothing uniforms and laundry E328,11-Aug-2020,000009152733909,SAINSBURY`S,5411,Clothing uniforms and laundry,17.95,0.00,17.95
Children and Young Peoples Services,Head of Early Help Inclusion & Vulnerable Children.,085954,Walworth,Supplies and Services,328041,Clothing uniforms and laundry E328,11-Aug-2020,000009152733911,JD SPORTS INTERNET,5941,Clothing uniforms and laundry,95.00,0.00,95.00
Children and Young Peoples Services,Head of Early Help Inclusion & Vulnerable Children.,085954,Walworth,Supplies and Services,328041,Clothing uniforms and laundry E328,11-Aug-2020,000009152733913,JD SPORTS INTERNET,5941,Clothing uniforms and laundry,95.00,0.00,95.00
"Regeneration, Economy and Growth",Development and Housing,031500,Housing Solutions - Core Team,Supplies and Services,352001,Conference Expenses,11-Aug-2020,000009152734001,AYCLIFFE BIZ,7011,Conferencesseminars fees etc,152.00,0.00,152.00
Children and Young Peoples Services,Head of Childrens Social Care,085551,Short Break Services-Park Hse Sher,Supplies and Services,324117,Provisions E324,11-Aug-2020,000009152734031,TESCO STORES 2371,5411,Catering costs - provisions,36.60,0.00,36.60
Children and Young Peoples Services,Head of Childrens Social Care,085551,Short Break Services-Park Hse Sher,Supplies and Services,324117,Provisions E324,11-Aug-2020,000009152734037,ALDI 12 774,5411,Catering costs - provisions,56.83,0.00,56.83
Adult and Health Services,Head of Adults,052733,Sensory Support - County Wide 052733,Supplies and Services,384700,Miscellaneous Expenses,11-Aug-2020,000009152734047,ARGOS LTD,5310,Miscellaneous grants,274.99,45.83,229.16
Children and Young Peoples Services,Head of Childrens Social Care,085352,Tow Law CU,Supplies and Services,328041,Clothing uniforms and laundry E328,11-Aug-2020,000009152734057,ROF59,7996,Clothing uniforms and laundry,8.50,0.00,8.50
Children and Young Peoples Services,Head of Childrens Social Care,085352,Tow Law CU,Supplies and Services,348037,Subsistence E348,11-Aug-2020,000009152734061,SUBWAY,5814,Subsistence,7.48,0.00,7.48
Adult and Health Services,Head of Adults,055643,Hawthorn House LD Respite Unit,Supplies and Services,324117,Provisions E324,11-Aug-2020,000009152734089,CO-OP GROUP 010465,5411,Catering costs - provisions,1.50,0.00,1.50
Children and Young Peoples Services,Head of Childrens Social Care,085333,Coxhoe Satelite Home,Supplies and Services,324117,Provisions E324,11-Aug-2020,000009152734097,MARKS&SPENCER PLC,5411,Catering costs - provisions,3.72,0.00,3.72
Children and Young Peoples Services,Head of Childrens Social Care,085333,Coxhoe Satelite Home,Supplies and Services,324117,Provisions E324,11-Aug-2020,000009152734101,ASDA SUPERSTORE 4987,5411,Catering costs - provisions,104.12,0.00,104.12
Children and Young Peoples Services,Head of Childrens Social Care,085342,16 Hickstead Rise (previously 9 Cedar Ave),Supplies and Services,348037,Subsistence E348,11-Aug-2020,000009152734113,BEEFEATER40012230,5812,Subsistence,53.62,0.00,53.62
Children and Young Peoples Services,Head of Childrens Social Care,085352,Tow Law CU,Supplies and Services,324117,Provisions E324,11-Aug-2020,000009152734141,ASDA SUPERSTORE 4987,5411,Catering costs - provisions,17.25,0.00,17.25
Children and Young Peoples Services,Head of Childrens Social Care,085352,Tow Law CU,Supplies and Services,324117,Provisions E324,11-Aug-2020,000009152734149,ASDA SUPERSTORE 4987,5411,Catering costs - provisions,24.00,0.00,24.00
Children and Young Peoples Services,Head of Childrens Social Care,085352,Tow Law CU,Supplies and Services,324117,Provisions E324,11-Aug-2020,000009152734153,ASDA SUPERSTORE 4987,5411,Catering costs - provisions,151.50,0.00,151.50
Adult and Health Services,Head of Adults,055306,Spennymoor Pathways,Supplies and Services,324117,Provisions E324,11-Aug-2020,000009152734199,ASDA SUPERSTORE 4987,5411,Catering costs - provisions,17.72,0.00,17.72
Children and Young Peoples Services,Head of Early Help Inclusion & Vulnerable Children.,088102,Consett & Stanley 0-19 Targeted Family Support,Supplies and Services,384302,Miscellaneous Expenses,11-Aug-2020,000009152734201,HOME BARGAINS,5251,Activity expenses,39.91,0.00,39.91
Children and Young Peoples Services,Head of Early Help Inclusion & Vulnerable Children.,085957,Secure Management,Supplies and Services,304245,Equipment and Materials,11-Aug-2020,000009152734211,SCREWFIX DIRECT,5200,Materials,43.75,7.29,36.46
"Regeneration, Economy and Growth",Culture Sport and Tourism,054235,Bishop Auckland Town Hall Cafe,Supplies and Services,324117,Provisions E324,11-Aug-2020,000009152734219,JR HOLLAND FOODSERVICE,5499,Catering costs - provisions,-27.00,0.00,-27.00
Children and Young Peoples Services,Head of Childrens Social Care,085333,Coxhoe Satelite Home,Supplies and Services,344033,Telephones,11-Aug-2020,000009152734225,IFIX UK,4814,Telephones general-all costs,100.00,0.00,100.00
Resources BK0010,Business Support,052986,CYPS - Locality and Operational Support,Transport,235057,Public Transport,11-Aug-2020,000009152734303,GO NORTH EAST LIMITED,4131,Staff travelling,20.00,0.00,20.00
Resources BK0010,Business Support,052986,CYPS - Locality and Operational Support,Supplies and Services,304259,Equipment and Materials,11-Aug-2020,000009152734307,Durham County CNCL,9399,Equipment-purchase and rental,-11.00,0.00,-11.00
Children and Young Peoples Services,Head of Early Help Inclusion & Vulnerable Children.,088107,Ferryhill & Newton Aycliffe 0-19 Community Family Hub,Supplies and Services,304403,Equipment and Materials,11-Aug-2020,000009152734313,AMZNMKTPLACE AMAZON.CO,5999,Other consumables,16.08,2.68,13.40
Children and Young Peoples Services,Head of Early Help Inclusion & Vulnerable Children.,088107,Ferryhill & Newton Aycliffe 0-19 Community Family Hub,Supplies and Services,304403,Equipment and Materials,11-Aug-2020,000009152734313 - 1,AMZNMKTPLACE AMAZON.CO,5999,Other consumables,95.85,,95.85
Children and Young Peoples Services,Head of Childrens Social Care,085333,Coxhoe Satelite Home,Supplies and Services,324117,Provisions E324,11-Aug-2020,000009152734323,TESCO STORES 2371,5411,Catering costs - provisions,40.54,0.00,40.54
Children and Young Peoples Services,Head of Childrens Social Care,085333,Coxhoe Satelite Home,Supplies and Services,338099,Services,11-Aug-2020,000009152734325,FLAMINGOLAND,7033,Other services,112.00,0.00,112.00
"Regeneration, Economy and Growth",Culture Sport and Tourism,011263,Louisa Centre 011263,Supplies and Services,324117,Provisions E324,11-Aug-2020,000009152734329,ASDA SUPERSTORE,5411,Catering costs - provisions,16.00,0.00,16.00
Adult and Health Services,Head of Adults,055310,Positive Journeys (Tudhoe),Supplies and Services,324117,Provisions E324,11-Aug-2020,000009152734337,CO-OP GROUP FOOD,5411,Catering costs - provisions,1.50,0.00,1.50
Adult and Health Services,Head of Adults,055309,Peterlee Pathways,Supplies and Services,328041,Clothing uniforms and laundry E328,11-Aug-2020,000009152734381,POUNDSTRETCHER 396,5331,Clothing uniforms and laundry,10.43,0.00,10.43
Resources BK0010,Transformation,060131,County Records,Supplies and Services,308011,Furniture,11-Aug-2020,000009155396885,Dunelm,5712,Furniture repair and replacement,60.00,0.00,60.00
Children and Young Peoples Services,Head of Childrens Social Care,085352,Tow Law CU,Supplies and Services,348037,Subsistence E348,11-Aug-2020,000009155396923,R.O.F. 59,5812,Subsistence,10.50,0.00,10.50
Neighbourhoods and Climate Change,Partnerships & Community Engagement Div.,060530,3 Towns AAP,Supplies and Services,342033,Computers and Communications,11-Aug-2020,000009155397121,Premier Farnell,5065,Computer hardware,34.46,0.00,34.46
Children and Young Peoples Services,Head of Early Help Inclusion & Vulnerable Children.,085956,Lumley,Supplies and Services,328041,Clothing uniforms and laundry E328,11-Aug-2020,000009164613047,SPORTSDIRECT.COM,5941,Clothing uniforms and laundry,31.48,0.00,31.48
Children and Young Peoples Services,Head of Education and Skills,075021,Youth Employment Initiative,Supplies and Services,364301,Grants to Voluntary Organisations,11-Aug-2020,000009168510013,CURRYS ONLINE,5732,Hardship,199.00,33.17,165.83
Children and Young Peoples Services,Head of Early Help Inclusion & Vulnerable Children.,085957,Secure Management,Supplies and Services,304999,Equipment and Materials,12-Aug-2020,000009152734195,TESCO SUBSCRIPTION,5968,Misc equipment tools and materials,6.99,0.00,6.99
Children and Young Peoples Services,Head of Childrens Social Care,085341,High Etherley Satelite Home,Supplies and Services,324117,Provisions E324,12-Aug-2020,000009155396293,TESCO STORES 6329,5411,Catering costs - provisions,46.77,0.00,46.77
"Regeneration, Economy and Growth",Business Durham CL0850,030689,Inward Investment and Aftercare,Supplies and Services,304999,Equipment and Materials,12-Aug-2020,000009155396301,LINKEDIN-581 0919344,5968,Misc equipment tools and materials,103.42,0.00,103.42
Children and Young Peoples Services,Head of Childrens Social Care,085341,High Etherley Satelite Home,Supplies and Services,304221,Equipment and Materials,12-Aug-2020,000009155396333,HOMEBASE LTD 822,5200,Direct materials,39.99,0.00,39.99
Children and Young Peoples Services,Head of Childrens Social Care,085341,High Etherley Satelite Home,Supplies and Services,328041,Clothing uniforms and laundry E328,12-Aug-2020,000009155396337,ARGOS BISHOP AUCKL,5310,Clothing uniforms and laundry,17.95,0.00,17.95
Children and Young Peoples Services,Head of Education and Skills,071801,Selby Cottage Childcare Centre,Supplies and Services,324117,Provisions E324,12-Aug-2020,000009155396353,ONE STOP 3026,5411,Catering costs - provisions,30.18,0.00,30.18
"Regeneration, Economy and Growth",Development and Housing,031599,Prevention Initiatives,Supplies and Services,348037,Subsistence E348,12-Aug-2020,000009155396363,HOTEL 52 STANLEY,5812,Subsistence,50.00,0.00,50.00
Children and Young Peoples Services,Head of Childrens Social Care,085357,LAC Bespoke Placements,Supplies and Services,338099,Services,12-Aug-2020,000009155396387,PARKDEAN RESORTS H,7033,Other services,529.00,0.00,529.00
Children and Young Peoples Services,Head of Childrens Social Care,085501,Child Care Cases Legal Expenses,Supplies and Services,304403,Equipment and Materials,12-Aug-2020,000009155396395,CITY OF NEWCASTLE INTE,9399,Other consumables,70.00,0.00,70.00
"Regeneration, Economy and Growth",Development and Housing,030773,CLLD North,Supplies and Services,304259,Equipment and Materials,12-Aug-2020,000009155396403,CURRYS ONLINE,5732,Equipment-purchase and rental,429.00,0.00,429.00
Adult and Health Services,Head of Adults,055302,Durham Pathways,Supplies and Services,304403,Equipment and Materials,12-Aug-2020,000009155396429,AMZNMktplace,5999,Other consumables,25.47,4.26,21.21
Adult and Health Services,Head of Adults,055302,Durham Pathways,Supplies and Services,324117,Provisions E324,12-Aug-2020,000009155396439,SAINSBURYS 0776,5411,Catering costs - provisions,5.20,0.00,5.20
Children and Young Peoples Services,Head of Childrens Social Care,085342,16 Hickstead Rise (previously 9 Cedar Ave),Supplies and Services,324117,Provisions E324,12-Aug-2020,000009155396461,TESCO STORES 2916,5411,Catering costs - provisions,6.90,0.00,6.90
Children and Young Peoples Services,Head of Childrens Social Care,085342,16 Hickstead Rise (previously 9 Cedar Ave),Supplies and Services,324117,Provisions E324,12-Aug-2020,000009155396469,TESCO STORES 2916,5411,Catering costs - provisions,8.87,0.00,8.87
Children and Young Peoples Services,Head of Childrens Social Care,085332,Middlestone Moor CU,Supplies and Services,324117,Provisions E324,12-Aug-2020,000009155396475,TESCO STORES 2371,5411,Catering costs - provisions,80.74,0.00,80.74
Children and Young Peoples Services,Head of Childrens Social Care,085352,Tow Law CU,Supplies and Services,324117,Provisions E324,12-Aug-2020,000009155396485,CO-OP GROUP 010486,5411,Catering costs - provisions,14.35,0.00,14.35
"Regeneration, Economy and Growth",Development and Housing,030772,CLLD South,Supplies and Services,304259,Equipment and Materials,12-Aug-2020,000009155396559,MCC INTERNET,9399,Equipment-purchase and rental,11.00,0.00,11.00
"Regeneration, Economy and Growth",Development and Housing,030772,CLLD South,Transport,215995,Running Costs of Vehicles,12-Aug-2020,000009155396565,PARK HEAD SERVICE,5541,Vehicle running expenses,11.02,0.00,11.02
"Regeneration, Economy and Growth",Development and Housing,030772,CLLD South,Transport,235005,Public Transport,12-Aug-2020,000009155396569,ARRIVA PASSENGER S,7538,Contract tickets,26.20,0.00,26.20
"Regeneration, Economy and Growth",Development and Housing,031576,B& B - Temp Accom,Supplies and Services,364320,Grants to Voluntary Organisations,12-Aug-2020,000009155396585,THE HONEST LAWYER,7011,Accommodation assistance,307.80,0.00,307.80
"Regeneration, Economy and Growth",Development and Housing,031576,B& B - Temp Accom,Supplies and Services,364320,Grants to Voluntary Organisations,12-Aug-2020,000009155396593,THE HONEST LAWYER,7011,Accommodation assistance,60.00,0.00,60.00
Children and Young Peoples Services,Head of Education and Skills,071903,Early Years Sustainability,Supplies and Services,324117,Provisions E324,12-Aug-2020,000009155396659,SP NCBWEBSHOP,5399,Catering costs - provisions,49.50,0.00,49.50
"Regeneration, Economy and Growth",Business Durham CL0850,030671,Business Space 030671,Supplies and Services,328041,Clothing uniforms and laundry E328,12-Aug-2020,000009155396687,Sumup Industrial Workw,5691,Clothing uniforms and laundry,61.86,0.00,61.86
"Regeneration, Economy and Growth",Development and Housing,031500,Housing Solutions - Core Team,Supplies and Services,324117,Provisions E324,12-Aug-2020,000009155396707,TESCO STORES 2371,5411,Catering costs - provisions,29.98,0.00,29.98
"Regeneration, Economy and Growth",Development and Housing,031500,Housing Solutions - Core Team,Supplies and Services,324117,Provisions E324,12-Aug-2020,000009155396725,TESCO STORES 2371,5411,Catering costs - provisions,29.98,0.00,29.98
"Regeneration, Economy and Growth",Development and Housing,031500,Housing Solutions - Core Team,Supplies and Services,352001,Conference Expenses,12-Aug-2020,000009155396735,HI NEWCASTLE WASHI,7011,Conferencesseminars fees etc,65.00,0.00,65.00
Children and Young Peoples Services,Head of Early Help Inclusion & Vulnerable Children.,071445,Chester le Street One Point Hub,Supplies and Services,304259,Equipment and Materials,12-Aug-2020,000009155396757,GATESHEAD COUNCIL MOTO,9399,Equipment-purchase and rental,22.00,0.00,22.00
Children and Young Peoples Services,Head of Early Help Inclusion & Vulnerable Children.,085956,Lumley,Supplies and Services,312009,Newspapers books and periodicals E312,12-Aug-2020,000009155396769,AMZNMktplace,5999,Newspapers books and periodicals,19.00,0.00,19.00
Children and Young Peoples Services,Head of Early Help Inclusion & Vulnerable Children.,085962,Aycliffe Secure - Durham,Supplies and Services,324117,Provisions E324,12-Aug-2020,000009155396775,TESCO STORES 6329,5411,Catering costs - provisions,75.27,0.00,75.27
Resources BK0010,Business Support,052986,CYPS - Locality and Operational Support,Supplies and Services,328041,Clothing uniforms and laundry E328,12-Aug-2020,000009155396787,ARGOS LTD,5310,Clothing uniforms and laundry,31.94,0.00,31.94
Resources BK0010,Business Support,052986,CYPS - Locality and Operational Support,Supplies and Services,328041,Clothing uniforms and laundry E328,12-Aug-2020,000009155396807,ARGOS LTD,5310,Clothing uniforms and laundry,129.95,0.00,129.95
Neighbourhoods and Climate Change,Environmental Services,026591,C&G - Hardwick Park,Supplies and Services,304245,Equipment and Materials,12-Aug-2020,000009155396813,AMZNMktplace,5999,Materials,148.99,24.83,124.16
"Regeneration, Economy and Growth",Corporate Property and Land,021234,Catering - Locomotion,Premises,145009,Cleaning and Domestic Supplies,12-Aug-2020,000009155396823,ALLIANCE DISPOSABLES L,2842,Other cleaning and domestic costs,109.64,18.27,91.37
"Regeneration, Economy and Growth",Corporate Property and Land,021234,Catering - Locomotion,Supplies and Services,324117,Provisions E324,12-Aug-2020,000009155396835,JR HOLLAND FOODSERVICE,5499,Catering costs - provisions,104.75,0.00,104.75
Children and Young Peoples Services,Head of Childrens Social Care,085331,New Lea Childrens Home,Supplies and Services,348037,Subsistence E348,12-Aug-2020,000009155396863,Pizza Hut,5812,Subsistence,47.97,0.00,47.97
Children and Young Peoples Services,Head of Childrens Social Care,085333,Coxhoe Satelite Home,Supplies and Services,324117,Provisions E324,12-Aug-2020,000009155396929,STARBUCKS THINFORD,5499,Catering costs - provisions,17.27,0.00,17.27
Children and Young Peoples Services,Head of Childrens Social Care,085342,16 Hickstead Rise (previously 9 Cedar Ave),Supplies and Services,344033,Telephones,12-Aug-2020,000009155396955,WWW.VOXI.CO.UK,4814,Telephones general-all costs,10.00,0.00,10.00
Children and Young Peoples Services,Head of Childrens Social Care,085342,16 Hickstead Rise (previously 9 Cedar Ave),Supplies and Services,324117,Provisions E324,12-Aug-2020,000009155396963,TESCO STORES 2916,5411,Catering costs - provisions,108.12,0.00,108.12
Adult and Health Services,Head of Adults,055306,Spennymoor Pathways,Supplies and Services,324117,Provisions E324,12-Aug-2020,000009155396991,ASDA SUPERSTORE 4987,5411,Catering costs - provisions,3.00,0.00,3.00
Adult and Health Services,Head of Adults,055643,Hawthorn House LD Respite Unit,Supplies and Services,324117,Provisions E324,12-Aug-2020,000009155397003,JR HOLLAND FOODSERVICE,5499,Catering costs - provisions,17.73,0.00,17.73
Adult and Health Services,Head of Adults,055643,Hawthorn House LD Respite Unit,Supplies and Services,324117,Provisions E324,12-Aug-2020,000009155397013,JR HOLLAND FOODSERVICE,5499,Catering costs - provisions,9.74,0.00,9.74
Children and Young Peoples Services,Head of Childrens Social Care,085334,West Rainton Satelite Home,Supplies and Services,324117,Provisions E324,12-Aug-2020,000009155397021,GEORGE BOLAM (FOODS) L,5499,Catering costs - provisions,157.47,0.00,157.47
Resources BK0010,Business Support,052986,CYPS - Locality and Operational Support,Supplies and Services,308011,Furniture,12-Aug-2020,000009155397143,MAGUIRES,5713,Furniture repair and replacement,281.00,0.00,281.00
"Regeneration, Economy and Growth",Culture Sport and Tourism,054235,Bishop Auckland Town Hall Cafe,Supplies and Services,324117,Provisions E324,12-Aug-2020,000009155397151,JR HOLLAND FOODSERVICE,5499,Catering costs - provisions,135.41,0.00,135.41
Children and Young Peoples Services,Head of Childrens Social Care,085332,Middlestone Moor CU,Supplies and Services,324117,Provisions E324,12-Aug-2020,000009155397181,KEN WARNE LTD (O5),5411,Catering costs - provisions,5.68,0.00,5.68
Children and Young Peoples Services,Head of Childrens Social Care,085332,Middlestone Moor CU,Supplies and Services,324117,Provisions E324,12-Aug-2020,000009155397187,ASDA SUPERSTORE 4987,5411,Catering costs - provisions,13.16,0.00,13.16
Children and Young Peoples Services,Head of Childrens Social Care,085352,Tow Law CU,Supplies and Services,324117,Provisions E324,12-Aug-2020,000009155397205,SAINSBURYS LOC4634,5411,Catering costs - provisions,3.65,0.00,3.65
"Regeneration, Economy and Growth",Culture Sport and Tourism,054233,Bishop Auckland Town Hall Library,Supplies and Services,324117,Provisions E324,12-Aug-2020,000009155397239,HERON FOODS LTD,5499,Catering costs - provisions,10.32,0.00,10.32
"Regeneration, Economy and Growth",Culture Sport and Tourism,054233,Bishop Auckland Town Hall Library,Supplies and Services,324117,Provisions E324,12-Aug-2020,000009155397245,WILKO RETAIL LIMITED,5399,Catering costs - provisions,18.00,0.00,18.00
Children and Young Peoples Services,Head of Childrens Social Care,085333,Coxhoe Satelite Home,Supplies and Services,348037,Subsistence E348,12-Aug-2020,000009155397253,THE GOLDEN GRID RESTAU,5812,Subsistence,21.20,0.00,21.20
Children and Young Peoples Services,Head of Childrens Social Care,085333,Coxhoe Satelite Home,Supplies and Services,324117,Provisions E324,12-Aug-2020,000009155397259,ONE STOP 6236,5411,Catering costs - provisions,2.00,0.00,2.00
Children and Young Peoples Services,Head of Childrens Social Care,085333,Coxhoe Satelite Home,Supplies and Services,348037,Subsistence E348,12-Aug-2020,000009155397261,MCDONALDS,5814,Subsistence,5.37,0.00,5.37
Children and Young Peoples Services,Head of Childrens Social Care,085358,Orchard House Sacriston Solo Home,Employees,040149,Recruitment Instruction and Training,12-Aug-2020,000009155397271,CAPITA RECRUITMENT VET,8999,Training-all costs,48.10,0.00,48.10
Adult and Health Services,Head of Adults,056601,Substance Misuse,Supplies and Services,338048,Services,12-Aug-2020,000009155397277,HMCOURTS-SERVICE.G,9222,Court costs 338048,75.00,0.00,75.00
Children and Young Peoples Services,Head of Early Help Inclusion & Vulnerable Children.,085810,CDYJS - Interventions Team,Supplies and Services,304403,Equipment and Materials,12-Aug-2020,000009155397337,AMZNMktplace,5999,Other consumables,5.68,0.95,4.73
Children and Young Peoples Services,Head of Early Help Inclusion & Vulnerable Children.,085810,CDYJS - Interventions Team,Supplies and Services,304403,Equipment and Materials,12-Aug-2020,000009155397343,AMZNMktplace,5999,Other consumables,5.68,0.95,4.73
"Regeneration, Economy and Growth",Corporate Property and Land,021234,Catering - Locomotion,Supplies and Services,324117,Provisions E324,12-Aug-2020,000009158945717,BATLEYS PERTH,5300,Catering costs - provisions,80.76,13.46,67.30
"Regeneration, Economy and Growth",Corporate Property and Land,021234,Catering - Locomotion,Supplies and Services,324117,Provisions E324,12-Aug-2020,000009158945717 - 1,BATLEYS PERTH,5300,Catering costs - provisions,69.19,,69.19
"Regeneration, Economy and Growth",Corporate Property and Land,021234,Catering - Locomotion,Supplies and Services,324117,Provisions E324,12-Aug-2020,000009158945737,BATLEYS PERTH,5300,Catering costs - provisions,-22.20,-3.70,-18.50
Children and Young Peoples Services,Head of Early Help Inclusion & Vulnerable Children.,085956,Lumley,Supplies and Services,384999,Miscellaneous Expenses,13-Aug-2020,000009155397105,AMZNMktplace,5999,Other expenses,11.04,1.84,9.20
Children and Young Peoples Services,Head of Education and Skills,071801,Selby Cottage Childcare Centre,Supplies and Services,324117,Provisions E324,13-Aug-2020,000009158945363,TESCO STORES 2278,5411,Catering costs - provisions,111.39,0.00,111.39
Children and Young Peoples Services,Head of Education and Skills,071801,Selby Cottage Childcare Centre,Supplies and Services,324117,Provisions E324,13-Aug-2020,000009158945367,ASDA GROCERIES ONLINE,5411,Catering costs - provisions,62.15,0.00,62.15
Resources BK0010,Digital and Customer Services,065432,Web Development Group,Supplies and Services,342053,Computers and Communications,13-Aug-2020,000009158945381,BLS POWERMAPPER,5734,Computer software,238.80,0.00,238.80
"Regeneration, Economy and Growth",Development and Housing,031599,Prevention Initiatives,Supplies and Services,348037,Subsistence E348,13-Aug-2020,000009158945385,HOTEL 52 STANLEY,5812,Subsistence,65.00,0.00,65.00
Children and Young Peoples Services,Head of Childrens Social Care,085357,LAC Bespoke Placements,Supplies and Services,352001,Conference Expenses,13-Aug-2020,000009158945391,Hotel on Booking.com,7011,Conferencesseminars fees etc,64.00,0.00,64.00
Children and Young Peoples Services,Head of Childrens Social Care,085501,Child Care Cases Legal Expenses,Supplies and Services,304403,Equipment and Materials,13-Aug-2020,000009158945401,STOCKTON BOROUGH COUNC,9399,Other consumables,11.00,0.00,11.00
Children and Young Peoples Services,Head of Education and Skills,075021,Youth Employment Initiative,Supplies and Services,364301,Grants to Voluntary Organisations,13-Aug-2020,000009158945409,CURRYS ONLINE,5732,Hardship,199.00,33.17,165.83
Neighbourhoods and Climate Change,Environmental Services,010383,C&G - South Street Cleansing,Supplies and Services,304221,Equipment and Materials,13-Aug-2020,000009158945423,ARBOR TIMBER AND BUILD,5211,Direct materials,29.16,0.00,29.16
"Regeneration, Economy and Growth",Culture Sport and Tourism,030708,VCD - Marketing & Information,Supplies and Services,384199,Miscellaneous Expenses,13-Aug-2020,000009158945431,GOOGLE ADS1872075479,5818,Other hired and contracted services,"4,500.00",0.00,4500.00
Children and Young Peoples Services,Head of Childrens Social Care,085624,Families First Crook,Supplies and Services,338045,Services,13-Aug-2020,000009158945509,Durham County CNCL,9399,Legal expenses 338045,22.00,0.00,22.00
Children and Young Peoples Services,Head of Childrens Social Care,085380,Operations Manager LAC Resources,Supplies and Services,328041,Clothing uniforms and laundry E328,13-Aug-2020,000009158945517,ARGOS LTD,5310,Clothing uniforms and laundry,44.99,0.00,44.99
Children and Young Peoples Services,Head of Childrens Social Care,085380,Operations Manager LAC Resources,Supplies and Services,328041,Clothing uniforms and laundry E328,13-Aug-2020,000009158945523,ARGOS LTD,5310,Clothing uniforms and laundry,132.95,0.00,132.95
Children and Young Peoples Services,Head of Childrens Social Care,085380,Operations Manager LAC Resources,Supplies and Services,328041,Clothing uniforms and laundry E328,13-Aug-2020,000009158945527,ARGOS LTD,5310,Clothing uniforms and laundry,132.95,0.00,132.95
Children and Young Peoples Services,Head of Childrens Social Care,085380,Operations Manager LAC Resources,Supplies and Services,328041,Clothing uniforms and laundry E328,13-Aug-2020,000009158945533,ARGOS LTD,5310,Clothing uniforms and laundry,198.95,0.00,198.95
Children and Young Peoples Services,Head of Childrens Social Care,085380,Operations Manager LAC Resources,Supplies and Services,328041,Clothing uniforms and laundry E328,13-Aug-2020,000009158945537,ARGOS LTD,5310,Clothing uniforms and laundry,-132.95,0.00,-132.95
Children and Young Peoples Services,Head of Childrens Social Care,085380,Operations Manager LAC Resources,Supplies and Services,328041,Clothing uniforms and laundry E328,13-Aug-2020,000009158945543,ARGOS LTD,5310,Clothing uniforms and laundry,-132.95,0.00,-132.95
Children and Young Peoples Services,Head of Childrens Social Care,085362,LAC & Permanence Team 2,Supplies and Services,308011,Furniture,13-Aug-2020,000009158945569,ARGOS LTD,5310,Furniture repair and replacement,180.00,0.00,180.00
Children and Young Peoples Services,Head of Childrens Social Care,085362,LAC & Permanence Team 2,Supplies and Services,308011,Furniture,13-Aug-2020,000009158945577,ARGOS LTD,5310,Furniture repair and replacement,128.95,0.00,128.95
Children and Young Peoples Services,Head of Early Help Inclusion & Vulnerable Children.,085954,Walworth,Supplies and Services,328041,Clothing uniforms and laundry E328,13-Aug-2020,000009158945671,FOOTASYLUM PLC,5691,Clothing uniforms and laundry,5.99,0.00,5.99
Children and Young Peoples Services,Head of Early Help Inclusion & Vulnerable Children.,085954,Walworth,Supplies and Services,328041,Clothing uniforms and laundry E328,13-Aug-2020,000009158945677,JD SPORTS INTERNET,5941,Clothing uniforms and laundry,58.99,0.00,58.99
Neighbourhoods and Climate Change,Environmental Services,011060,C&G - Hardwick Park Catering,Supplies and Services,324117,Provisions E324,13-Aug-2020,000009158945687,JR HOLLAND FOODSERVICE,5499,Catering costs - provisions,39.46,0.00,39.46
"Regeneration, Economy and Growth",Corporate Property and Land,021234,Catering - Locomotion,Supplies and Services,324117,Provisions E324,13-Aug-2020,000009158945727,JR HOLLAND FOODSERVICE,5499,Catering costs - provisions,41.94,0.00,41.94
"Regeneration, Economy and Growth",Corporate Property and Land,021234,Catering - Locomotion,Supplies and Services,324117,Provisions E324,13-Aug-2020,000009158945733,JR HOLLAND FOODSERVICE,5499,Catering costs - provisions,4.50,0.00,4.50
"Regeneration, Economy and Growth",Corporate Property and Land,021234,Catering - Locomotion,Supplies and Services,324117,Provisions E324,13-Aug-2020,000009158945741,JR HOLLAND FOODSERVICE,5499,Catering costs - provisions,-27.60,0.00,-27.60
"Regeneration, Economy and Growth",Corporate Property and Land,021234,Catering - Locomotion,Supplies and Services,324117,Provisions E324,13-Aug-2020,000009158945747,JR HOLLAND FOODSERVICE,5499,Catering costs - provisions,-11.00,0.00,-11.00
Children and Young Peoples Services,Head of Childrens Social Care,085352,Tow Law CU,Supplies and Services,348037,Subsistence E348,13-Aug-2020,000009158945771,ANEESAS BUFFET RESTAUR,5812,Subsistence,59.45,0.00,59.45
Adult and Health Services,Head of Adults,055643,Hawthorn House LD Respite Unit,Supplies and Services,324117,Provisions E324,13-Aug-2020,000009158945797,ASDA STORES LTD 4313,5411,Catering costs - provisions,8.50,0.00,8.50
Children and Young Peoples Services,Head of Childrens Social Care,085333,Coxhoe Satelite Home,Supplies and Services,324117,Provisions E324,13-Aug-2020,000009158945841,TESCO STORES 2371,5411,Catering costs - provisions,54.44,0.00,54.44
Children and Young Peoples Services,Head of Childrens Social Care,085333,Coxhoe Satelite Home,Supplies and Services,324117,Provisions E324,13-Aug-2020,000009158945851,TESCO STORES 2371,5411,Catering costs - provisions,31.40,0.00,31.40
Children and Young Peoples Services,Head of Childrens Social Care,085342,16 Hickstead Rise (previously 9 Cedar Ave),Supplies and Services,384302,Miscellaneous Expenses,13-Aug-2020,000009158945861,PAYPAL MARKJOHNRAC,8999,Activity expenses,20.00,0.00,20.00
Children and Young Peoples Services,Head of Childrens Social Care,085342,16 Hickstead Rise (previously 9 Cedar Ave),Supplies and Services,304403,Equipment and Materials,13-Aug-2020,000009158945871,SP DAISY DUKES BOX O,5734,Other consumables,34.00,0.00,34.00
Children and Young Peoples Services,Head of Childrens Social Care,085352,Tow Law CU,Supplies and Services,324117,Provisions E324,13-Aug-2020,000009158945881,ASDA SUPERSTORE 4987,5411,Catering costs - provisions,95.00,0.00,95.00
Children and Young Peoples Services,Head of Childrens Social Care,085352,Tow Law CU,Supplies and Services,324117,Provisions E324,13-Aug-2020,000009158945883,ASDA SUPERSTORE 4987,5411,Catering costs - provisions,116.86,0.00,116.86
"Regeneration, Economy and Growth",Corporate Property and Land,030691,Catering - Durham Dales Centre,Supplies and Services,324117,Provisions E324,13-Aug-2020,000009158945895,JR HOLLAND FOODSERVICE,5499,Catering costs - provisions,118.99,0.00,118.99
"Regeneration, Economy and Growth",Development and Housing,031576,B& B - Temp Accom,Supplies and Services,364320,Grants to Voluntary Organisations,13-Aug-2020,000009158945913,THE HONEST LAWYER,7011,Accommodation assistance,67.00,0.00,67.00
"Regeneration, Economy and Growth",Development and Housing,031576,B& B - Temp Accom,Supplies and Services,364320,Grants to Voluntary Organisations,13-Aug-2020,000009158945921,HI NEWCASTLE WASHI,7011,Accommodation assistance,65.00,0.00,65.00
Resources BK0010,Digital and Customer Services,065335,School Services - Implementations,Supplies and Services,304303,Equipment and Materials,13-Aug-2020,000009158945935,WWW.ACS4IT.CO.UK,5943,Network for resale,65.22,0.00,65.22
Children and Young Peoples Services,Head of Childrens Social Care,085342,16 Hickstead Rise (previously 9 Cedar Ave),Supplies and Services,324117,Provisions E324,13-Aug-2020,000009158945939,TESCO STORES 2916,5411,Catering costs - provisions,20.15,0.00,20.15
Children and Young Peoples Services,Head of Childrens Social Care,085342,16 Hickstead Rise (previously 9 Cedar Ave),Supplies and Services,304221,Equipment and Materials,13-Aug-2020,000009158945947,SCREWFIX DIRECT,5211,Direct materials,16.99,0.00,16.99
Children and Young Peoples Services,Head of Childrens Social Care,085334,West Rainton Satelite Home,Supplies and Services,304999,Equipment and Materials,13-Aug-2020,000009158945955,HOME BARGAINS,5251,Misc equipment tools and materials,61.63,0.00,61.63
Children and Young Peoples Services,Head of Childrens Social Care,085334,West Rainton Satelite Home,Supplies and Services,304999,Equipment and Materials,13-Aug-2020,000009158945961,HOME BARGAINS,5251,Misc equipment tools and materials,4.00,0.00,4.00
Children and Young Peoples Services,Head of Early Help Inclusion & Vulnerable Children.,085957,Secure Management,Supplies and Services,304405,Equipment and Materials,13-Aug-2020,000009158945985,AMZNMktplace,5999,Medical supplies,59.99,10.00,49.99
Children and Young Peoples Services,Head of Early Help Inclusion & Vulnerable Children.,085956,Lumley,Supplies and Services,304649,Equipment and Materials,13-Aug-2020,000009158945991,CURRYS ONLINE,5732,Toys,44.99,7.50,37.49
Resources BK0010,Business Support,052986,CYPS - Locality and Operational Support,Supplies and Services,304403,Equipment and Materials,13-Aug-2020,000009158946015,AMZNMktplace,5999,Other consumables,75.56,12.60,62.96
"Regeneration, Economy and Growth",Culture Sport and Tourism,054235,Bishop Auckland Town Hall Cafe,Supplies and Services,324117,Provisions E324,13-Aug-2020,000009158946023,JR HOLLAND FOODSERVICE,5499,Catering costs - provisions,187.37,0.00,187.37
Children and Young Peoples Services,Head of Childrens Social Care,085333,Coxhoe Satelite Home,Supplies and Services,324117,Provisions E324,13-Aug-2020,000009158946037,B&M 681 - DURHAM,5399,Catering costs - provisions,27.96,0.00,27.96
Children and Young Peoples Services,Head of Childrens Social Care,085333,Coxhoe Satelite Home,Supplies and Services,304221,Equipment and Materials,13-Aug-2020,000009158946043,B & Q 1343,5200,Direct materials,50.18,0.00,50.18
Children and Young Peoples Services,Head of Childrens Social Care,085333,Coxhoe Satelite Home,Supplies and Services,328041,Clothing uniforms and laundry E328,13-Aug-2020,000009158946047,The Range,5311,Clothing uniforms and laundry,39.63,0.00,39.63
Children and Young Peoples Services,Head of Childrens Social Care,085333,Coxhoe Satelite Home,Supplies and Services,324117,Provisions E324,13-Aug-2020,000009158946053,CO-OP GROUP 310016,5411,Catering costs - provisions,5.40,0.00,5.40
Children and Young Peoples Services,Head of Childrens Social Care,085352,Tow Law CU,Supplies and Services,324117,Provisions E324,13-Aug-2020,000009158946067,SAINSBURYS LOC4634,5411,Catering costs - provisions,45.00,0.00,45.00
Children and Young Peoples Services,Head of Childrens Social Care,085352,Tow Law CU,Supplies and Services,348037,Subsistence E348,13-Aug-2020,000009158946075,STARBUCKS,5814,Subsistence,5.90,0.00,5.90
Children and Young Peoples Services,Head of Childrens Social Care,085352,Tow Law CU,Supplies and Services,304999,Equipment and Materials,13-Aug-2020,000009158946077,SUPERDRUG STORES PLC,5912,Misc equipment tools and materials,4.88,0.00,4.88
Children and Young Peoples Services,Head of Childrens Social Care,085352,Tow Law CU,Supplies and Services,328041,Clothing uniforms and laundry E328,13-Aug-2020,000009158946083,THE RANGE,5311,Clothing uniforms and laundry,15.63,0.00,15.63
Children and Young Peoples Services,Head of Childrens Social Care,085352,Tow Law CU,Supplies and Services,304259,Equipment and Materials,13-Aug-2020,000009158946089,SPORTSDIRECT.COM,5941,Equipment-purchase and rental,44.05,0.00,44.05
Children and Young Peoples Services,Head of Childrens Social Care,085352,Tow Law CU,Supplies and Services,352001,Conference Expenses,13-Aug-2020,000009158946093,RUE HILL CAMPSITE,7011,Conferencesseminars fees etc,-115.00,0.00,-115.00
Children and Young Peoples Services,Head of Childrens Social Care,085333,Coxhoe Satelite Home,Supplies and Services,324117,Provisions E324,13-Aug-2020,000009158946109,LIDL GB PICKERING,5411,Catering costs - provisions,10.06,0.00,10.06
Children and Young Peoples Services,Head of Childrens Social Care,085333,Coxhoe Satelite Home,Supplies and Services,324117,Provisions E324,13-Aug-2020,000009158946115,LIDL GB PICKERING,5411,Catering costs - provisions,6.32,0.00,6.32
Neighbourhoods and Climate Change,Environmental Services,031217,North Pennines - Cold Blooded & Spineless,Supplies and Services,304221,Equipment and Materials,13-Aug-2020,000009158946153,J T DOVE LTD,5211,Direct materials,14.95,0.00,14.95
Neighbourhoods and Climate Change,Environmental Services,011060,C&G - Hardwick Park Catering,Supplies and Services,324117,Provisions E324,13-Aug-2020,000009164613071,BATLEYS PERTH,5300,Catering costs - provisions,224.04,37.34,186.70
Neighbourhoods and Climate Change,Environmental Services,011060,C&G - Hardwick Park Catering,Supplies and Services,324117,Provisions E324,13-Aug-2020,000009164613071 - 1,BATLEYS PERTH,5300,Catering costs - provisions,157.93,,157.93
Neighbourhoods and Climate Change,Environmental Services,011060,C&G - Hardwick Park Catering,Supplies and Services,324117,Provisions E324,13-Aug-2020,000009164613077,BATLEYS PERTH,5300,Catering costs - provisions,90.87,0.00,90.87
"Regeneration, Economy and Growth",Corporate Property and Land,030691,Catering - Durham Dales Centre,Supplies and Services,324117,Provisions E324,13-Aug-2020,000009164613313,BATLEYS PERTH,5300,Catering costs - provisions,41.16,6.86,34.30
"Regeneration, Economy and Growth",Corporate Property and Land,030691,Catering - Durham Dales Centre,Supplies and Services,324117,Provisions E324,13-Aug-2020,000009164613313 - 1,BATLEYS PERTH,5300,Catering costs - provisions,27.52,,27.52
Children and Young Peoples Services,Head of Early Help Inclusion & Vulnerable Children.,085956,Lumley,Supplies and Services,304649,Equipment and Materials,13-Aug-2020,000009164613395,AMZNMKTPLACE AMAZON.CO,5999,Toys,7.99,0.00,7.99
Children and Young Peoples Services,Head of Childrens Social Care,085352,Tow Law CU,Supplies and Services,328041,Clothing uniforms and laundry E328,13-Aug-2020,000009164613445,PRIMARK 670 GATESHEAD,5651,Clothing uniforms and laundry,57.00,0.00,57.00
"Regeneration, Economy and Growth",Corporate Property and Land,021235,Catering - Wharton Park,Supplies and Services,324117,Provisions E324,13-Aug-2020,000009164613527,BATLEYS PERTH,5300,Catering costs - provisions,289.68,48.28,241.40
"Regeneration, Economy and Growth",Corporate Property and Land,021235,Catering - Wharton Park,Supplies and Services,324117,Provisions E324,13-Aug-2020,000009164613527 - 1,BATLEYS PERTH,5300,Catering costs - provisions,5.19,,5.19
Children and Young Peoples Services,Head of Early Help Inclusion & Vulnerable Children.,085957,Secure Management,Supplies and Services,372009,Subscriptions E372,14-Aug-2020,000009158945675,TESCO SUBSCRIPTION,5968,Subscriptions 372009,6.99,0.00,6.99
Children and Young Peoples Services,Head of Early Help Inclusion & Vulnerable Children.,085956,Lumley,Supplies and Services,304649,Equipment and Materials,14-Aug-2020,000009158945995,Amazon.co.uk 605AN2Y15,5969,Toys,39.99,6.67,33.32
"Regeneration, Economy and Growth",Business Durham CL0850,030689,Inward Investment and Aftercare,Supplies and Services,304999,Equipment and Materials,14-Aug-2020,000009164612687,LinkedIn 5816623264 ln,5968,Misc equipment tools and materials,88.92,0.00,88.92
"Regeneration, Economy and Growth",Business Durham CL0850,030689,Inward Investment and Aftercare,Supplies and Services,304999,Equipment and Materials,14-Aug-2020,000009164612693,MOZ INC,5817,Misc equipment tools and materials,137.46,0.00,137.46
Children and Young Peoples Services,Head of Childrens Social Care,085341,High Etherley Satelite Home,Supplies and Services,340001,Postages E340,14-Aug-2020,000009164612707,POST OFFICE COUNTER,9402,Postages,15.00,0.00,15.00
Children and Young Peoples Services,Head of Childrens Social Care,085341,High Etherley Satelite Home,Supplies and Services,324117,Provisions E324,14-Aug-2020,000009164612709,SAINSBURYS SACAT 2199,5411,Catering costs - provisions,3.00,0.00,3.00
Children and Young Peoples Services,Head of Childrens Social Care,085341,High Etherley Satelite Home,Supplies and Services,324117,Provisions E324,14-Aug-2020,000009164612711,TESCO STORES 2916,5411,Catering costs - provisions,10.00,0.00,10.00
Children and Young Peoples Services,Head of Childrens Social Care,085341,High Etherley Satelite Home,Supplies and Services,324117,Provisions E324,14-Aug-2020,000009164612713,TESCO STORES 2916,5411,Catering costs - provisions,15.00,0.00,15.00
Children and Young Peoples Services,Head of Childrens Social Care,085341,High Etherley Satelite Home,Supplies and Services,324117,Provisions E324,14-Aug-2020,000009164612715,TESCO STORES 6329,5411,Catering costs - provisions,37.96,0.00,37.96
Children and Young Peoples Services,Head of Childrens Social Care,085341,High Etherley Satelite Home,Supplies and Services,324117,Provisions E324,14-Aug-2020,000009164612717,TESCO STORES 6329,5411,Catering costs - provisions,12.97,0.00,12.97
Children and Young Peoples Services,Head of Education and Skills,071801,Selby Cottage Childcare Centre,Supplies and Services,324117,Provisions E324,14-Aug-2020,000009164612723,TESCO STORES 2278,5411,Catering costs - provisions,37.20,0.00,37.20
"Regeneration, Economy and Growth",Development and Housing,031599,Prevention Initiatives,Supplies and Services,352001,Conference Expenses,14-Aug-2020,000009164612745,HI NEWCASTLE WASHI,7011,Conferencesseminars fees etc,195.00,0.00,195.00
Children and Young Peoples Services,Head of Childrens Social Care,085501,Child Care Cases Legal Expenses,Supplies and Services,304403,Equipment and Materials,14-Aug-2020,000009164612753,DARLINGTON BC INTERNET,9399,Other consumables,11.00,0.00,11.00
Children and Young Peoples Services,Head of Education and Skills,075021,Youth Employment Initiative,Supplies and Services,364301,Grants to Voluntary Organisations,14-Aug-2020,000009164612759,HARTLEPOOL BC,9399,Hardship,12.20,0.00,12.20
Children and Young Peoples Services,Head of Education and Skills,075021,Youth Employment Initiative,Supplies and Services,364301,Grants to Voluntary Organisations,14-Aug-2020,000009164612761,CURRYS ONLINE,5732,Hardship,199.00,33.17,165.83
Children and Young Peoples Services,Head of Education and Skills,075021,Youth Employment Initiative,Supplies and Services,364301,Grants to Voluntary Organisations,14-Aug-2020,000009164612765,CURRYS ONLINE,5732,Hardship,199.00,33.17,165.83
Children and Young Peoples Services,Head of Childrens Social Care,085332,Middlestone Moor CU,Supplies and Services,324117,Provisions E324,14-Aug-2020,000009164612797,TESCO STORES 2371,5411,Catering costs - provisions,63.78,0.00,63.78
Children and Young Peoples Services,Head of Childrens Social Care,085332,Middlestone Moor CU,Supplies and Services,324117,Provisions E324,14-Aug-2020,000009164612799,TESCO STORES 2371,5411,Catering costs - provisions,-0.69,0.00,-0.69
Children and Young Peoples Services,Head of Childrens Social Care,085352,Tow Law CU,Supplies and Services,324117,Provisions E324,14-Aug-2020,000009164612815,TESCO STORES 2371,5411,Catering costs - provisions,29.40,0.00,29.40
Children and Young Peoples Services,Head of Childrens Social Care,085352,Tow Law CU,Supplies and Services,348037,Subsistence E348,14-Aug-2020,000009164612845,MCDONALDS,5812,Subsistence,9.88,0.00,9.88
Children and Young Peoples Services,Head of Childrens Social Care,085352,Tow Law CU,Supplies and Services,304403,Equipment and Materials,14-Aug-2020,000009164612847,NORTHUMBRIAN WATER,5947,Other consumables,52.35,0.00,52.35
Children and Young Peoples Services,Head of Childrens Social Care,085380,Operations Manager LAC Resources,Supplies and Services,328041,Clothing uniforms and laundry E328,14-Aug-2020,000009164612867,ARGOS LTD,5310,Clothing uniforms and laundry,132.95,0.00,132.95
Children and Young Peoples Services,Head of Early Help Inclusion & Vulnerable Children.,085954,Walworth,Supplies and Services,304259,Equipment and Materials,14-Aug-2020,000009164612911,SPORTSDIRECT.COM,5941,Equipment-purchase and rental,49.98,0.00,49.98
Children and Young Peoples Services,Head of Early Help Inclusion & Vulnerable Children.,085965,Barnard,Supplies and Services,304403,Equipment and Materials,14-Aug-2020,000009164612915,AMZNMKTPLACE AMAZON.CO,5999,Other consumables,27.65,4.61,23.04
Children and Young Peoples Services,Head of Early Help Inclusion & Vulnerable Children.,085965,Barnard,Supplies and Services,304403,Equipment and Materials,14-Aug-2020,000009164612917,AMZNMKTPLACE AMAZON.CO,5999,Other consumables,29.55,4.93,24.62
Children and Young Peoples Services,Head of Early Help Inclusion & Vulnerable Children.,085954,Walworth,Supplies and Services,304259,Equipment and Materials,14-Aug-2020,000009164612923,SPORTSDIRECT.COM,5941,Equipment-purchase and rental,59.48,0.00,59.48
"Regeneration, Economy and Growth",Culture Sport and Tourism,011248,Localities Management 011248,Supplies and Services,342033,Computers and Communications,14-Aug-2020,000009164612941,iStock.com,7333,Computer hardware,24.00,0.00,24.00
Children and Young Peoples Services,Head of Early Help Inclusion & Vulnerable Children.,073998,TTF-Co-ordinator Grant,Transfer Payments,525033,Other,14-Aug-2020,000009164612943,FRANKS THE FLOORING ST,5713,Grants to individuals,150.00,0.00,150.00
Children and Young Peoples Services,Head of Education and Skills,071732,Dean Bank Childcare,Supplies and Services,384999,Miscellaneous Expenses,14-Aug-2020,000009164612967,Amazon.co.uk 2M6HF3PM5,5969,Other expenses,15.99,0.00,15.99
"Regeneration, Economy and Growth",Development and Housing,031500,Housing Solutions - Core Team,Supplies and Services,352001,Conference Expenses,14-Aug-2020,000009164613015,THE HONEST LAWYER,7011,Conferencesseminars fees etc,221.85,0.00,221.85
"Regeneration, Economy and Growth",Development and Housing,031500,Housing Solutions - Core Team,Supplies and Services,352001,Conference Expenses,14-Aug-2020,000009164613019,THE HONEST LAWYER,7011,Conferencesseminars fees etc,221.85,0.00,221.85
Children and Young Peoples Services,Head of Childrens Social Care,085332,Middlestone Moor CU,Supplies and Services,304259,Equipment and Materials,14-Aug-2020,000009164613021,HALFORDS 0526,5940,Equipment-purchase and rental,10.00,0.00,10.00
"Regeneration, Economy and Growth",Development and Housing,031500,Housing Solutions - Core Team,Supplies and Services,352001,Conference Expenses,14-Aug-2020,000009164613033,THE HONEST LAWYER,7011,Conferencesseminars fees etc,201.00,0.00,201.00
Children and Young Peoples Services,Head of Early Help Inclusion & Vulnerable Children.,085956,Lumley,Supplies and Services,328041,Clothing uniforms and laundry E328,14-Aug-2020,000009164613043,URBAN OUTFITTERS,5651,Clothing uniforms and laundry,94.00,0.00,94.00
Children and Young Peoples Services,Head of Early Help Inclusion & Vulnerable Children.,085965,Barnard,Supplies and Services,324117,Provisions E324,14-Aug-2020,000009164613045,TESCO STORES 6329,5411,Catering costs - provisions,91.76,0.00,91.76
Resources BK0010,Business Support,052986,CYPS - Locality and Operational Support,Supplies and Services,328041,Clothing uniforms and laundry E328,14-Aug-2020,000009164613061,WWW.THEWORKS.CO.UK,5310,Clothing uniforms and laundry,222.00,0.00,222.00
Neighbourhoods and Climate Change,Environmental Services,026591,C&G - Hardwick Park,Supplies and Services,304245,Equipment and Materials,14-Aug-2020,000009164613065,Barriers Direct,5399,Materials,626.88,0.00,626.88
Neighbourhoods and Climate Change,Environmental Services,011060,C&G - Hardwick Park Catering,Supplies and Services,324117,Provisions E324,14-Aug-2020,000009164613079,HOPWELLS LTD,5811,Catering costs - provisions,23.58,3.93,19.65
Neighbourhoods and Climate Change,Environmental Services,011060,C&G - Hardwick Park Catering,Supplies and Services,324117,Provisions E324,14-Aug-2020,000009164613079 - 1,HOPWELLS LTD,5811,Catering costs - provisions,29.56,,29.56
Neighbourhoods and Climate Change,Environmental Services,011060,C&G - Hardwick Park Catering,Supplies and Services,324117,Provisions E324,14-Aug-2020,000009164613081,JR HOLLAND FOODSERVICE,5499,Catering costs - provisions,22.72,0.00,22.72
Neighbourhoods and Climate Change,Environmental Services,011060,C&G - Hardwick Park Catering,Supplies and Services,324117,Provisions E324,14-Aug-2020,000009164613083,HOPWELLS LTD,5811,Catering costs - provisions,-24.92,-4.15,-20.77
"Regeneration, Economy and Growth",Corporate Property and Land,021234,Catering - Locomotion,Supplies and Services,324117,Provisions E324,14-Aug-2020,000009164613093,HOPWELLS LTD,5811,Catering costs - provisions,22.32,3.72,18.60
"Regeneration, Economy and Growth",Corporate Property and Land,021234,Catering - Locomotion,Supplies and Services,324117,Provisions E324,14-Aug-2020,000009164613093 - 1,HOPWELLS LTD,5811,Catering costs - provisions,210.99,,210.99
"Regeneration, Economy and Growth",Corporate Property and Land,021234,Catering - Locomotion,Supplies and Services,324117,Provisions E324,14-Aug-2020,000009164613099,HOPWELLS LTD,5811,Catering costs - provisions,140.88,23.48,117.40
"Regeneration, Economy and Growth",Corporate Property and Land,021234,Catering - Locomotion,Supplies and Services,324117,Provisions E324,14-Aug-2020,000009164613099 - 1,HOPWELLS LTD,5811,Catering costs - provisions,117.28,,117.28
"Regeneration, Economy and Growth",Corporate Property and Land,021234,Catering - Locomotion,Supplies and Services,324117,Provisions E324,14-Aug-2020,000009164613111,JR HOLLAND FOODSERVICE,5499,Catering costs - provisions,48.38,0.00,48.38
"Regeneration, Economy and Growth",Development and Housing,031500,Housing Solutions - Core Team,Supplies and Services,352001,Conference Expenses,14-Aug-2020,000009164613157,OYO-Booking-162069374,7011,Conferencesseminars fees etc,202.00,0.00,202.00
"Regeneration, Economy and Growth",Development and Housing,031500,Housing Solutions - Core Team,Transport,235057,Public Transport,14-Aug-2020,000009164613163,BLUE LINE TAXIS,4121,Staff travelling,11.90,0.00,11.90
"Regeneration, Economy and Growth",Development and Housing,031500,Housing Solutions - Core Team,Supplies and Services,352001,Conference Expenses,14-Aug-2020,000009164613165,BUDGET H EXPRESS HOTEL,7011,Conferencesseminars fees etc,356.00,0.00,356.00
"Regeneration, Economy and Growth",Development and Housing,031500,Housing Solutions - Core Team,Supplies and Services,352001,Conference Expenses,14-Aug-2020,000009164613167,BUDGET H EXPRESS HOTEL,7011,Conferencesseminars fees etc,500.00,0.00,500.00
"Regeneration, Economy and Growth",Development and Housing,031500,Housing Solutions - Core Team,Supplies and Services,352001,Conference Expenses,14-Aug-2020,000009164613169,BUDGET H EXPRESS HOTEL,7011,Conferencesseminars fees etc,123.00,0.00,123.00
"Regeneration, Economy and Growth",Development and Housing,031500,Housing Solutions - Core Team,Supplies and Services,352001,Conference Expenses,14-Aug-2020,000009164613171,BUDGET H EXPRESS HOTEL,7011,Conferencesseminars fees etc,500.00,0.00,500.00
"Regeneration, Economy and Growth",Development and Housing,031500,Housing Solutions - Core Team,Supplies and Services,352001,Conference Expenses,14-Aug-2020,000009164613173,BUDGET H EXPRESS HOTEL,7011,Conferencesseminars fees etc,123.00,0.00,123.00
Children and Young Peoples Services,Head of Childrens Social Care,085331,New Lea Childrens Home,Supplies and Services,324117,Provisions E324,14-Aug-2020,000009164613175,ASDA GROCERIES ONLINE,5411,Catering costs - provisions,305.24,0.00,305.24
Children and Young Peoples Services,Head of Childrens Social Care,085331,New Lea Childrens Home,Supplies and Services,324117,Provisions E324,14-Aug-2020,000009164613177,ASDA GROCERIES ONLINE,5411,Catering costs - provisions,-2.13,0.00,-2.13
Regeneration and Local Services,COVID19 - Regeneration Economy and Growth,091004,COVID19 - Regeneration Economy and Growth,Supplies and Services,304335,Equipment and Materials,14-Aug-2020,000009164613193,WWW.ERS-ONLINE.CO.UK,5943,ICT supplies etc,"1,170.60",195.10,975.50
Neighbourhoods and Climate Change,Community Protection,011035,Consumer Protection 011035,Supplies and Services,338048,Services,14-Aug-2020,000009164613229,HMCOURTS-SERVICE.G,9222,Court costs 338048,226.00,0.00,226.00
Children and Young Peoples Services,Head of Childrens Social Care,085333,Coxhoe Satelite Home,Supplies and Services,344033,Telephones,14-Aug-2020,000009164613257,giffgaff,4814,Telephones general-all costs,10.00,0.00,10.00
Children and Young Peoples Services,Head of Childrens Social Care,085333,Coxhoe Satelite Home,Supplies and Services,324117,Provisions E324,14-Aug-2020,000009164613261,CO-OP GROUP 310016,5411,Catering costs - provisions,9.14,0.00,9.14
Children and Young Peoples Services,Head of Childrens Social Care,085333,Coxhoe Satelite Home,Supplies and Services,324117,Provisions E324,14-Aug-2020,000009164613265,CO-OP GROUP 310016,5411,Catering costs - provisions,23.35,0.00,23.35
Children and Young Peoples Services,Head of Childrens Social Care,085342,16 Hickstead Rise (previously 9 Cedar Ave),Supplies and Services,348037,Subsistence E348,14-Aug-2020,000009164613273,KFC - DARLINGTON DT,5814,Subsistence,18.48,0.00,18.48
Children and Young Peoples Services,Head of Childrens Social Care,085342,16 Hickstead Rise (previously 9 Cedar Ave),Supplies and Services,324117,Provisions E324,14-Aug-2020,000009164613275,TESCO STORES 2916,5411,Catering costs - provisions,9.24,0.00,9.24
Neighbourhoods and Climate Change,Environmental Services,010367,C&G - South Grounds Maintenance,Supplies and Services,304221,Equipment and Materials,14-Aug-2020,000009164613339,CARRS BILLINGTON SPENN,5599,Direct materials,165.29,0.00,165.29
Neighbourhoods and Climate Change,Environmental Services,010367,C&G - South Grounds Maintenance,Supplies and Services,304221,Equipment and Materials,14-Aug-2020,000009164613345,SCREWFIX DIRECT,5211,Direct materials,17.16,0.00,17.16
Adult and Health Services,Head of Adults,055643,Hawthorn House LD Respite Unit,Supplies and Services,324117,Provisions E324,14-Aug-2020,000009164613349,HOPWELLS LTD,5811,Catering costs - provisions,39.42,6.57,32.85
Adult and Health Services,Head of Adults,055643,Hawthorn House LD Respite Unit,Supplies and Services,324117,Provisions E324,14-Aug-2020,000009164613349 - 1,HOPWELLS LTD,5811,Catering costs - provisions,53.80,,53.80
Adult and Health Services,Head of Adults,055643,Hawthorn House LD Respite Unit,Supplies and Services,324117,Provisions E324,14-Aug-2020,000009164613351,JR HOLLAND FOODSERVICE,5499,Catering costs - provisions,12.51,0.00,12.51
Adult and Health Services,Head of Adults,055643,Hawthorn House LD Respite Unit,Supplies and Services,324117,Provisions E324,14-Aug-2020,000009164613353,JR HOLLAND FOODSERVICE,5499,Catering costs - provisions,15.33,0.00,15.33
Neighbourhoods and Climate Change,Environmental Services,010301,C&G - North Grounds Maintenance,Supplies and Services,304403,Equipment and Materials,14-Aug-2020,000009164613377,BESCOL,5231,Other consumables,117.12,0.00,117.12
Children and Young Peoples Services,Head of Childrens Social Care,085334,West Rainton Satelite Home,Supplies and Services,324117,Provisions E324,14-Aug-2020,000009164613381,TESCO STORES 2371,5411,Catering costs - provisions,10.60,0.00,10.60
Children and Young Peoples Services,Head of Childrens Social Care,085334,West Rainton Satelite Home,Supplies and Services,324117,Provisions E324,14-Aug-2020,000009164613385,TESCO STORES 2371,5411,Catering costs - provisions,90.82,0.00,90.82
Children and Young Peoples Services,Head of Early Help Inclusion & Vulnerable Children.,085965,Barnard,Employees,040029,Recruitment Instruction and Training,14-Aug-2020,000009164613399,JD SPORTS INTERNET,5941,Interview expenses,48.99,0.00,48.99
"Regeneration, Economy and Growth",Culture Sport and Tourism,010661,Meadowfield Leisure Centre,Supplies and Services,342033,Computers and Communications,14-Aug-2020,000009164613401,Amazon.co.uk H24TK5GT5,5969,Computer hardware,9.16,0.00,9.16
"Regeneration, Economy and Growth",Culture Sport and Tourism,054235,Bishop Auckland Town Hall Cafe,Supplies and Services,324117,Provisions E324,14-Aug-2020,000009164613405,HOPWELLS LTD,5811,Catering costs - provisions,21.37,0.00,21.37
"Regeneration, Economy and Growth",Culture Sport and Tourism,054235,Bishop Auckland Town Hall Cafe,Supplies and Services,324117,Provisions E324,14-Aug-2020,000009164613407,JR HOLLAND FOODSERVICE,5499,Catering costs - provisions,67.33,0.00,67.33
"Regeneration, Economy and Growth",Culture Sport and Tourism,054235,Bishop Auckland Town Hall Cafe,Supplies and Services,324117,Provisions E324,14-Aug-2020,000009164613409,JR HOLLAND FOODSERVICE,5499,Catering costs - provisions,129.68,0.00,129.68
Children and Young Peoples Services,Head of Childrens Social Care,085332,Middlestone Moor CU,Supplies and Services,304999,Equipment and Materials,14-Aug-2020,000009164613411,HOME BARGAINS,5251,Misc equipment tools and materials,15.93,0.00,15.93
Children and Young Peoples Services,Head of Childrens Social Care,085332,Middlestone Moor CU,Supplies and Services,304999,Equipment and Materials,14-Aug-2020,000009164613413,HOME BARGAINS,5251,Misc equipment tools and materials,33.27,0.00,33.27
Children and Young Peoples Services,Head of Childrens Social Care,085332,Middlestone Moor CU,Supplies and Services,304999,Equipment and Materials,14-Aug-2020,000009164613415,BOOTS 6023,5912,Misc equipment tools and materials,72.70,0.00,72.70
Children and Young Peoples Services,Head of Childrens Social Care,085332,Middlestone Moor CU,Supplies and Services,324117,Provisions E324,14-Aug-2020,000009164613417,WM MORRISONS STORE,5411,Catering costs - provisions,8.12,0.00,8.12
Children and Young Peoples Services,Head of Childrens Social Care,085332,Middlestone Moor CU,Supplies and Services,304259,Equipment and Materials,14-Aug-2020,000009164613419,JD SPORTS PLC,5941,Equipment-purchase and rental,102.00,0.00,102.00
Children and Young Peoples Services,Head of Childrens Social Care,085333,Coxhoe Satelite Home,Supplies and Services,342222,Computers and Communications,14-Aug-2020,000009164613435,PAYPAL PYPLGIFTSUK,4816,Comp hardware purch-network servers,30.00,0.00,30.00
Children and Young Peoples Services,Head of Education and Skills,071802,Louisa Cent Nursery,Supplies and Services,324117,Provisions E324,14-Aug-2020,000009164613449,ASDA SUPERSTORE,5411,Catering costs - provisions,64.69,0.00,64.69
Children and Young Peoples Services,Head of Education and Skills,071802,Louisa Cent Nursery,Supplies and Services,324117,Provisions E324,14-Aug-2020,000009164613453,ALDI STORES,5411,Catering costs - provisions,24.38,0.00,24.38
Children and Young Peoples Services,Head of Childrens Social Care,085332,Middlestone Moor CU,Supplies and Services,304403,Equipment and Materials,14-Aug-2020,000009164613465,AMZNMktplace,5999,Other consumables,6.99,1.17,5.82
"Regeneration, Economy and Growth",Culture Sport and Tourism,054233,Bishop Auckland Town Hall Library,Supplies and Services,324117,Provisions E324,14-Aug-2020,000009164613469,HERON FOODS LTD,5499,Catering costs - provisions,6.67,0.00,6.67
"Regeneration, Economy and Growth",Culture Sport and Tourism,054233,Bishop Auckland Town Hall Library,Supplies and Services,324117,Provisions E324,14-Aug-2020,000009164613473,WILKO RETAIL LIMITED,5399,Catering costs - provisions,14.10,0.00,14.10
Adult and Health Services,Head of Adults,055310,Positive Journeys (Tudhoe),Supplies and Services,324117,Provisions E324,14-Aug-2020,000009164613509,TESCO STORES 2371,5411,Catering costs - provisions,38.69,0.00,38.69
"Regeneration, Economy and Growth",Corporate Property and Land,021235,Catering - Wharton Park,Supplies and Services,324117,Provisions E324,14-Aug-2020,000009164613535,HOPWELLS LTD,5811,Catering costs - provisions,472.64,78.78,393.86
"Regeneration, Economy and Growth",Corporate Property and Land,021235,Catering - Wharton Park,Supplies and Services,324117,Provisions E324,14-Aug-2020,000009164613541,JR HOLLAND FOODSERVICE,5499,Catering costs - provisions,28.57,0.00,28.57
Children and Young Peoples Services,Head of Early Help Inclusion & Vulnerable Children.,085954,Walworth,Supplies and Services,328041,Clothing uniforms and laundry E328,14-Aug-2020,000009168510197,HM.COM,5691,Clothing uniforms and laundry,42.98,0.00,42.98
Neighbourhoods and Climate Change,Environmental Services,011060,C&G - Hardwick Park Catering,Supplies and Services,324117,Provisions E324,14-Aug-2020,000009168510573,BATLEYS PERTH,5300,Catering costs - provisions,217.32,36.22,181.10
Neighbourhoods and Climate Change,Environmental Services,011060,C&G - Hardwick Park Catering,Supplies and Services,324117,Provisions E324,14-Aug-2020,000009168510573 - 1,BATLEYS PERTH,5300,Catering costs - provisions,47.87,,47.87
Adult and Health Services,Head of Adults,055643,Hawthorn House LD Respite Unit,Supplies and Services,324117,Provisions E324,14-Aug-2020,000009168510879,BATLEYS PERTH,5300,Catering costs - provisions,31.38,5.23,26.15
Adult and Health Services,Head of Adults,055643,Hawthorn House LD Respite Unit,Supplies and Services,324117,Provisions E324,14-Aug-2020,000009168510879 - 1,BATLEYS PERTH,5300,Catering costs - provisions,101.18,,101.18
Children and Young Peoples Services,Head of Education and Skills,071801,Selby Cottage Childcare Centre,Supplies and Services,324117,Provisions E324,15-Aug-2020,000009164612725,ASDA STORES 7134,5411,Catering costs - provisions,5.00,0.00,5.00
Children and Young Peoples Services,Head of Early Help Inclusion & Vulnerable Children.,085954,Walworth,Supplies and Services,328041,Clothing uniforms and laundry E328,15-Aug-2020,000009164612919,WWW.NIKESTORE.COM,5691,Clothing uniforms and laundry,94.95,0.00,94.95
Neighbourhoods and Climate Change,Environmental Services,031221,North Pennines - Bowlees,Supplies and Services,324117,Provisions E324,15-Aug-2020,000009164613001,CO-OP GROUP 010670,5411,Catering costs - provisions,8.55,0.00,8.55
Children and Young Peoples Services,Head of Childrens Social Care,085352,Tow Law CU,Supplies and Services,304999,Equipment and Materials,15-Aug-2020,000009164613195,Well Pharmacy 200413,5912,Misc equipment tools and materials,27.99,0.00,27.99
Children and Young Peoples Services,Head of Childrens Social Care,085352,Tow Law CU,Supplies and Services,338099,Services,15-Aug-2020,000009164613199,FLAMINGOLAND,7033,Other services,110.00,0.00,110.00
Children and Young Peoples Services,Head of Childrens Social Care,085352,Tow Law CU,Supplies and Services,304999,Equipment and Materials,15-Aug-2020,000009164613201,Amazon Prime P627B71C5,5968,Misc equipment tools and materials,7.99,0.00,7.99
Children and Young Peoples Services,Head of Childrens Social Care,085334,West Rainton Satelite Home,Supplies and Services,384999,Miscellaneous Expenses,15-Aug-2020,000009164613221,Amazon.co.uk Y47L04J55,5969,Other expenses,19.99,0.00,19.99
Children and Young Peoples Services,Head of Childrens Social Care,085333,Coxhoe Satelite Home,Supplies and Services,324117,Provisions E324,15-Aug-2020,000009164613259,B&M 339 - AN TIMBERBEA,5399,Catering costs - provisions,24.18,0.00,24.18
Children and Young Peoples Services,Head of Childrens Social Care,085334,West Rainton Satelite Home,Supplies and Services,338099,Services,15-Aug-2020,000009164613359,BLACKHALL ROCKS,7033,Other services,8.24,0.00,8.24
Children and Young Peoples Services,Head of Childrens Social Care,085334,West Rainton Satelite Home,Supplies and Services,338099,Services,15-Aug-2020,000009164613363,CRIMDON DENE,7033,Other services,10.00,0.00,10.00
Children and Young Peoples Services,Head of Childrens Social Care,085332,Middlestone Moor CU,Supplies and Services,304999,Equipment and Materials,15-Aug-2020,000009164613421,Amazon Prime W495X8T45,5968,Misc equipment tools and materials,7.99,0.00,7.99
Children and Young Peoples Services,Head of Childrens Social Care,085333,Coxhoe Satelite Home,Supplies and Services,324117,Provisions E324,15-Aug-2020,000009164613437,WM MORRISONS STORE,5411,Catering costs - provisions,13.00,0.00,13.00
Children and Young Peoples Services,Head of Childrens Social Care,085333,Coxhoe Satelite Home,Supplies and Services,348037,Subsistence E348,15-Aug-2020,000009164613439,MCDONALDS,5814,Subsistence,5.99,0.00,5.99
Children and Young Peoples Services,Head of Childrens Social Care,085333,Coxhoe Satelite Home,Supplies and Services,332047,Printing Stationery and Gen Off Exps,15-Aug-2020,000009164613441,SHOWCASE TEESSIDE W,7832,Stationery,21.40,0.00,21.40
Adult and Health Services,Head of Adults,055310,Positive Journeys (Tudhoe),Supplies and Services,328041,Clothing uniforms and laundry E328,15-Aug-2020,000009164613515,PRIMARK - 696,5651,Clothing uniforms and laundry,4.00,0.00,4.00
Adult and Health Services,Head of Adults,055310,Positive Journeys (Tudhoe),Supplies and Services,328041,Clothing uniforms and laundry E328,15-Aug-2020,000009164613517,POUNDLAND,5310,Clothing uniforms and laundry,5.00,0.00,5.00
Neighbourhoods and Climate Change,Environmental Services,031217,North Pennines - Cold Blooded & Spineless,Supplies and Services,328041,Clothing uniforms and laundry E328,15-Aug-2020,000009164613585,POUNDLAND LTD 1432,5310,Clothing uniforms and laundry,5.00,0.00,5.00
"Regeneration, Economy and Growth",Business Durham CL0850,030689,Inward Investment and Aftercare,Supplies and Services,304999,Equipment and Materials,16-Aug-2020,000009164612695,LinkedIn 5820567274 ln,5968,Misc equipment tools and materials,86.84,0.00,86.84
Children and Young Peoples Services,Head of Childrens Social Care,085352,Tow Law CU,Supplies and Services,324117,Provisions E324,16-Aug-2020,000009164612851,NISA LOCAL,5411,Catering costs - provisions,11.19,0.00,11.19
Children and Young Peoples Services,Head of Childrens Social Care,085352,Tow Law CU,Supplies and Services,304403,Equipment and Materials,16-Aug-2020,000009164612853,NORTHUMBRIAN WATER,5947,Other consumables,27.00,0.00,27.00
Children and Young Peoples Services,Head of Childrens Social Care,085332,Middlestone Moor CU,Supplies and Services,324117,Provisions E324,16-Aug-2020,000009164612883,LIDL GB SPENNYMOOR,5411,Catering costs - provisions,0.25,0.00,0.25
Children and Young Peoples Services,Head of Childrens Social Care,085342,16 Hickstead Rise (previously 9 Cedar Ave),Supplies and Services,384999,Miscellaneous Expenses,16-Aug-2020,000009164612963,MAMMA MIA HERE WE GO A,7922,Other expenses,34.33,0.00,34.33
Children and Young Peoples Services,Head of Childrens Social Care,085342,16 Hickstead Rise (previously 9 Cedar Ave),Supplies and Services,348037,Subsistence E348,16-Aug-2020,000009164612965,ShakeNCake,5812,Subsistence,17.30,0.00,17.30
Children and Young Peoples Services,Head of Early Help Inclusion & Vulnerable Children.,085954,Walworth,Supplies and Services,324117,Provisions E324,16-Aug-2020,000009164613049,TESCO STORES 6329,5411,Catering costs - provisions,66.01,0.00,66.01
Neighbourhoods and Climate Change,Environmental Services,026591,C&G - Hardwick Park,Supplies and Services,332047,Printing Stationery and Gen Off Exps,16-Aug-2020,000009164613067,AMZNMktplace,5999,Stationery,99.90,16.65,83.25
Neighbourhoods and Climate Change,Environmental Services,026591,C&G - Hardwick Park,Supplies and Services,332047,Printing Stationery and Gen Off Exps,16-Aug-2020,000009164613067 - 1,AMZNMktplace,5999,Stationery,0.05,,0.05
Adult and Health Services,Head of Adults,055643,Hawthorn House LD Respite Unit,Supplies and Services,324117,Provisions E324,16-Aug-2020,000009164613231,CO-OP GROUP FOOD,5411,Catering costs - provisions,14.75,0.00,14.75
Children and Young Peoples Services,Head of Childrens Social Care,085342,16 Hickstead Rise (previously 9 Cedar Ave),Transport,235057,Public Transport,16-Aug-2020,000009164613277,LNER WEB SALES,4112,Staff travelling,11.40,0.00,11.40
Children and Young Peoples Services,Head of Childrens Social Care,085342,16 Hickstead Rise (previously 9 Cedar Ave),Transport,235057,Public Transport,16-Aug-2020,000009164613281,WWW.TPEXPRESS.CO.UK,4112,Staff travelling,18.40,0.00,18.40
